{"text_format":"1","workbook":"xlsx","n_sheets":18,"sheets":["Início","Introdução","Equipe","Síntese","Soja","Algodão","Trigo","Feijão","Milho","Cana-de-açúcar","Pecuária e pastagem","Arroz","Consumo de energia","COEFICIENTES","OPERAÇÕESMECANIZADAS","CONSUMOENERGIA","DADOS","RELATÓRIO INVENTÁRIO"],"not_rendered":{"charts":0,"images":71,"macros":1,"external_links":0,"defined_names":507,"comments":1,"pivot_tables":0},"unopened":[],"bounds":{"document_bytes":16777216,"sheet_cells":100000,"rows_first":2000,"rows_last":500,"rows_between":2000,"halvings":0,"cell_chars":16384,"cell_head_chars":4096},"cells_cut":0,"cells_raw":0,"read":"whole","date_system":"1900"}

{"sheet":"Início","index":0,"n_rows":25,"n_cols":4,"rows_kept":25,"cut":false,"hidden":false,"merged":[[17,3,17,4],[25,10,25,13]]}
[]
[]
[]
[]
[]
[]
[]
[]
[]
[]
[]
[]
[]
[]
[]
[]
[]
[null,null,null,"Cadastro de usuário"]
[null,null,null,"Nome da organização"]
[null,null,null,"Endereço"]
[]
[null,null,null,"Nome do responsável"]
[null,null,null,"Contato"]
[null,null,null,"Data de preenchimento"]
[null,null,null,"Ano safra"]

{"sheet":"Introdução","index":1,"n_rows":59,"n_cols":4,"rows_kept":59,"cut":false,"hidden":false,"merged":[[35,2,35,5],[4,2,4,5],[5,2,5,5],[6,2,6,5],[17,2,17,5],[34,2,34,5],[53,3,53,5],[55,3,55,5],[58,3,58,5],[41,2,41,5],[43,3,43,5],[45,3,45,5],[47,3,47,5],[49,2,49,5],[51,3,51,5]]}
[]
[]
[null,null,"O GHG Protocol Agrícola"]
[]
[null,null,"O World Resources Institute (WRI) tem criado, em parceria com o World Business Council for Sustainable Development (WBCSD), protocolos internacionalmente aceitos para o desenvolvimento de inventários corporativos de gases de efeito estufa (GEE) há mais de 13 anos. Esses padrões, denominados genericamente de GHG Protocol, definem as melhores práticas internacionalmente aceitas para o desenvolvimento de inventários de GEE corporativos, de projetos ou de produtos. Para mais detalhes acesse: http://www.ghgprotocol.org/"]
[null,null,"Ao longo dos últimos anos, a demanda por diretrizes técnicas específicas para o setor agrícola mundial cresceu consideravelmente. No contexto brasileiro, as emissões estimadas dos setores agrícolas e de mudanças no uso do solo contribuem, respectivamente, com 35% e 22% das emissões nacionais (Segundo as Estimativas Anuais de emissões de gases e efeito estufa no Brasil, MCTI 2013. Disponível em http://www.mct.gov.br/upd_blob/0228/228468.pdf). Por estes motivos, o WRI iniciou em 2012 um projeto de 2 anos para criar novos recursos técnicos que fornecem às empresas e legisladores do Brasil ferramentas para mensurar e gerir de forma mais efetiva emissões agrícolas, o Projeto GHG Protocol Agrícola. No período compreendido entre 2012 e 2013, o projeto gerou dois recursos técnicos, as Diretrizes Agrícolas Brasileiras e a presente Ferramenta de Cálculo do GHG Protocol Agrícola."]
[null,null,"Combinados, estes recursos auxiliam os produtores, assim como outros atores das cadeias de valor do setor, a:"]
[null,null,null," - Incluir o reporte e a mitigação de emissões de GEE não mecânicas em suas estratégias de produção e planejamento anual;"]
[null,null,null," - Identificar oportunidades de redução destas emissões de GEE;"]
[null,null,null," - Rastrear progresso em direção de metas de redução;"]
[null,null,null," - Comunicar os resultados aos investidores e aos consumidores finais; e"]
[null,null,null," - Responder às demandas nacionais e internacionais por produtos menos intensivos em carbono."]
[]
[]
[]
[null,null,"A Ferramenta de Cálculo"]
[]
[null,null,"A Ferramenta de Cálculo do GHG Protocol Agrícola (referenciada também como “Ferramenta de Cálculo GHGPAg” ou apenas “Ferramenta”) é um produto proveniente de uma parceria entre WRI, Embrapa (Empresa Brasileira de Pesquisa Agropecuária) e Unicamp (Universidade Estadual de Campinas), que permite a contabilização das emissões de GEE utilizando metodologias específicas para a realidade nacional e focadas em fontes de emissão não mecânicas. A ferramenta é dividida em tipos de atividades agrícolas (soja, milho, algodão, trigo, feijão, arroz, cana-de-açúcar, pecuária e pastagem), sendo que as fontes de emissão consideradas pela Ferramenta em cada uma delas são:"]
[null,null,null," - Adubação orgânica"]
[null,null,null," - Aplicação de calcário"]
[null,null,null," - Aplicação de defensivos agrícolas"]
[null,null,null," - Aplicação de fertilizante nitrogenado sintético"]
[null,null,null," - Aplicação de ureia"]
[null,null,null," - Consumo de energia elétrica"]
[null,null,null," - Cultivo de arroz"]
[null,null,null," - Dejetos de animais em pastagens"]
[null,null,null," - Fermentação entérica"]
[null,null,null," - Fontes secundárias (deposição atmosférica e lixiviação ou escoamento superficial)"]
[null,null,null," - Manejo de dejetos"]
[null,null,null," - Manejo de dejetos de animais (exceto animais em pastagens)"]
[null,null,null," - Mudança de uso do solo"]
[null,null,null," - Operações mecanizadas"]
[null,null,null," - Queima de resíduos vegetais"]
[null,null,null," - Resíduos das culturas "]
[null,null,"A alocação de emissões realizada pela Ferramenta de Cálculo GHGPAg considera o produtor como seu público-alvo. Nos casos em que outros atores de cadeias agrícolas como, por exemplo, compradores, processadores, varejistas e consumidores finais, utilizarem os resultados fornecidos pela Ferramenta, é necessário um processo de realocação das emissões no escopo pertinente (ver item abaixo para mais detalhes sobre o reporte das emissões nos escopos do GHG Protocol)."]
[null,null,"É imprescindível que a Ferramenta de Cálculo GHGPAg e as Diretrizes Agrícolas Brasileiras sejam utilizadas em conjunto para a elaboração de um inventário de GEE agrícola, garantindo a consistência dos resultados de emissões de GEE com as diretrizes propostas pelo Projeto GHG Protocol Agrícola."]
[]
[]
[]
[null,null,"Reporte das emissões"]
[]
[null,null,"Segundo as diretrizes do GHG Protocol, o reporte das emissões de GEE são classificados de acordo com o grau de responsabilidade ou controle da organização inventariante perante a fonte das emissões – fontes diretas (fontes que pertencem ou são controladas pela organização inventariante) e fontes indiretas (fontes que pertencem ou são controladas por outra organização, mas são resultantes das atividades da organização inventariante). Este grau de responsabilidade é representado pelos Escopos 1, 2 e 3, cuja definição segue abaixo. Para facilitar a interpretação e evitar equívocos os escopos são marcados por diferentes cores na Ferramenta, conforme os quadros abaixo (Escopo1 = azul; Escopo 2 = laranja; Escopo 3 = amarelo e Emissões Biogênicas = verde):"]
[]
[null,null,null,"Escopo 1: São emissões diretas advindas de fontes da organização inventariante ou controladas por ela."]
[]
[null,null,null,"Escopo 2: Emissões indiretas provenientes da aquisição de energia elétrica e térmica que é consumida pela organização inventariante. Nesta categoria são incluídas as emissões de GEE relativas à geração de energia elétrica e térmica comprada pela organização."]
[]
[null,null,null,"Escopo 3: Todas as outras emissões indiretas, não relatadas no Escopo 2. As emissões do Escopo 3 são uma consequência das atividades da empresa, mas ocorrem em fontes que não pertencem ou não são controladas pela oraganização inventariante, geralmente relacionadas à cadeia de valor desta.  "]
[]
[null,null,"Além das emissões reportadas dentro dos Escopos, também são reportadas emissões biogênicas, sequestros de carbono, emissões líquidas e outros gases, conforme descritas abaixo: "]
[]
[null,null,null,"Emissões biogênicas: emissões de CO2 que provém da queima de biomassa (material biológico feito de carbono, hidrogênio e oxigênio). Queimar biomassa resulta em emissões consideradas neutras em termos de impacto climático, pois o CO2 é gerado através de um ciclo biológico curto (e não um ciclo geológico, como no caso do CO2 de origem fóssil). A queima de biomassa de vegetação nativa advinda de mudanças no uso da terra (ou seja, de desmatamento), não é considerada neutra em termos de impacto climático e deve ser reportada dentro dos escopos 1 ou 3. "]
[]
[null,null,null,"Sequestro de carbono: carbono removido da atmosfera, seja pelo uso da terra (exemplo: plantio direto) ou mudança no uso da terra (exemplo: reflorestamento) em atividades realizadas diretamente pela empresa inventariante."]
[]
[null,null,null,"Emissões líquidas: diferença entre as emissões totais e o sequestro de carbono, de acordo com a fórmula abaixo:"]
[]
[]
[null,null,null,"Outros gases: Outros gases emitidos em decorrência das atividades agrícolas (ex: CO, NOx e NMVOC)"]

{"sheet":"Equipe","index":2,"n_rows":21,"n_cols":2,"rows_kept":21,"cut":false,"hidden":false,"merged":[[20,1,20,4],[8,1,8,4],[16,1,16,4],[17,1,17,4],[18,1,18,4],[19,1,19,4],[10,1,10,4],[11,1,11,4],[12,1,12,4],[13,1,13,4],[14,1,14,4],[15,1,15,4]]}
[]
[]
[]
[]
[]
[]
[]
[]
[null,"Equipe"]
[]
[null,"Daniel Silveira Pinto Nassif"]
[null,"Eduardo Delgado Assad"]
[null,"Eduardo de Morais Pavão"]
[null,"Hilton Silveira Pinto"]
[null,"João Paulo da Silva"]
[null,"Juliano Daniel Groppo"]
[null,"Stephen Russel"]
[null,"Rachel Biderman"]
[null,"Roberto Strumpf"]
[null,"Stoécio Malta Ferreira Maia"]
[null,"Susian Christian Martins"]

{"sheet":"Síntese","index":3,"n_rows":125,"n_cols":18,"rows_kept":125,"cut":false,"hidden":false,"merged":[[119,13,120,13],[69,9,70,9],[79,9,80,9],[89,9,90,9],[99,9,100,9],[89,11,89,13],[88,1,88,17],[119,15,119,16],[119,2,119,11],[99,2,99,7],[99,11,99,13],[118,1,118,17],[98,1,98,17],[109,9,109,11],[108,1,108,17],[109,2,109,5],[14,1,14,10],[16,1,16,10],[28,1,28,10],[40,1,40,10],[36,1,36,10],[19,3,19,5],[19,6,19,9],[38,1,38,4],[30,1,30,4],[32,1,32,4],[34,1,34,4],[21,1,23,1],[26,1,26,2],[42,1,42,4],[44,1,44,4],[68,1,68,16],[59,11,59,13],[69,11,69,13],[48,1,48,17],[46,1,46,17],[49,11,49,13],[49,9,50,9],[59,9,60,9],[58,1,58,17],[59,2,59,7],[69,2,69,7],[79,2,79,7],[49,2,49,7],[79,11,79,13],[78,1,78,17],[109,7,110,7],[89,2,89,7]]}
[]
[]
[]
[]
[]
[]
[]
[]
[]
[]
[]
[]
[]
[]
[null,"Resumo das emissões"]
[]
[null,"1. Emissões por escopo"]
[]
[]
[null,null,null,"Emissões em toneladas métricas",null,null,"Emissões em toneladas de CO2 equivalente"]
[null,"Escopo","Categoria","CO2","CH4","N2O","CO2","CH4","N2O","CO2 eq."]
[null,"Escopo 1","Fontes mecânicas",{"$f":"SUM(I52,I62,I72,I82,I92,I102,G112,M122)","v":0},{"$f":"SUM(I54,I64,I74,I84,I94,I104,G114,M124)","v":0},{"$f":"SUM(I53,I63,I73,I83,I93,I103,G113,M123)","v":0},{"$f":"D22","v":0},{"$f":"ROUND(E22*25,2)","v":0},{"$f":"ROUND(F22*298,2)","v":0},{"$f":"SUM(G22:I22)","v":0}]
[null,null,"Fontes não-mecânicas",{"$f":"SUM(C52:D52,C62:D62,C72:D72,C82:D82,C92:D92,C102:D102,C112:D112,C122:D122)","v":0},{"$f":"SUM(F114,K124:L124)","v":0},{"$f":"SUM(E53:H53,E63:H63,E73:H73,E83:H83,E93:H93,E103:H103,E113,E123:J123)","v":0},{"$f":"D23","v":0},{"$f":"ROUND(E23*25,2)","v":0},{"$f":"ROUND(F23*298,2)","v":0},{"$f":"SUM(G23:I23)","v":0}]
[null,null,"Mudança de uso do solo",{"$f":"IF(ISNUMBER(J52),J52,0)+IF(ISNUMBER(J62),J62,0)+IF(ISNUMBER(J72),J72,0)+IF(ISNUMBER(J82),J82,0)+IF(ISNUMBER(J92),J92,0)+IF(ISNUMBER(J102),J102,0)+IF(ISNUMBER(H112),H112,0)+IF(ISNUMBER(N122),N122,0)","v":0},null,null,{"$f":"D24","v":0},null,null,{"$f":"SUM(G24:I24)","v":0}]
[null,"Escopo 2","Compra de energia",{"$f":"0","v":0},null,null,{"$f":"D25","v":0},null,null,{"$f":"SUM(G25:I25)","v":0}]
[null,"Escopo 3","Upstream",null,null,null,null,null,null,{"$f":"SUM(K57,K67,K77,K87,K97,K107,I117,O125)","v":0}]
[null,"Total",null,{"$f":"SUM(D23:D26)","v":0},{"$f":"SUM(E22:E26)","v":0},0,{"$f":"SUM(G22:G26)","v":0},{"$f":"SUM(H22:H26)","v":0},0,0]
[]
[null,"2. Emissões fora dos escopos (toneladas de CO2 equivalente)"]
[]
[null,"Carbono biogênico de uso do solo",null,null,null,{"$f":"IF(ISNUMBER(SUM(L57:M57,L67:M67,L77:M77,L87:M87,L97:M97,L107:M107,J117:K117,P125)),SUM(L57:M57,L67:M67,L77:M77,L87:M87,L97:M97,L107:M107,J117:K117,P125),0)","v":0}]
[]
[null,"Carbono biogênico de uso de biocombustíveis ",null,null,null,{"$f":"IF(ISNUMBER(SUM(N57,N67,N77,N87,N97,N107,L117,Q125)),SUM(N57,N67,N77,N87,N97,N107,L117,Q125),0)","v":0}]
[]
[null,"Sequestro de carbono",null,null,null,{"$f":"IF(AND(ISNUMBER(J57),J57<0),J57,0) + IF(AND(ISNUMBER(J67),J67<0),J67,0) + IF(AND(ISNUMBER(J77),J77<0),J77,0) + IF(AND(ISNUMBER(J87),J87<0),J87,0) + IF(AND(ISNUMBER(J97),J97<0),J97,0) + IF(AND(ISNUMBER(J107),J107<0),J107,0) + IF(AND(ISNUMBER(H117),H117<0),H117,0) + IF(AND(ISNUMBER(N125),N125<0),N125,0)","v":0}]
[]
[null,"3. Emissões líquidas (toneladas de CO2 equivalente)"]
[]
[null,"Emissões líquidas",null,null,null,{"$f":"SUM(J27,F31,F33)-F35","v":0}]
[]
[null,"4. Outras emissões (toneladas de CO2 equivalente)"]
[]
[null,"CO",null,null,null,{"$f":"IF(ISNUMBER(SUM(L55,L65,L75,L85,L95,L105,J115)),SUM(L55,L65,L75,L85,L95,L105,J115),0)","v":0}]
[]
[null,"NOX",null,null,null,{"$f":"IF(ISNUMBER(SUM(L56,L76,L86,L96,L106,J116,L66)),SUM(L56,L76,L86,L96,L106,J116,L66),0)","v":0}]
[]
[null,"Emissões em toneladas por categoria e atividade agrícola"]
[]
[null,"Soja"]
[null,null,"Fontes não-mecânicas",null,null,null,null,null,"Fontes mecânicas","Mudança de \nuso do solo","Upstream","Emissões biogênicas"]
[null,"GEE","Uréia","Calagem","Fertilizante nitrogenado sintético","Adubação orgânica","Lixiviação/Runoff\n(Emissões secundárias)","Dep. Atm. de N volatilizado\n(Emissões secundárias)","Operações mecanizadas",null,"Aplicação de defensivos agrícolas","Resíduos culturais\n(com ou sem queima)","Manejo solos orgânicos","Emissões de biodiesel","Emissões totais (toneladas)"]
[null,"CO2",{"$f":"C57","v":0},{"$f":"D57","v":0},null,null,null,null,{"$f":"IF(ISNUMBER(graos_consumodiesel),ROUND((graos_consumodiesel*0.95)*coef_fatoremissaooperacaomecanizadaco2,2), IF(ISNUMBER(coef_somahoramaquinasoja*coef_fatoremissaooperacaomecanizadaco2*(20*0.95)*graos_areacultivada),ROUND(coef_somahoramaquinasoja*coef_fatoremissaooperacaomecanizadaco2*(20*0.95)*graos_areacultivada,2),0))","v":0},{"$f":"J57","v":0},null,null,null,{"$f":"N57","v":0},{"$f":"SUM(C52:N52)","v":0}]
[null,"N2O",null,null,{"$f":"ROUND(E57/298,2)","v":0},{"$f":"ROUND(F57/298,2)","v":0},{"$f":"IF(ISNUMBER((((((graos_adubacaonitrogenada*(graos_nadubosintetico/100))+(graos_aplicacaoureia*0.45))+(IF(OR(graos_tipoadubacaoorganica=\"Esterco bovino\",graos_tipoadubacaoorganica=\"Esterco equino\",graos_tipoadubacaoorganica=\"Esterco suíno\",graos_tipoadubacaoorganica=\"Esterco ovino\"),porcentagemN_estercogeralemissaoindireta/100,IF(graos_tipoadubacaoorganica=\"Esterco de ave\",porcentagemN_estercoavesemissaoindireta/100,IF(graos_tipoadubacaoorganica=\"Composto orgânico\",porcentagemN_compostoorganicoemissaoindireta/100,IF(graos_tipoadubacaoorganica=\"Outros\",porcentagemN_outrosaduboorganicoemissaoindireta/100,0))))*graos_quantidadeaduboorganico))*0.3)*0.025)*0.001),ROUND((((((graos_adubacaonitrogenada*(graos_nadubosintetico/100))+(graos_aplicacaoureia*0.45))+(IF(OR(graos_tipoadubacaoorganica=\"Esterco bovino\",graos_tipoadubacaoorganica=\"Esterco equino\",graos_tipoadubacaoorganica=\"Esterco suíno\",graos_tipoadubacaoorganica=\"Esterco ovino\"),porcentagemN_estercogeralemissaoindireta/100,IF(graos_tipoadubacaoorganica=\"Esterco de ave\",porcentagemN_estercoavesemissaoindireta/100,IF(graos_tipoadubacaoorganica=\"Composto orgânico\",porcentagemN_compostoorganicoemissaoindireta/100,IF(graos_tipoadubacaoorganica=\"Outros\",porcentagemN_outrosaduboorganicoemissaoindireta/100,0))))*graos_quantidadeaduboorganico))*0.3)*0.025)*0.001,2),0)","v":0},{"$f":"IF(ISNUMBER(((((graos_adubacaonitrogenada*(graos_nadubosintetico/100))+((graos_aplicacaoureia*0.45)))*0.1)+((IF(OR(graos_tipoadubacaoorganica=\"Esterco bovino\",graos_tipoadubacaoorganica=\"Esterco equino\",graos_tipoadubacaoorganica=\"Esterco suíno\",graos_tipoadubacaoorganica=\"Esterco ovino\"),porcentagemN_estercogeralemissaoindireta/100,IF(graos_tipoadubacaoorganica=\"Esterco de ave\",porcentagemN_estercoavesemissaoindireta/100,IF(graos_tipoadubacaoorganica=\"Composto orgânico\",porcentagemN_compostoorganicoemissaoindireta/100,IF(graos_tipoadubacaoorganica=\"Outros\",porcentagemN_outrosaduboorganicoemissaoindireta/100,0))))*graos_quantidadeaduboorganico)*0.2)*0.01)*0.001),ROUND(((((graos_adubacaonitrogenada*(graos_nadubosintetico/100))+((graos_aplicacaoureia*0.45)))*0.1)+((IF(OR(graos_tipoadubacaoorganica=\"Esterco bovino\",graos_tipoadubacaoorganica=\"Esterco equino\",graos_tipoadubacaoorganica=\"Esterco suíno\",graos_tipoadubacaoorganica=\"Esterco ovino\"),porcentagemN_estercogeralemissaoindireta/100,IF(graos_tipoadubacaoorganica=\"Esterco de ave\",porcentagemN_estercoavesemissaoindireta/100,IF(graos_tipoadubacaoorganica=\"Composto orgânico\",porcentagemN_compostoorganicoemissaoindireta/100,IF(graos_tipoadubacaoorganica=\"Outros\",porcentagemN_outrosaduboorganicoemissaoindireta/100,0))))*graos_quantidadeaduboorganico)*0.2)*0.01)*0.001,2),0)","v":0},{"$f":"IF(ISNUMBER(graos_consumodiesel),ROUND((graos_consumodiesel*0.95)*coef_fatoremissaooperacaomecanizadan2o,2), IF(ISNUMBER(coef_somahoramaquinasoja*coef_fatoremissaooperacaomecanizadan2o*(20*0.95)*graos_areacultivada),ROUND(coef_somahoramaquinasoja*coef_fatoremissaooperacaomecanizadan2o*(20*0.95)*graos_areacultivada,2),0))","v":0},null,null,{"$f":"IF(ISNUMBER(graos_produtividademedia*graos_areaqueimaresiduos*coef_queimadasojan2o),ROUND(graos_produtividademedia*graos_areaqueimaresiduos*coef_queimadasojan2o,2),0)","v":0},{"$f":"ROUND(M57/298,2)","v":0},null,{"$f":"SUM(C53:N53)","v":0}]
[null,"CH4",null,null,null,null,null,null,{"$f":"IF(ISNUMBER(graos_consumodiesel),ROUND((graos_consumodiesel*0.95)*coef_fatoremissaooperacaomecanizadach4,2), IF(ISNUMBER(coef_somahoramaquinasoja*coef_fatoremissaooperacaomecanizadach4*(20*0.95)*graos_areacultivada),ROUND(coef_somahoramaquinasoja*coef_fatoremissaooperacaomecanizadach4*(20*0.95)*graos_areacultivada,2),0))","v":0},null,null,{"$f":"IF(ISNUMBER(graos_produtividademedia*graos_areaqueimaresiduos*coef_queimadasojach4),ROUND(graos_produtividademedia*graos_areaqueimaresiduos*coef_queimadasojach4,2),0)","v":0},null,null,0]
[null,"CO",null,null,null,null,null,null,null,null,null,{"$f":"IF(ISNUMBER(graos_produtividademedia*graos_areaqueimaresiduos*coef_queimadasojaco),graos_produtividademedia*graos_areaqueimaresiduos*coef_queimadasojaco,0)","v":0},null,null,0]
[null,"NOx",null,null,null,null,null,null,null,null,null,{"$f":"IF(ISNUMBER(graos_produtividademedia*graos_areaqueimaresiduos*coef_queimadasojanox),graos_produtividademedia*graos_areaqueimaresiduos*coef_queimadasojanox,0)","v":0},null,null,0]
[null,"CO2 eq.",{"$f":"IF(ISNUMBER(graos_aplicacaoureia*coef_aplicacaoureia),ROUND(graos_aplicacaoureia*coef_aplicacaoureia,2),0)","v":0},{"$f":"IF(ISNUMBER(graos_calcariocalcitico*coef_calcariocalcitico +graos_calcariodolomitico*coef_calcariodolomitico),ROUND(graos_calcariocalcitico*coef_calcariocalcitico +graos_calcariodolomitico*coef_calcariodolomitico,2),0)","v":0},{"$f":"IF(ISNUMBER(((graos_aplicacaoureia*0.45)+(graos_adubacaonitrogenada* (graos_nadubosintetico/100)))*coef_nsintetico),ROUND(((graos_aplicacaoureia*0.45)+(graos_adubacaonitrogenada* (graos_nadubosintetico/100)))*coef_nsintetico,2),0)","v":0},{"$f":"IF(ISNUMBER(graos_quantidadeaduboorganico *IF(OR(graos_tipoadubacaoorganica=\"Esterco bovino\",graos_tipoadubacaoorganica=\"Esterco equino\",graos_tipoadubacaoorganica=\"Esterco suíno\",graos_tipoadubacaoorganica=\"Esterco ovino\"),coef_estercogeralemissaodireta,IF(graos_tipoadubacaoorganica=\"Esterco de ave\",coef_estercoaveemissaodireta,IF(graos_tipoadubacaoorganica=\"Composto orgânico\",coef_compostoorganicoemissaodireta,IF(graos_tipoadubacaoorganica=\"Outros\",coef_outrosemissaodireta,0))))),ROUND(graos_quantidadeaduboorganico*IF(OR(graos_tipoadubacaoorganica=\"Esterco bovino\",graos_tipoadubacaoorganica=\"Esterco equino\",graos_tipoadubacaoorganica=\"Esterco suíno\",graos_tipoadubacaoorganica=\"Esterco ovino\"),coef_estercogeralemissaodireta,IF(graos_tipoadubacaoorganica=\"Esterco de ave\",coef_estercoaveemissaodireta,IF(graos_tipoadubacaoorganica=\"Composto orgânico\",coef_compostoorganicoemissaodireta,IF(graos_tipoadubacaoorganica=\"Outros\",coef_outrosemissaodireta,0)))),2),0)","v":0},{"$f":"ROUND(G53*298,2)","v":0},{"$f":"ROUND(H53*298,2)","v":0},{"$f":"ROUND(I52+(I53*25)+(I54*298),2)","v":0},{"$f":"IF(graos_tempoadocaosistema = \"Menor ou igual a 20 anos\",IF(ISNUMBER(coef_mudancausosolograos*graos_areacultivada),ROUND(coef_mudancausosolograos*graos_areacultivada,2),0),0)","v":0},{"$f":"IF(ISNUMBER(graos_aplicacaoherbicidas),ROUND(((graos_aplicacaoherbicidas)*coef_aplicacaoherbicida)/1000,2),0) + IF(ISNUMBER(graos_aplicacaofungicidas),ROUND(((graos_aplicacaofungicidas)*coef_aplicacaofungicida)/1000,2),0)+IF(ISNUMBER(graos_aplicacaoinseticida),ROUND(((graos_aplicacaoinseticida)*coef_aplicacaoinseticida)/1000,2),0)","v":0},{"$f":"IF(ISNUMBER(coef_nresiduosoja * graos_areacultivada * (((graos_areaqueimaresiduos*100)/graos_areacultivada)/100)),ROUND(coef_nresiduosoja * graos_areacultivada * (((graos_areaqueimaresiduos*100)/graos_areacultivada)/100),2),0) + IF(ISNUMBER(coef_queimadasoja * graos_areacultivada * (((graos_areaqueimaresiduos*100)/graos_areacultivada)/100)),ROUND(coef_queimadasoja * graos_areacultivada * (((graos_areaqueimaresiduos*100)/graos_areacultivada)/100),2),0)","v":0},{"$f":"IF(ISNUMBER(graos_cultivosoloorganico*coef_manejosoloorganico),ROUND(graos_cultivosoloorganico*coef_manejosoloorganico,2),0)","v":0},{"$f":"IF(ISNUMBER(graos_consumodiesel),ROUND((graos_consumodiesel*0.05)*coef_fatoremissaooperacaomecanizadabiodiesel,2), IF(ISNUMBER(coef_somahoramaquinasoja*coef_fatoremissaooperacaomecanizadabiodiesel*(20*0.05)*graos_areacultivada),ROUND(coef_somahoramaquinasoja*coef_fatoremissaooperacaomecanizadabiodiesel*(20*0.05)*graos_areacultivada,2),0))","v":0},0]
[]
[null,"Milho"]
[null,null,"Fontes não-mecânicas",null,null,null,null,null,"Fontes mecânicas","Mudança de \nuso do solo","Upstream","Emissões biogênicas"]
[null,"GEE","Uréia","Calagem","Fertilizante nitrogenado sintético","Adubação orgânica","Lixiviação/Runoff\n(Emissões secundárias)","Dep. Atm. de N volatilizado\n(Emissões secundárias)","Operações mecanizadas",null,"Aplicação de defensivos agrícolas","Resíduos culturais\n(com ou sem queima)","Manejo solos orgânicos","Emissões de biodiesel","Emissões totais (toneladas)"]
[null,"CO2",{"$f":"C67","v":0},{"$f":"D67","v":0},null,null,null,null,{"$f":"IF(ISNUMBER(milho_consumodiesel),ROUND(milho_consumodiesel*coef_fatoremissaooperacaomecanizadaco2,2), IF(ISNUMBER(coef_somahoramaquinamilho*coef_fatoremissaooperacaomecanizadaco2*(20*0.95)*milho_areacultivada),ROUND(coef_somahoramaquinamilho*coef_fatoremissaooperacaomecanizadaco2*(20*0.95)*milho_areacultivada,2),0))","v":0},{"$f":"J67","v":0},null,null,null,{"$f":"N67","v":0},{"$f":"SUM(C62:N62)","v":0}]
[null,"N2O",null,null,{"$f":"ROUND(E67/298,2)","v":0},{"$f":"ROUND(F67/298,2)","v":0},{"$f":"IF(ISNUMBER((((((milho_adubacaonitrogenada*(milho_nadubosintetico/100))+(milho_aplicacaoureia*0.45))+(IF(OR(milho_tipoadubacaoorganica=\"Esterco bovino\",milho_tipoadubacaoorganica=\"Esterco equino\",milho_tipoadubacaoorganica=\"Esterco suíno\",milho_tipoadubacaoorganica=\"Esterco ovino\"),porcentagemN_estercogeralemissaoindireta/100,IF(milho_tipoadubacaoorganica=\"Esterco de ave\",porcentagemN_estercoavesemissaoindireta/100,IF(milho_tipoadubacaoorganica=\"Composto orgânico\",porcentagemN_compostoorganicoemissaoindireta/100,IF(milho_tipoadubacaoorganica=\"Outros\",porcentagemN_outrosaduboorganicoemissaoindireta/100,0))))*milho_quantidadeaduboorganico))*0.3)*0.025)*0.001),ROUND((((((milho_adubacaonitrogenada*(milho_nadubosintetico/100))+(milho_aplicacaoureia*0.45))+(IF(OR(milho_tipoadubacaoorganica=\"Esterco bovino\",milho_tipoadubacaoorganica=\"Esterco equino\",milho_tipoadubacaoorganica=\"Esterco suíno\",milho_tipoadubacaoorganica=\"Esterco ovino\"),porcentagemN_estercogeralemissaoindireta/100,IF(milho_tipoadubacaoorganica=\"Esterco de ave\",porcentagemN_estercoavesemissaoindireta/100,IF(milho_tipoadubacaoorganica=\"Composto orgânico\",porcentagemN_compostoorganicoemissaoindireta/100,IF(milho_tipoadubacaoorganica=\"Outros\",porcentagemN_outrosaduboorganicoemissaoindireta/100,0))))*milho_quantidadeaduboorganico))*0.3)*0.025)*0.001,2),0)","v":0},{"$f":"IF(ISNUMBER(((((milho_adubacaonitrogenada*(milho_nadubosintetico/100))+((milho_aplicacaoureia*0.45)))*0.1)+((IF(OR(milho_tipoadubacaoorganica=\"Esterco bovino\",milho_tipoadubacaoorganica=\"Esterco equino\",milho_tipoadubacaoorganica=\"Esterco suíno\",milho_tipoadubacaoorganica=\"Esterco ovino\"),porcentagemN_estercogeralemissaoindireta/100,IF(milho_tipoadubacaoorganica=\"Esterco de ave\",porcentagemN_estercoavesemissaoindireta/100,IF(milho_tipoadubacaoorganica=\"Composto orgânico\",porcentagemN_compostoorganicoemissaoindireta/100,IF(milho_tipoadubacaoorganica=\"Outros\",porcentagemN_outrosaduboorganicoemissaoindireta/100,0))))*milho_quantidadeaduboorganico)*0.2)*0.01)*0.001),ROUND(((((milho_adubacaonitrogenada*(milho_nadubosintetico/100))+((milho_aplicacaoureia*0.45)))*0.1)+((IF(OR(milho_tipoadubacaoorganica=\"Esterco bovino\",milho_tipoadubacaoorganica=\"Esterco equino\",milho_tipoadubacaoorganica=\"Esterco suíno\",milho_tipoadubacaoorganica=\"Esterco ovino\"),porcentagemN_estercogeralemissaoindireta/100,IF(milho_tipoadubacaoorganica=\"Esterco de ave\",porcentagemN_estercoavesemissaoindireta/100,IF(milho_tipoadubacaoorganica=\"Composto orgânico\",porcentagemN_compostoorganicoemissaoindireta/100,IF(milho_tipoadubacaoorganica=\"Outros\",porcentagemN_outrosaduboorganicoemissaoindireta/100,0))))*milho_quantidadeaduboorganico)*0.2)*0.01)*0.001,2),0)","v":0},{"$f":"IF(ISNUMBER(milho_consumodiesel),ROUND(milho_consumodiesel*coef_fatoremissaooperacaomecanizadan2o,2), IF(ISNUMBER(coef_somahoramaquinamilho*coef_fatoremissaooperacaomecanizadan2o*(20*0.95)*milho_areacultivada),ROUND(coef_somahoramaquinamilho*coef_fatoremissaooperacaomecanizadan2o*(20*0.95)*milho_areacultivada,2),0))","v":0},null,null,{"$f":"IF(ISNUMBER(milho_produtividademedia*milho_areaqueimaresiduos*coef_queimadamilhon2o),ROUND(milho_produtividademedia*milho_areaqueimaresiduos*coef_queimadamilhon2o,2),0)","v":0},{"$f":"ROUND(M67/298,2)","v":0},null,{"$f":"SUM(C63:N63)","v":0}]
[null,"CH4",null,null,null,null,null,null,{"$f":"IF(ISNUMBER(milho_consumodiesel),ROUND(milho_consumodiesel*coef_fatoremissaooperacaomecanizadach4,2), IF(ISNUMBER(coef_somahoramaquinamilho*coef_fatoremissaooperacaomecanizadach4*(20*0.95)*milho_areacultivada),ROUND(coef_somahoramaquinamilho*coef_fatoremissaooperacaomecanizadach4*(20*0.95)*milho_areacultivada,2),0))","v":0},null,null,{"$f":"IF(ISNUMBER(milho_produtividademedia*milho_areaqueimaresiduos*coef_queimadamilhoch4),ROUND(milho_produtividademedia*milho_areaqueimaresiduos*coef_queimadamilhoch4,2),0)","v":0},null,null,0]
[null,"CO",null,null,null,null,null,null,null,null,null,{"$f":"IF(ISNUMBER(milho_produtividademedia*milho_areaqueimaresiduos*coef_queimadamilhoco),ROUND(milho_produtividademedia*milho_areaqueimaresiduos*coef_queimadamilhoco,2),0)","v":0},null,null,0]
[null,"NOx",null,null,null,null,null,null,null,null,null,{"$f":"IF(ISNUMBER(milho_produtividademedia*milho_areaqueimaresiduos*coef_queimadamilhonox),milho_produtividademedia*milho_areaqueimaresiduos*coef_queimadamilhonox,0)","v":0},null,null,0]
[null,"CO2 eq.",{"$f":"IF(ISNUMBER(milho_aplicacaoureia*coef_aplicacaoureia),ROUND(milho_aplicacaoureia*coef_aplicacaoureia,2),0)","v":0},{"$f":"IF(ISNUMBER(milho_calcariocalcitico*coef_calcariocalcitico +milho_calcariodolomitico*coef_calcariodolomitico),ROUND(milho_calcariocalcitico*coef_calcariocalcitico +milho_calcariodolomitico*coef_calcariodolomitico,2),0)","v":0},{"$f":"IF(ISNUMBER(((milho_aplicacaoureia*0.45)+(milho_adubacaonitrogenada* (milho_nadubosintetico/100)))*coef_nsintetico),ROUND(((milho_aplicacaoureia*0.45)+(milho_adubacaonitrogenada* (milho_nadubosintetico/100)))*coef_nsintetico,2),0)","v":0},{"$f":"IF(ISNUMBER(milho_quantidadeaduboorganico * IF(OR(\"Esterco bovino\",milho_tipoadubacaoorganica=\"Esterco equino\",milho_tipoadubacaoorganica=\"Esterco suíno\",milho_tipoadubacaoorganica=\"Esterco ovino\"),coef_estercogeralemissaodireta,IF(milho_tipoadubacaoorganica=\"Esterco de ave\",coef_estercoaveemissaodireta,IF(milho_tipoadubacaoorganica=\"Composto orgânico\",coef_compostoorganicoemissaodireta,IF(milho_tipoadubacaoorganica=\"Outros\",coef_outrosemissaodireta,0))))),ROUND(milho_quantidadeaduboorganico * IF(OR(milho_tipoadubacaoorganica=\"Esterco bovino\",milho_tipoadubacaoorganica=\"Esterco equino\",milho_tipoadubacaoorganica=\"Esterco suíno\",milho_tipoadubacaoorganica=\"Esterco ovino\"),coef_estercogeralemissaodireta,IF(milho_tipoadubacaoorganica=\"Esterco de ave\",coef_estercoaveemissaodireta,IF(milho_tipoadubacaoorganica=\"Composto orgânico\",coef_compostoorganicoemissaodireta,IF(milho_tipoadubacaoorganica=\"Outros\",coef_outrosemissaodireta,0)))),2),0)","v":0},{"$f":"ROUND(G63*298,2)","v":0},{"$f":"ROUND(H63*298,2)","v":0},{"$f":"ROUND(I62+(I63*25)+(I64*298),2)","v":0},{"$f":"IF(milho_tempoadocaosistema = \"Menor ou igual a 20 anos\",IF(ISNUMBER(coef_mudancausosolomilho*milho_areacultivada),ROUND(coef_mudancausosolomilho*milho_areacultivada,2),0),0)","v":0},{"$f":"IF(ISNUMBER(milho_aplicacaoherbicidas),ROUND(((milho_aplicacaoherbicidas)*coef_aplicacaoherbicida)/1000,2),0) + IF(ISNUMBER(milho_aplicacaofungicidas),ROUND(((milho_aplicacaofungicidas)*coef_aplicacaofungicida)/1000,2),0)+IF(ISNUMBER(milho_aplicacaoinseticida),ROUND(((milho_aplicacaoinseticida)*coef_aplicacaoinseticida)/1000,2),0)","v":0},{"$f":"IF(ISNUMBER(coef_nresiduomilho * milho_areacultivada * (((milho_areaqueimaresiduos*100)/milho_areacultivada)/100)),ROUND(coef_nresiduomilho *milho_areacultivada * (((milho_areaqueimaresiduos*100)/milho_areacultivada)/100),2),0) + IF(ISNUMBER(coef_queimadamilho * milho_areacultivada * (((milho_areaqueimaresiduos*100)/milho_areacultivada)/100)),ROUND(coef_queimadamilho * milho_areacultivada * (((milho_areaqueimaresiduos*100)/milho_areacultivada)/100),2),0)","v":0},{"$f":"IF(ISNUMBER(milho_cultivosoloorganico*coef_manejosoloorganico),ROUND(milho_cultivosoloorganico*coef_manejosoloorganico,2),0)","v":0},{"$f":"IF(ISNUMBER(milho_consumodiesel),ROUND((milho_consumodiesel*0.05)*coef_fatoremissaooperacaomecanizadabiodiesel,2), IF(ISNUMBER(coef_somahoramaquinamilho*coef_fatoremissaooperacaomecanizadabiodiesel*(20*0.05)*milho_areacultivada),ROUND(coef_somahoramaquinamilho*coef_fatoremissaooperacaomecanizadabiodiesel*(20*0.05)*milho_areacultivada,2),0))","v":0},0]
[]
[null,"Algodão"]
[null,null,"Fontes não-mecânicas",null,null,null,null,null,"Fontes mecânicas","Mudança de \nuso do solo","Upstream","Emissões biogênicas"]
[null,"GEE","Uréia","Calagem","Fertilizante nitrogenado sintético","Adubação orgânica","Lixiviação/Runoff\n(Emissões secundárias)","Dep. Atm. de N volatilizado\n(Emissões secundárias)","Operações mecanizadas",null,"Aplicação de defensivos agrícolas","Resíduos culturais\n(com ou sem queima)","Manejo solos orgânicos","Emissões de biodiesel","Emissões totais (toneladas)"]
[null,"CO2",{"$f":"C77","v":0},{"$f":"D77","v":0},null,null,null,null,{"$f":"IF(ISNUMBER(algodao_consumodiesel),ROUND(algodao_consumodiesel*coef_fatoremissaooperacaomecanizadaco2,2), IF(ISNUMBER(coef_somahoramaquinaalgodao*coef_fatoremissaooperacaomecanizadaco2*(20*0.95)*algodao_areacultivada),ROUND(coef_somahoramaquinaalgodao*coef_fatoremissaooperacaomecanizadaco2*(20*0.95)*algodao_areacultivada,2),0))","v":0},{"$f":"J77","v":0},null,null,null,{"$f":"N77","v":0},{"$f":"SUM(C72:N72)","v":0}]
[null,"N2O",null,null,{"$f":"ROUND(E77/298,2)","v":0},{"$f":"ROUND(F77/298,2)","v":0},{"$f":"IF(ISNUMBER((((((algodao_adubacaonitrogenada*(algodao_nadubosintetico/100))+(algodao_aplicacaoureia*0.45))+(IF(OR(algodao_tipoadubacaoorganica=\"Esterco bovino\",algodao_tipoadubacaoorganica=\"Esterco equino\",algodao_tipoadubacaoorganica=\"Esterco suíno\",algodao_tipoadubacaoorganica=\"Esterco ovino\"),porcentagemN_estercogeralemissaoindireta/100,IF(algodao_tipoadubacaoorganica=\"Esterco de ave\",porcentagemN_estercoavesemissaoindireta/100,IF(algodao_tipoadubacaoorganica=\"Composto orgânico\",porcentagemN_compostoorganicoemissaoindireta/100,IF(algodao_tipoadubacaoorganica=\"Outros\",porcentagemN_outrosaduboorganicoemissaoindireta/100,0))))*algodao_quantidadeaduboorganico))*0.3)*0.025)*0.001),ROUND((((((algodao_adubacaonitrogenada*(algodao_nadubosintetico/100))+(algodao_aplicacaoureia*0.45))+(IF(OR(algodao_tipoadubacaoorganica=\"Esterco bovino\",algodao_tipoadubacaoorganica=\"Esterco equino\",algodao_tipoadubacaoorganica=\"Esterco suíno\",algodao_tipoadubacaoorganica=\"Esterco ovino\"),porcentagemN_estercogeralemissaoindireta/100,IF(algodao_tipoadubacaoorganica=\"Esterco de ave\",porcentagemN_estercoavesemissaoindireta/100,IF(algodao_tipoadubacaoorganica=\"Composto orgânico\",porcentagemN_compostoorganicoemissaoindireta/100,IF(algodao_tipoadubacaoorganica=\"Outros\",porcentagemN_outrosaduboorganicoemissaoindireta/100,0))))*algodao_quantidadeaduboorganico))*0.3)*0.025)*0.001,2),0)","v":0},{"$f":"IF(ISNUMBER(((((algodao_adubacaonitrogenada*(algodao_nadubosintetico/100))+((algodao_aplicacaoureia*0.45)))*0.1)+((IF(OR(algodao_tipoadubacaoorganica=\"Esterco bovino\",algodao_tipoadubacaoorganica=\"Esterco equino\",algodao_tipoadubacaoorganica=\"Esterco suíno\",algodao_tipoadubacaoorganica=\"Esterco ovino\"),porcentagemN_estercogeralemissaoindireta/100,IF(algodao_tipoadubacaoorganica=\"Esterco de ave\",porcentagemN_estercoavesemissaoindireta/100,IF(algodao_tipoadubacaoorganica=\"Composto orgânico\",porcentagemN_compostoorganicoemissaoindireta/100,IF(algodao_tipoadubacaoorganica=\"Outros\",porcentagemN_outrosaduboorganicoemissaoindireta/100,0))))*algodao_quantidadeaduboorganico)*0.2)*0.01)*0.001),ROUND(((((algodao_adubacaonitrogenada*(algodao_nadubosintetico/100))+((algodao_aplicacaoureia*0.45)))*0.1)+((IF(OR(algodao_tipoadubacaoorganica=\"Esterco bovino\",algodao_tipoadubacaoorganica=\"Esterco equino\",algodao_tipoadubacaoorganica=\"Esterco suíno\",algodao_tipoadubacaoorganica=\"Esterco ovino\"),porcentagemN_estercogeralemissaoindireta/100,IF(algodao_tipoadubacaoorganica=\"Esterco de ave\",porcentagemN_estercoavesemissaoindireta/100,IF(algodao_tipoadubacaoorganica=\"Composto orgânico\",porcentagemN_compostoorganicoemissaoindireta/100,IF(algodao_tipoadubacaoorganica=\"Outros\",porcentagemN_outrosaduboorganicoemissaoindireta/100,0))))*algodao_quantidadeaduboorganico)*0.2)*0.01)*0.001,2),0)","v":0},{"$f":"IF(ISNUMBER(algodao_consumodiesel),ROUND(algodao_consumodiesel*coef_fatoremissaooperacaomecanizadan2o,2), IF(ISNUMBER(coef_somahoramaquinaalgodao*coef_fatoremissaooperacaomecanizadan2o*(20*0.95)*algodao_areacultivada),ROUND(coef_somahoramaquinaalgodao*coef_fatoremissaooperacaomecanizadan2o*(20*0.95)*algodao_areacultivada,2),0))","v":0},null,null,{"$f":"IF(ISNUMBER(algodao_produtividademedia*algodao_areaqueimaresiduos*coef_queimadaalgodaon2o),ROUND(algodao_produtividademedia*algodao_areaqueimaresiduos*coef_queimadaalgodaon2o,2),0)","v":0},{"$f":"ROUND(M77/298,2)","v":0},null,{"$f":"SUM(C73:N73)","v":0}]
[null,"CH4",null,null,null,null,null,null,{"$f":"IF(ISNUMBER(algodao_consumodiesel),ROUND(algodao_consumodiesel*coef_fatoremissaooperacaomecanizadach4,2), IF(ISNUMBER(coef_somahoramaquinaalgodao*coef_fatoremissaooperacaomecanizadach4*(20*0.95)*algodao_areacultivada),ROUND(coef_somahoramaquinaalgodao*coef_fatoremissaooperacaomecanizadach4*(20*0.95)*algodao_areacultivada,2),0))","v":0},null,null,{"$f":"IF(ISNUMBER(algodao_produtividademedia*algodao_areaqueimaresiduos*coef_queimadaalgodaoch4),ROUND(algodao_produtividademedia*algodao_areaqueimaresiduos*coef_queimadaalgodaoch4,2),0)","v":0},null,null,0]
[null,"CO",null,null,null,null,null,null,null,null,null,{"$f":"IF(ISNUMBER(algodao_produtividademedia*algodao_areaqueimaresiduos*coef_queimadaalgodaoco),ROUND(algodao_produtividademedia*algodao_areaqueimaresiduos*coef_queimadaalgodaoco,2),0)","v":0},null,null,0]
[null,"NOx",null,null,null,null,null,null,null,null,null,{"$f":"IF(ISNUMBER(algodao_produtividademedia*algodao_areaqueimaresiduos*coef_queimadaalgodaonox),ROUND(algodao_produtividademedia*algodao_areaqueimaresiduos*coef_queimadaalgodaonox,2),0)","v":0},null,null,0]
[null,"CO2 eq.",{"$f":"IF(ISNUMBER(algodao_aplicacaoureia*coef_aplicacaoureia),ROUND(algodao_aplicacaoureia*coef_aplicacaoureia,2),0)","v":0},{"$f":"IF(ISNUMBER(algodao_calcariocalcitico*coef_calcariocalcitico +algodao_calcariodolomitico*coef_calcariodolomitico),ROUND(algodao_calcariocalcitico*coef_calcariocalcitico +algodao_calcariodolomitico*coef_calcariodolomitico,2),0)","v":0},{"$f":"IF(ISNUMBER(((algodao_aplicacaoureia*0.45)+(algodao_adubacaonitrogenada* (algodao_nadubosintetico/100)))*coef_nsintetico),ROUND(((algodao_aplicacaoureia*0.45)+(algodao_adubacaonitrogenada* (algodao_nadubosintetico/100)))*coef_nsintetico,2),0)","v":0},{"$f":"IF(ISNUMBER(algodao_quantidadeaduboorganico *IF(OR(algodao_tipoadubacaoorganica=\"Esterco bovino\",algodao_tipoadubacaoorganica=\"Esterco equino\",algodao_tipoadubacaoorganica=\"Esterco suíno\",algodao_tipoadubacaoorganica=\"Esterco ovino\"),coef_estercogeralemissaodireta,IF(algodao_tipoadubacaoorganica=\"Esterco de ave\",coef_estercoaveemissaodireta,IF(algodao_tipoadubacaoorganica=\"Composto orgânico\",coef_compostoorganicoemissaodireta,IF(algodao_tipoadubacaoorganica=\"Outros\",coef_outrosemissaodireta,0))))),ROUND(algodao_quantidadeaduboorganico *IF(OR(algodao_tipoadubacaoorganica=\"Esterco bovino\",algodao_tipoadubacaoorganica=\"Esterco equino\",algodao_tipoadubacaoorganica=\"Esterco suíno\",algodao_tipoadubacaoorganica=\"Esterco ovino\"),coef_estercogeralemissaodireta,IF(algodao_tipoadubacaoorganica=\"Esterco de ave\",coef_estercoaveemissaodireta,IF(algodao_tipoadubacaoorganica=\"Composto orgânico\",coef_compostoorganicoemissaodireta,IF(algodao_tipoadubacaoorganica=\"Outros\",coef_outrosemissaodireta,0)))),2),0)","v":0},{"$f":"ROUND(G73*298,2)","v":0},{"$f":"ROUND(H73*298,2)","v":0},{"$f":"ROUND(I72+(I73*25)+(I74*298),2)","v":0},{"$f":"IF(algodao_tempoadocaosistema = \"Menor ou igual a 20 anos\",IF(ISNUMBER(coef_mudancausosoloalgodao*algodao_areacultivada),ROUND(coef_mudancausosoloalgodao*algodao_areacultivada,2),0),0)","v":0},{"$f":"IF(ISNUMBER(algodao_aplicacaoherbicidas),ROUND(((algodao_aplicacaoherbicidas)*coef_aplicacaoherbicida)/1000,2),0) + IF(ISNUMBER(algodao_aplicacaofungicidas),ROUND(((algodao_aplicacaofungicidas)*coef_aplicacaofungicida)/1000,2),0)+IF(ISNUMBER(algodao_aplicacaoinseticida),ROUND(((algodao_aplicacaoinseticida)*coef_aplicacaoinseticida)/1000,2),0)","v":0},{"$f":"IF(ISNUMBER(coef_nresiduoalgodao * algodao_areacultivada * (((algodao_areaqueimaresiduos*100)/algodao_areacultivada)/100)),ROUND(coef_nresiduoalgodao * algodao_areacultivada * (((algodao_areaqueimaresiduos*100)/algodao_areacultivada)/100),2),0) + IF(ISNUMBER(coef_queimadaalgodao * algodao_areacultivada * (((algodao_areaqueimaresiduos*100)/algodao_areacultivada)/100)),ROUND(coef_queimadaalgodao * algodao_areacultivada * (((algodao_areaqueimaresiduos*100)/algodao_areacultivada)/100),2),0)","v":0},{"$f":"IF(ISNUMBER(algodao_cultivosoloorganico*coef_manejosoloorganico),ROUND(algodao_cultivosoloorganico*coef_manejosoloorganico,2),0)","v":0},{"$f":"IF(ISNUMBER(algodao_consumodiesel),ROUND((algodao_consumodiesel*0.05)*coef_fatoremissaooperacaomecanizadabiodiesel,2), IF(ISNUMBER(coef_somahoramaquinaalgodao*coef_fatoremissaooperacaomecanizadabiodiesel*(20*0.05)*algodao_areacultivada),ROUND(coef_somahoramaquinaalgodao*coef_fatoremissaooperacaomecanizadabiodiesel*(20*0.05)*algodao_areacultivada,2),0))","v":0},0]
[]
[null,"Trigo"]
[null,null,"Fontes não-mecânicas",null,null,null,null,null,"Fontes mecânicas","Mudança de \nuso do solo","Upstream","Emissões biogênicas"]
[null,"GEE","Uréia","Calagem","Fertilizante nitrogenado sintético","Adubação orgânica","Lixiviação/Runoff\n(Emissões secundárias)","Dep. Atm. de N volatilizado\n(Emissões secundárias)","Operações mecanizadas",null,"Aplicação de defensivos agrícolas","Resíduos culturais\n(com ou sem queima)","Manejo solos orgânicos","Emissões de biodiesel","Emissões totais (toneladas)"]
[null,"CO2",{"$f":"C87","v":0},{"$f":"D87","v":0},null,null,null,null,{"$f":"IF(ISNUMBER(trigo_consumodiesel),ROUND(trigo_consumodiesel*coef_fatoremissaooperacaomecanizadaco2,2), IF(ISNUMBER(coef_somahoramaquinatrigo*coef_fatoremissaooperacaomecanizadaco2*(20*0.95)*trigo_areacultivada),ROUND(coef_somahoramaquinatrigo*coef_fatoremissaooperacaomecanizadaco2*(20*0.95)*trigo_areacultivada,2),0))","v":0},{"$f":"J87","v":0},null,null,null,{"$f":"N87","v":0},{"$f":"SUM(C82:N82)","v":0}]
[null,"N2O",null,null,{"$f":"ROUND(E87/298,2)","v":0},{"$f":"ROUND(F87/298,2)","v":0},{"$f":"IF(ISNUMBER((((((trigo_adubacaonitrogenada*(trigo_nadubosintetico/100))+(trigo_aplicacaoureia*0.45))+(IF(OR(trigo_tipoadubacaoorganica=\"Esterco bovino\",trigo_tipoadubacaoorganica=\"Esterco equino\",trigo_tipoadubacaoorganica=\"Esterco suíno\",trigo_tipoadubacaoorganica=\"Esterco ovino\"),porcentagemN_estercogeralemissaoindireta/100,IF(trigo_tipoadubacaoorganica=\"Esterco de ave\",porcentagemN_estercoavesemissaoindireta/100,IF(trigo_tipoadubacaoorganica=\"Composto orgânico\",porcentagemN_compostoorganicoemissaoindireta/100,IF(trigo_tipoadubacaoorganica=\"Outros\",porcentagemN_outrosaduboorganicoemissaoindireta/100,0))))*trigo_quantidadeaduboorganico))*0.3)*0.025)*0.001),ROUND((((((trigo_adubacaonitrogenada*(trigo_nadubosintetico/100))+(trigo_aplicacaoureia*0.45))+(IF(OR(trigo_tipoadubacaoorganica=\"Esterco bovino\",trigo_tipoadubacaoorganica=\"Esterco equino\",trigo_tipoadubacaoorganica=\"Esterco suíno\",trigo_tipoadubacaoorganica=\"Esterco ovino\"),porcentagemN_estercogeralemissaoindireta/100,IF(trigo_tipoadubacaoorganica=\"Esterco de ave\",porcentagemN_estercoavesemissaoindireta/100,IF(trigo_tipoadubacaoorganica=\"Composto orgânico\",porcentagemN_compostoorganicoemissaoindireta/100,IF(trigo_tipoadubacaoorganica=\"Outros\",porcentagemN_outrosaduboorganicoemissaoindireta/100,0))))*trigo_quantidadeaduboorganico))*0.3)*0.025)*0.001,2),0)","v":0},{"$f":"IF(ISNUMBER(((((trigo_adubacaonitrogenada*(trigo_nadubosintetico/100))+((trigo_aplicacaoureia*0.45)))*0.1)+((IF(OR(trigo_tipoadubacaoorganica=\"Esterco bovino\",trigo_tipoadubacaoorganica=\"Esterco equino\",trigo_tipoadubacaoorganica=\"Esterco suíno\",trigo_tipoadubacaoorganica=\"Esterco ovino\"),porcentagemN_estercogeralemissaoindireta/100,IF(trigo_tipoadubacaoorganica=\"Esterco de ave\",porcentagemN_estercoavesemissaoindireta/100,IF(trigo_tipoadubacaoorganica=\"Composto orgânico\",porcentagemN_compostoorganicoemissaoindireta/100,IF(trigo_tipoadubacaoorganica=\"Outros\",porcentagemN_outrosaduboorganicoemissaoindireta/100,0))))*trigo_quantidadeaduboorganico)*0.2)*0.01)*0.001),ROUND(((((trigo_adubacaonitrogenada*(trigo_nadubosintetico/100))+((trigo_aplicacaoureia*0.45)))*0.1)+((IF(OR(trigo_tipoadubacaoorganica=\"Esterco bovino\",trigo_tipoadubacaoorganica=\"Esterco equino\",trigo_tipoadubacaoorganica=\"Esterco suíno\",trigo_tipoadubacaoorganica=\"Esterco ovino\"),porcentagemN_estercogeralemissaoindireta/100,IF(trigo_tipoadubacaoorganica=\"Esterco de ave\",porcentagemN_estercoavesemissaoindireta/100,IF(trigo_tipoadubacaoorganica=\"Composto orgânico\",porcentagemN_compostoorganicoemissaoindireta/100,IF(trigo_tipoadubacaoorganica=\"Outros\",porcentagemN_outrosaduboorganicoemissaoindireta/100,0))))*trigo_quantidadeaduboorganico)*0.2)*0.01)*0.001,2),0)","v":0},{"$f":"IF(ISNUMBER(trigo_consumodiesel),ROUND(trigo_consumodiesel*coef_fatoremissaooperacaomecanizadan2o,2), IF(ISNUMBER(coef_somahoramaquinatrigo*coef_fatoremissaooperacaomecanizadan2o*(20*0.95)*trigo_areacultivada),ROUND(coef_somahoramaquinatrigo*coef_fatoremissaooperacaomecanizadan2o*(20*0.95)*trigo_areacultivada,2),0))","v":0},null,null,{"$f":"IF(ISNUMBER(trigo_produtividademedia*trigo_areaqueimaresiduos*coef_queimadatrigon2o),ROUND(trigo_produtividademedia*trigo_areaqueimaresiduos*coef_queimadatrigon2o,2),0)","v":0},{"$f":"ROUND(M87/298,2)","v":0},null,{"$f":"SUM(C83:N83)","v":0}]
[null,"CH4",null,null,null,null,null,null,{"$f":"IF(ISNUMBER(trigo_consumodiesel),ROUND(trigo_consumodiesel*coef_fatoremissaooperacaomecanizadach4,2), IF(ISNUMBER(coef_somahoramaquinatrigo*coef_fatoremissaooperacaomecanizadach4*(20*0.95)*trigo_areacultivada),ROUND(coef_somahoramaquinatrigo*coef_fatoremissaooperacaomecanizadach4*(20*0.95)*trigo_areacultivada,2),0))","v":0},null,null,{"$f":"IF(ISNUMBER(trigo_produtividademedia*trigo_areaqueimaresiduos*coef_queimadatrigoch4),ROUND(trigo_produtividademedia*trigo_areaqueimaresiduos*coef_queimadatrigoch4,2),0)","v":0},null,null,0]
[null,"CO",null,null,null,null,null,null,null,null,null,{"$f":"IF(ISNUMBER(trigo_produtividademedia*trigo_areaqueimaresiduos*coef_queimadatrigoco),ROUND(trigo_produtividademedia*trigo_areaqueimaresiduos*coef_queimadatrigoco,2),0)","v":0},null,null,0]
[null,"NOx",null,null,null,null,null,null,null,null,null,{"$f":"IF(ISNUMBER(trigo_produtividademedia*trigo_areaqueimaresiduos*coef_queimadatrigonox),ROUND(trigo_produtividademedia*trigo_areaqueimaresiduos*coef_queimadatrigonox,2),0)","v":0},null,null,0]
[null,"CO2 eq.",{"$f":"IF(ISNUMBER(trigo_aplicacaoureia*coef_aplicacaoureia),ROUND(trigo_aplicacaoureia*coef_aplicacaoureia,2),0)","v":0},{"$f":"IF(ISNUMBER(trigo_calcariocalcitico*coef_calcariocalcitico +trigo_calcariodolomitico*coef_calcariodolomitico),ROUND(trigo_calcariocalcitico*coef_calcariocalcitico +trigo_calcariodolomitico*coef_calcariodolomitico,2),0)","v":0},{"$f":"IF(ISNUMBER(((trigo_aplicacaoureia*0.45)+(trigo_adubacaonitrogenada* (trigo_nadubosintetico/100)))*coef_nsintetico),ROUND(((trigo_aplicacaoureia*0.45)+(trigo_adubacaonitrogenada* (trigo_nadubosintetico/100)))*coef_nsintetico,2),0)","v":0},{"$f":"IF(ISNUMBER(trigo_quantidadeaduboorganico * IF(OR(trigo_tipoadubacaoorganica=\"Esterco bovino\",trigo_tipoadubacaoorganica=\"Esterco equino\",trigo_tipoadubacaoorganica=\"Esterco suíno\",trigo_tipoadubacaoorganica=\"Esterco ovino\"),coef_estercogeralemissaodireta,IF(trigo_tipoadubacaoorganica=\"Esterco de ave\",coef_estercoaveemissaodireta,IF(trigo_tipoadubacaoorganica=\"Composto orgânico\",coef_compostoorganicoemissaodireta,IF(trigo_tipoadubacaoorganica=\"Outros\",coef_outrosemissaodireta,0))))),ROUND(trigo_quantidadeaduboorganico * IF(OR(trigo_tipoadubacaoorganica=\"Esterco bovino\",trigo_tipoadubacaoorganica=\"Esterco equino\",trigo_tipoadubacaoorganica=\"Esterco suíno\",trigo_tipoadubacaoorganica=\"Esterco ovino\"),coef_estercogeralemissaodireta,IF(trigo_tipoadubacaoorganica=\"Esterco de ave\",coef_estercoaveemissaodireta,IF(trigo_tipoadubacaoorganica=\"Composto orgânico\",coef_compostoorganicoemissaodireta,IF(trigo_tipoadubacaoorganica=\"Outros\",coef_outrosemissaodireta,0)))),2),0)","v":0},{"$f":"ROUND(G83*298,2)","v":0},{"$f":"ROUND(H83*298,2)","v":0},{"$f":"ROUND(I82+(I83*25)+(I84*298),2)","v":0},{"$f":"IF(trigo_tempoadocaosistema = \"Menor ou igual a 20 anos\",IF(ISNUMBER(coef_mudancausosolotrigo*trigo_areacultivada),ROUND(coef_mudancausosolotrigo*trigo_areacultivada,2),0),0)","v":0},{"$f":"IF(ISNUMBER(trigo_aplicacaoherbicidas),ROUND(((trigo_aplicacaoherbicidas)*coef_aplicacaoherbicida)/1000,2),0) + IF(ISNUMBER(trigo_aplicacaofungicidas),ROUND(((trigo_aplicacaofungicidas)*coef_aplicacaofungicida)/1000,2),0)+IF(ISNUMBER(trigo_aplicacaoinseticida),ROUND(((trigo_aplicacaoinseticida)*coef_aplicacaoinseticida)/1000,2),0)","v":0},{"$f":"IF(ISNUMBER(coef_nresiduotrigo * trigo_areacultivada * (((trigo_areaqueimaresiduos*100)/trigo_areacultivada)/100)),ROUND(coef_nresiduotrigo * trigo_areacultivada * (((trigo_areaqueimaresiduos*100)/trigo_areacultivada)/100),2),0) + IF(ISNUMBER(coef_queimadatrigo * trigo_areacultivada * (((trigo_areaqueimaresiduos*100)/trigo_areacultivada)/100)),ROUND(coef_queimadatrigo * trigo_areacultivada * (((trigo_areaqueimaresiduos*100)/trigo_areacultivada)/100),2),0)","v":0},{"$f":"IF(ISNUMBER(trigo_cultivosoloorganico*coef_manejosoloorganico),ROUND(trigo_cultivosoloorganico*coef_manejosoloorganico,2),0)","v":0},{"$f":"IF(ISNUMBER(trigo_consumodiesel),ROUND((trigo_consumodiesel*0.05)*coef_fatoremissaooperacaomecanizadabiodiesel,2), IF(ISNUMBER(coef_somahoramaquinatrigo*coef_fatoremissaooperacaomecanizadabiodiesel*(20*0.05)*trigo_areacultivada),ROUND(coef_somahoramaquinatrigo*coef_fatoremissaooperacaomecanizadabiodiesel*(20*0.05)*trigo_areacultivada,2),0))","v":0},0]
[]
[null,"Feijão"]
[null,null,"Fontes não-mecânicas",null,null,null,null,null,"Fontes mecânicas","Mudança de \nuso do solo","Upstream","Emissões biogênicas"]
[null,"GEE","Uréia","Calagem","Fertilizante nitrogenado sintético","Adubação orgânica","Lixiviação/Runoff\n(Emissões secundárias)","Dep. Atm. de N volatilizado\n(Emissões secundárias)","Operações mecanizadas",null,"Aplicação de defensivos agrícolas","Resíduos culturais\n(com ou sem queima)","Manejo solos orgânicos","Emissões de biodiesel","Emissões totais (toneladas)"]
[null,"CO2",{"$f":"C97","v":0},{"$f":"D97","v":0},null,null,null,null,{"$f":"IF(ISNUMBER(feijao_consumodiesel),feijao_consumodiesel*coef_fatoremissaooperacaomecanizadaco2, IF(ISNUMBER(coef_somahoramaquinafeijao*coef_fatoremissaooperacaomecanizadaco2*(20*0.95)*feijao_areacultivada),coef_somahoramaquinafeijao*coef_fatoremissaooperacaomecanizadaco2*(20*0.95)*feijao_areacultivada,0))","v":0},{"$f":"J97","v":0},null,null,null,{"$f":"N97","v":0},{"$f":"SUM(C92:N92)","v":0}]
[null,"N2O",null,null,{"$f":"ROUND(E97/298,2)","v":0},{"$f":"ROUND(F97/298,2)","v":0},{"$f":"IF(ISNUMBER((((((feijao_adubacaonitrogenada*(feijao_nadubosintetico/100))+(feijao_aplicacaoureia*0.45))+(IF(OR(feijao_tipoadubacaoorganica=\"Esterco bovino\",feijao_tipoadubacaoorganica=\"Esterco equino\",feijao_tipoadubacaoorganica=\"Esterco suíno\",feijao_tipoadubacaoorganica=\"Esterco ovino\"),porcentagemN_estercogeralemissaoindireta/100,IF(feijao_tipoadubacaoorganica=\"Esterco de ave\",porcentagemN_estercoavesemissaoindireta/100,IF(feijao_tipoadubacaoorganica=\"Composto orgânico\",porcentagemN_compostoorganicoemissaoindireta/100,IF(feijao_tipoadubacaoorganica=\"Outros\",porcentagemN_outrosaduboorganicoemissaoindireta/100,0))))*feijao_quantidadeaduboorganico))*0.3)*0.025)*0.001),ROUND((((((feijao_adubacaonitrogenada*(feijao_nadubosintetico/100))+(feijao_aplicacaoureia*0.45))+(IF(OR(feijao_tipoadubacaoorganica=\"Esterco bovino\",feijao_tipoadubacaoorganica=\"Esterco equino\",feijao_tipoadubacaoorganica=\"Esterco suíno\",feijao_tipoadubacaoorganica=\"Esterco ovino\"),porcentagemN_estercogeralemissaoindireta/100,IF(feijao_tipoadubacaoorganica=\"Esterco de ave\",porcentagemN_estercoavesemissaoindireta/100,IF(feijao_tipoadubacaoorganica=\"Composto orgânico\",porcentagemN_compostoorganicoemissaoindireta/100,IF(feijao_tipoadubacaoorganica=\"Outros\",porcentagemN_outrosaduboorganicoemissaoindireta/100,0))))*feijao_quantidadeaduboorganico))*0.3)*0.025)*0.001,2),0)","v":0},{"$f":"IF(ISNUMBER(((((feijao_adubacaonitrogenada*(feijao_nadubosintetico/100))+((feijao_aplicacaoureia*0.45)))*0.1)+((IF(OR(feijao_tipoadubacaoorganica=\"Esterco bovino\",feijao_tipoadubacaoorganica=\"Esterco equino\",feijao_tipoadubacaoorganica=\"Esterco suíno\",feijao_tipoadubacaoorganica=\"Esterco ovino\"),porcentagemN_estercogeralemissaoindireta/100,IF(feijao_tipoadubacaoorganica=\"Esterco de ave\",porcentagemN_estercoavesemissaoindireta/100,IF(feijao_tipoadubacaoorganica=\"Composto orgânico\",porcentagemN_compostoorganicoemissaoindireta/100,IF(feijao_tipoadubacaoorganica=\"Outros\",porcentagemN_outrosaduboorganicoemissaoindireta/100,0))))*feijao_quantidadeaduboorganico)*0.2)*0.01)*0.001),ROUND(((((feijao_adubacaonitrogenada*(feijao_nadubosintetico/100))+((feijao_aplicacaoureia*0.45)))*0.1)+((IF(OR(feijao_tipoadubacaoorganica=\"Esterco bovino\",feijao_tipoadubacaoorganica=\"Esterco equino\",feijao_tipoadubacaoorganica=\"Esterco suíno\",feijao_tipoadubacaoorganica=\"Esterco ovino\"),porcentagemN_estercogeralemissaoindireta/100,IF(feijao_tipoadubacaoorganica=\"Esterco de ave\",porcentagemN_estercoavesemissaoindireta/100,IF(feijao_tipoadubacaoorganica=\"Composto orgânico\",porcentagemN_compostoorganicoemissaoindireta/100,IF(feijao_tipoadubacaoorganica=\"Outros\",porcentagemN_outrosaduboorganicoemissaoindireta/100,0))))*feijao_quantidadeaduboorganico)*0.2)*0.01)*0.001,2),0)","v":0},{"$f":"IF(ISNUMBER(feijao_consumodiesel),ROUND(feijao_consumodiesel*coef_fatoremissaooperacaomecanizadan2o,2), IF(ISNUMBER(coef_somahoramaquinafeijao*coef_fatoremissaooperacaomecanizadan2o*(20*0.95)*feijao_areacultivada),ROUND(coef_somahoramaquinafeijao*coef_fatoremissaooperacaomecanizadan2o*(20*0.95)*feijao_areacultivada,2),0))","v":0},null,null,{"$f":"IF(ISNUMBER(feijao_produtividademedia*feijao_areaqueimaresiduos*coef_queimadafeijaon2o),ROUND(feijao_produtividademedia*feijao_areaqueimaresiduos*coef_queimadafeijaon2o,2),0)","v":0},{"$f":"ROUND(M97/298,2)","v":0},null,0]
[null,"CH4",null,null,null,null,null,null,{"$f":"IF(ISNUMBER(feijao_consumodiesel),ROUND(feijao_consumodiesel*coef_fatoremissaooperacaomecanizadach4,2), IF(ISNUMBER(coef_somahoramaquinafeijao*coef_fatoremissaooperacaomecanizadach4*(20*0.95)*feijao_areacultivada),ROUND(coef_somahoramaquinafeijao*coef_fatoremissaooperacaomecanizadach4*(20*0.95)*feijao_areacultivada,2),0))","v":0},null,null,{"$f":"IF(ISNUMBER(feijao_produtividademedia*feijao_areaqueimaresiduos*coef_queimadafeijaoch4),ROUND(feijao_produtividademedia*feijao_areaqueimaresiduos*coef_queimadafeijaoch4,2),0)","v":0},null,null,0]
[null,"CO",null,null,null,null,null,null,null,null,null,{"$f":"IF(ISNUMBER(feijao_produtividademedia*feijao_areaqueimaresiduos*coef_queimadafeijaoco),ROUND(feijao_produtividademedia*feijao_areaqueimaresiduos*coef_queimadafeijaoco,2),0)","v":0},null,null,0]
[null,"NOx",null,null,null,null,null,null,null,null,null,{"$f":"IF(ISNUMBER(feijao_produtividademedia*feijao_areaqueimaresiduos*coef_queimadafeijaonox),ROUND(feijao_produtividademedia*feijao_areaqueimaresiduos*coef_queimadafeijaonox,2),0)","v":0},null,null,0]
[null,"CO2 eq.",{"$f":"IF(ISNUMBER(feijao_aplicacaoureia*coef_aplicacaoureia),ROUND(feijao_aplicacaoureia*coef_aplicacaoureia,2),0)","v":0},{"$f":"IF(ISNUMBER(feijao_calcariocalcitico*coef_calcariocalcitico +feijao_calcariodolomitico*coef_calcariodolomitico),ROUND(feijao_calcariocalcitico*coef_calcariocalcitico +feijao_calcariodolomitico*coef_calcariodolomitico,2),0)","v":0},{"$f":"IF(ISNUMBER(((feijao_aplicacaoureia*0.45)+(feijao_adubacaonitrogenada* (feijao_nadubosintetico/100)))*coef_nsintetico),ROUND(((feijao_aplicacaoureia*0.45)+(feijao_adubacaonitrogenada* (feijao_nadubosintetico/100)))*coef_nsintetico,2),0)","v":0},{"$f":"IF(ISNUMBER(feijao_quantidadeaduboorganico * IF(OR(feijao_tipoadubacaoorganica=\"Esterco bovino\",feijao_tipoadubacaoorganica=\"Esterco equino\",feijao_tipoadubacaoorganica=\"Esterco suíno\",feijao_tipoadubacaoorganica=\"Esterco ovino\"),coef_estercogeralemissaodireta,IF(feijao_tipoadubacaoorganica=\"Esterco de ave\",coef_estercoaveemissaodireta,IF(feijao_tipoadubacaoorganica=\"Composto orgânico\",coef_compostoorganicoemissaodireta,IF(feijao_tipoadubacaoorganica=\"Outros\",coef_outrosemissaodireta,0))))),ROUND(feijao_quantidadeaduboorganico * IF(OR(feijao_tipoadubacaoorganica=\"Esterco bovino\",feijao_tipoadubacaoorganica=\"Esterco equino\",feijao_tipoadubacaoorganica=\"Esterco suíno\",feijao_tipoadubacaoorganica=\"Esterco ovino\"),coef_estercogeralemissaodireta,IF(feijao_tipoadubacaoorganica=\"Esterco de ave\",coef_estercoaveemissaodireta,IF(feijao_tipoadubacaoorganica=\"Composto orgânico\",coef_compostoorganicoemissaodireta,IF(feijao_tipoadubacaoorganica=\"Outros\",coef_outrosemissaodireta,0)))),2),0)","v":0},{"$f":"ROUND(G93*298,2)","v":0},{"$f":"ROUND(H93*298,2)","v":0},{"$f":"ROUND(I92+(I93*25)+(I94*298),2)","v":0},{"$f":"IF(feijao_tempoadocaosistema = \"Menor ou igual a 20 anos\",IF(ISNUMBER(coef_mudancausosolofeijao*feijao_areacultivada),ROUND(coef_mudancausosolofeijao*feijao_areacultivada,2),0),0)","v":0},{"$f":"IF(ISNUMBER(feijao_aplicacaoherbicidas),ROUND(((feijao_aplicacaoherbicidas)*coef_aplicacaoherbicida)/1000,2),0) + IF(ISNUMBER(feijao_aplicacaofungicidas),ROUND(((feijao_aplicacaofungicidas)*coef_aplicacaofungicida)/1000,2),0)+IF(ISNUMBER(feijao_aplicacaoinseticida),ROUND(((feijao_aplicacaoinseticida)*coef_aplicacaoinseticida)/1000,2),0)","v":0},{"$f":"IF(ISNUMBER(coef_nresiduofeijao * feijao_areacultivada * (((feijao_areaqueimaresiduos*100)/feijao_areacultivada)/100)),ROUND(coef_nresiduofeijao * feijao_areacultivada * (((feijao_areaqueimaresiduos*100)/feijao_areacultivada)/100),2),0) + IF(ISNUMBER(coef_queimadafeijao * feijao_areacultivada * (((feijao_areaqueimaresiduos*100)/feijao_areacultivada)/100)),ROUND(coef_queimadafeijao * feijao_areacultivada * (((feijao_areaqueimaresiduos*100)/feijao_areacultivada)/100),2),0)","v":0},{"$f":"IF(ISNUMBER(feijao_cultivosoloorganico*coef_manejosoloorganico),ROUND(feijao_cultivosoloorganico*coef_manejosoloorganico,2),0)","v":0},{"$f":"IF(ISNUMBER(feijao_consumodiesel),ROUND((feijao_consumodiesel*0.05)*coef_fatoremissaooperacaomecanizadabiodiesel,2), IF(ISNUMBER(coef_somahoramaquinafeijao*coef_fatoremissaooperacaomecanizadabiodiesel*(20*0.05)*feijao_areacultivada),ROUND(coef_somahoramaquinafeijao*coef_fatoremissaooperacaomecanizadabiodiesel*(20*0.05)*feijao_areacultivada,2),0))","v":0},0]
[]
[null,"Cana-de-açúcar"]
[null,null,"Fontes não-mecânicas",null,null,null,null,null,"Fontes mecânicas","Mudança de \nuso do solo","Upstream","Emissões biogênicas"]
[null,"GEE","Uréia","Calagem","Fertilizante nitrogenado sintético","Adubação orgânica","Lixiviação/Runoff\n(Emissões secundárias)","Dep. Atm. de N volatilizado\n(Emissões secundárias)","Operações mecanizadas",null,"Aplicação de defensivos agrícolas","Resíduos culturais\n(com ou sem queima)","Manejo solos orgânicos","Emissões de biodiesel","Emissões totais (toneladas)"]
[null,"CO2",{"$f":"C107","v":0},{"$f":"D107","v":0},null,null,null,null,{"$f":"IF(ISNUMBER(cana_consumodiesel),ROUND(cana_consumodiesel*coef_fatoremissaooperacaomecanizadaco2,2), IF(ISNUMBER(coef_somahoramaquinacana*coef_fatoremissaooperacaomecanizadaco2*(20*0.95)*cana_areacultivada),ROUND(coef_somahoramaquinacana*coef_fatoremissaooperacaomecanizadaco2*(20*0.95)*cana_areacultivada,2),0))","v":0},{"$f":"J107","v":0},null,null,null,{"$f":"N107","v":0},{"$f":"SUM(C102:N102)","v":0}]
[null,"N2O",null,null,{"$f":"ROUND(E107/298,2)","v":0},{"$f":"ROUND(F107/298,2)","v":0},{"$f":"IF(ISNUMBER((((((cana_adubacaonitrogenada*(cana_nadubosintetico/100))+(cana_aplicacaoureia*0.45))+(IF(cana_tipoadubacaoorganica=\"Torta de filtro\",porcentagemN_tortadefiltroemissaoindireta/100,IF(cana_tipoadubacaoorganica=\"Vinhaça\",porcentagemN_vinhacaemissaoindireta/100,0))*cana_quantidadeaduboorganico))*0.3)*0.025)*0.001),ROUND((((((cana_adubacaonitrogenada*(cana_nadubosintetico/100))+(cana_aplicacaoureia*0.45))+(IF(cana_tipoadubacaoorganica=\"Torta de filtro\",porcentagemN_tortadefiltroemissaoindireta/100,IF(cana_tipoadubacaoorganica=\"Vinhaça\",porcentagemN_vinhacaemissaoindireta/100,0))*cana_quantidadeaduboorganico))*0.3)*0.025)*0.001,2),0)","v":0},{"$f":"IF(ISNUMBER(((((cana_adubacaonitrogenada*(cana_nadubosintetico/100))+((cana_aplicacaoureia*0.45)))*0.1)+((IF(cana_tipoadubacaoorganica=\"Vinhaça\",porcentagemN_vinhacaemissaoindireta/100,IF(cana_tipoadubacaoorganica=\"Torta de filtro\",porcentagemN_tortadefiltroemissaoindireta/100,0))*cana_quantidadeaduboorganico)*0.2)*0.01)*0.001),ROUND(((((cana_adubacaonitrogenada*(cana_nadubosintetico/100))+((cana_aplicacaoureia*0.45)))*0.1)+((IF(cana_tipoadubacaoorganica=\"Vinhaça\",porcentagemN_vinhacaemissaoindireta/100,IF(cana_tipoadubacaoorganica=\"Torta de filtro\",porcentagemN_tortadefiltroemissaoindireta/100,0))*cana_quantidadeaduboorganico)*0.2)*0.01)*0.001,2),0)","v":0},{"$f":"IF(ISNUMBER(cana_consumodiesel),ROUND(cana_consumodiesel*coef_fatoremissaooperacaomecanizadan2o,2), IF(ISNUMBER(coef_somahoramaquinacana*coef_fatoremissaooperacaomecanizadan2o*(20*0.95)*cana_areacultivada),ROUND(coef_somahoramaquinacana*coef_fatoremissaooperacaomecanizadan2o*(20*0.95)*cana_areacultivada,2),0))","v":0},null,null,{"$f":"IF(ISNUMBER(cana_produtividademedia*cana_areaqueimaresiduos*coef_queimadacanan2o),ROUND(cana_produtividademedia*cana_areaqueimaresiduos*coef_queimadacanan2o,2),0)","v":0},{"$f":"ROUND(M107/298,2)","v":0},null,0]
[null,"CH4",null,null,null,null,null,null,{"$f":"IF(ISNUMBER(cana_consumodiesel),ROUND(cana_consumodiesel*coef_fatoremissaooperacaomecanizadach4,2), IF(ISNUMBER(coef_somahoramaquinacana*coef_fatoremissaooperacaomecanizadach4*(20*0.95)*cana_areacultivada),ROUND(coef_somahoramaquinacana*coef_fatoremissaooperacaomecanizadach4*(20*0.95)*cana_areacultivada,2),0))","v":0},null,null,{"$f":"IF(ISNUMBER(cana_produtividademedia*cana_areaqueimaresiduos*coef_queimadacanach4),ROUND(cana_produtividademedia*cana_areaqueimaresiduos*coef_queimadacanach4,2),0)","v":0},null,null,0]
[null,"CO",null,null,null,null,null,null,null,null,null,{"$f":"IF(ISNUMBER(cana_produtividademedia*cana_areaqueimaresiduos*coef_queimadacanaco),ROUND(cana_produtividademedia*cana_areaqueimaresiduos*coef_queimadacanaco,2),0)","v":0},null,null,0]
[null,"NOx",null,null,null,null,null,null,null,null,null,{"$f":"IF(ISNUMBER(cana_produtividademedia*cana_areaqueimaresiduos*coef_queimadacananox),ROUND(cana_produtividademedia*cana_areaqueimaresiduos*coef_queimadacananox,2),0)","v":0},null,null,0]
[null,"CO2 eq.",{"$f":"IF(ISNUMBER(coef_aplicacaoureia*cana_aplicacaoureia),ROUND(coef_aplicacaoureia*cana_aplicacaoureia,2),0)","v":0},{"$f":"IF(ISNUMBER(coef_calcariocalcitico*cana_calcariocalcitico+coef_calcariodolomitico*cana_calcariodolomitico),ROUND(coef_calcariocalcitico*cana_calcariocalcitico+coef_calcariodolomitico*cana_calcariodolomitico,2),0)","v":0},{"$f":"IF(ISNUMBER(((cana_aplicacaoureia*0.45)+(cana_adubacaonitrogenada* (cana_nadubosintetico/100)))*coef_nsintetico),ROUND(((cana_aplicacaoureia*0.45)+(cana_adubacaonitrogenada* (cana_nadubosintetico/100)))*coef_nsintetico,2),0)","v":0},{"$f":"IF(ISNUMBER(cana_quantidadeaduboorganico *IF(cana_tipoadubacaoorganica=\"Vinhaça\",coef_vinhacaemissaodireta,IF(cana_tipoadubacaoorganica=\"Torta de filtro\",coef_tortadefiltroemissaodireta,0))),ROUND(cana_quantidadeaduboorganico *IF(cana_tipoadubacaoorganica=\"Vinhaça\",coef_vinhacaemissaodireta,IF(cana_tipoadubacaoorganica=\"Torta de filtro\",coef_tortadefiltroemissaodireta,0)),2),0)","v":0},{"$f":"ROUND(G103*298,2)","v":0},{"$f":"ROUND(H103*298,2)","v":0},{"$f":"ROUND(I102+(I103*25)+(I104*298),2)","v":0},{"$f":"IF(cana_tempoadocaosistema = \"Menor ou igual a 20 anos\",IF(ISNUMBER(coef_mudancausosolocana*cana_areacultivada),ROUND(coef_mudancausosolocana*cana_areacultivada,2),0),0)","v":0},{"$f":"IF(ISNUMBER(cana_aplicacaoherbicidas),ROUND(((cana_aplicacaoherbicidas)*coef_aplicacaoherbicida)/1000,2),0) + IF(ISNUMBER(cana_aplicacaofungicidas),ROUND(((cana_aplicacaofungicidas)*coef_aplicacaofungicida)/1000,2),0)+IF(ISNUMBER(cana_aplicacaoinseticida),ROUND(((cana_aplicacaoinseticida)*coef_aplicacaoinseticida)/1000,2),0)","v":0},{"$f":"IF(ISNUMBER(coef_nresiduocana * cana_areacultivada * IF(AND(ISNUMBER(cana_areaqueimaresiduos),cana_areaqueimaresiduos>0),(cana_areaqueimaresiduos*100)/cana_areacultivada,0 )),ROUND(coef_nresiduocana * cana_areacultivada * IF(AND(ISNUMBER(cana_areaqueimaresiduos),cana_areaqueimaresiduos>0),(cana_areaqueimaresiduos*100)/cana_areacultivada,0),2),0) + IF(ISNUMBER(coef_queimadacana * cana_areacultivada * IF(AND(ISNUMBER(cana_areaqueimaresiduos),cana_areaqueimaresiduos>0),(cana_areaqueimaresiduos*100)/cana_areacultivada,0 )),ROUND(coef_queimadacana * cana_areacultivada * IF(AND(ISNUMBER(cana_areaqueimaresiduos),cana_areaqueimaresiduos>0),(cana_areaqueimaresiduos*100)/cana_areacultivada,0),2),0)","v":0},{"$f":"IF(ISNUMBER(cana_cultivosoloorganico*coef_manejosoloorganico),ROUND(cana_cultivosoloorganico*coef_manejosoloorganico,2),0)","v":0},{"$f":"IF(ISNUMBER(cana_consumodiesel),ROUND((cana_consumodiesel*0.05)*coef_fatoremissaooperacaomecanizadabiodiesel,2), IF(ISNUMBER(coef_somahoramaquinacana*coef_fatoremissaooperacaomecanizadabiodiesel*(20*0.05)*cana_areacultivada),ROUND(coef_somahoramaquinacana*coef_fatoremissaooperacaomecanizadabiodiesel*(20*0.05)*cana_areacultivada,2),0))","v":0},0]
[]
[null,"Arroz"]
[null,null,"Fontes não-mecânicas",null,null,null,"Fontes mecânicas","Mudança de uso do solo","Upstream","Emissões biogênicas"]
[null,"GEE","Uréia","Calagem","Fertilizante nitrogenado sintético","Arroz\n(emissão específica)","Operações mecanizadas",null,"Aplicação de defensivos agrícolas","Resíduos culturais\n(com ou sem queima)","Manejo solos orgânicos","Emissões de biodiesel","Emissões totais (toneladas)"]
[null,"CO2",{"$f":"C117","v":0},{"$f":"D117","v":0},null,null,{"$f":"IF(ISNUMBER(arroz_consumodiesel),ROUND(arroz_consumodiesel*coef_fatoremissaooperacaomecanizadaco2,2), IF(ISNUMBER(coef_somahoramaquinaarroz*coef_fatoremissaooperacaomecanizadaco2*(20*0.95)*arroz_areacultivada),ROUND(coef_somahoramaquinaarroz*coef_fatoremissaooperacaomecanizadaco2*(20*0.95)*arroz_areacultivada,2),0))","v":0},{"$f":"H117","v":0},null,null,null,{"$f":"L117","v":0},{"$f":"SUM(C112:L112)","v":0}]
[null,"N2O",null,null,{"$f":"ROUND(E117/298,2)","v":0},null,{"$f":"IF(ISNUMBER(arroz_consumodiesel),ROUND(arroz_consumodiesel*coef_fatoremissaooperacaomecanizadan2o,2), IF(ISNUMBER(coef_somahoramaquinaarroz*coef_fatoremissaooperacaomecanizadan2o*(20*0.95)*arroz_areacultivada),ROUND(coef_somahoramaquinaarroz*coef_fatoremissaooperacaomecanizadan2o*(20*0.95)*arroz_areacultivada,2),0))","v":0},null,null,{"$f":"IF(ISNUMBER(arroz_produtividademedia*arroz_areaqueimaresiduos*coef_queimadaarrozn2o),ROUND(arroz_produtividademedia*arroz_areaqueimaresiduos*coef_queimadaarrozn2o,2),0)","v":0},{"$f":"ROUND(K117/298,2)","v":0},null,0]
[null,"CH4",null,null,null,{"$f":"ROUND(F117/25,2)","v":0},{"$f":"IF(ISNUMBER(arroz_consumodiesel),ROUND(arroz_consumodiesel*coef_fatoremissaooperacaomecanizadach4,2), IF(ISNUMBER(coef_somahoramaquinaarroz*coef_fatoremissaooperacaomecanizadach4*(20*0.95)*arroz_areacultivada),ROUND(coef_somahoramaquinaarroz*coef_fatoremissaooperacaomecanizadach4*(20*0.95)*arroz_areacultivada,2),0))","v":0},null,null,{"$f":"IF(ISNUMBER(arroz_produtividademedia*arroz_areaqueimaresiduos*coef_queimadaarrozch4),ROUND(arroz_produtividademedia*arroz_areaqueimaresiduos*coef_queimadaarrozch4,2),0)","v":0},null,null,0]
[null,"CO",null,null,null,null,null,null,null,{"$f":"IF(ISNUMBER(arroz_produtividademedia*arroz_areaqueimaresiduos*coef_queimadaarrozco),ROUND(arroz_produtividademedia*arroz_areaqueimaresiduos*coef_queimadaarrozco,2),0)","v":0},null,null,0]
[null,"NOx",null,null,null,null,null,null,null,{"$f":"IF(ISNUMBER(arroz_produtividademedia*arroz_areaqueimaresiduos*coef_queimadaarroznox),ROUND(arroz_produtividademedia*arroz_areaqueimaresiduos*coef_queimadaarroznox,2),0)","v":0},null,null,0]
[null,"CO2 eq.",{"$f":"IF(ISNUMBER(coef_aplicacaoureia*arroz_aplicacaoureia),ROUND(coef_aplicacaoureia*arroz_aplicacaoureia,2),0)","v":0},{"$f":"IF(ISNUMBER(coef_calcariocalcitico*arroz_calcariocalcitico+coef_calcariodolomitico*arroz_calcariodolomitico),ROUND(coef_calcariocalcitico*arroz_calcariocalcitico+coef_calcariodolomitico*arroz_calcariodolomitico,2),0)","v":0},{"$f":"IF(ISNUMBER(((arroz_aplicacaoureia*0.45)+(arroz_adubacaonitrogenada* (arroz_nadubosintetico/100)))*coef_nsintetico),ROUND(((arroz_aplicacaoureia*0.45)+(arroz_adubacaonitrogenada* (arroz_nadubosintetico/100)))*coef_nsintetico,2),0)","v":0},{"$f":"IF(AND(ISNUMBER(coef_arroz_sfo),ISNUMBER(coef_arroz_sfw),ISNUMBER(coef_arroz_fec)),ROUND(coef_arroz_fec*coef_arroz_sfo*coef_arroz_sfw*arroz_areacultivada,2),0)","v":0},{"$f":"ROUND(G112+(G113*25)+(G114*298),2)","v":0},{"$f":"IF(arroz_tempoadocaosistema = \"Menor ou igual a 20 anos\",IF(ISNUMBER(coef_mudancausosoloarroz*arroz_areacultivada),ROUND(coef_mudancausosoloarroz*arroz_areacultivada,2),0),0)","v":0},{"$f":"IF(ISNUMBER(arroz_aplicacaoherbicidas),ROUND(((arroz_aplicacaoherbicidas)*coef_aplicacaoherbicida)/1000,2),0) + IF(ISNUMBER(arroz_aplicacaofungicidas),ROUND(((arroz_aplicacaofungicidas)*coef_aplicacaofungicida)/1000,2),0)+IF(ISNUMBER(arroz_aplicacaoinseticida),ROUND(((arroz_aplicacaoinseticida)*coef_aplicacaoinseticida)/1000,2),0)","v":0},{"$f":"IF(ISNUMBER(coef_nresiduoarroz * arroz_areacultivada * IF(AND(ISNUMBER(arroz_areaqueimaresiduos),arroz_areaqueimaresiduos>0),(arroz_areaqueimaresiduos*100)/arroz_areacultivada,1 )),ROUND(coef_nresiduoarroz* arroz_areacultivada * IF(AND(ISNUMBER(arroz_areaqueimaresiduos),arroz_areaqueimaresiduos>0),(arroz_areaqueimaresiduos*100)/arroz_areacultivada,0),2),0) + IF(ISNUMBER(coef_queimadaarroz * arroz_areacultivada * IF(AND(ISNUMBER(arroz_areaqueimaresiduos),arroz_areaqueimaresiduos>0),(arroz_areaqueimaresiduos*100)/arroz_areacultivada,1 )),ROUND(coef_queimadaarroz* arroz_areacultivada * IF(AND(ISNUMBER(arroz_areaqueimaresiduos),arroz_areaqueimaresiduos>0),(arroz_areaqueimaresiduos*100)/arroz_areacultivada,0),2),0)","v":0},{"$f":"IF(ISNUMBER(arroz_cultivosoloorganico*coef_manejosoloorganico),ROUND(arroz_cultivosoloorganico*coef_manejosoloorganico,2),0)","v":0},{"$f":"IF(ISNUMBER(arroz_consumodiesel),ROUND((arroz_consumodiesel*0.05)*coef_fatoremissaooperacaomecanizadabiodiesel,2), IF(ISNUMBER(coef_somahoramaquinaarroz*coef_fatoremissaooperacaomecanizadabiodiesel*(20*0.05)*arroz_areacultivada),ROUND(coef_somahoramaquinaarroz*coef_fatoremissaooperacaomecanizadabiodiesel*(20*0.05)*arroz_areacultivada,2),0))","v":0},0]
[]
[null,"Pecuária e pastagem"]
[null,null,"Fontes não-mecânicas",null,null,null,null,null,null,null,null,null,"Fontes mecânicas","Mudança de \nuso do solo","Upstream","Emissões biogênicas"]
[null,"GEE","Uréia","Calagem","Fertilizante nitrogenado sintético","Adubação orgânica","Lixiviação/Runoff\n(Emissões secundárias)","Dep. Atm. de N volatilizado\n(Emissões secundárias)","Sistema de manejo tiers 1","Sistema de manejo tiers 2","Manejo de dejetos","Fermentação entérica","Operações mecanizadas",null,"Aplicação de defensivos agrícolas","Manejo solos orgânicos","Emissões de biodiesel","Emissões totais (toneladas)"]
[null,"CO2",{"$f":"C125","v":0},{"$f":"D125","v":0},null,null,null,null,null,null,null,null,{"$f":"IF(ISNUMBER(pecuariapastagem_consumodiesel),ROUND(pecuariapastagem_consumodiesel*coef_fatoremissaooperacaomecanizadaco2,2), IF(ISNUMBER(coef_somahoramaquinapecuariapastagem*coef_fatoremissaooperacaomecanizadaco2*(20*0.95)*pecuariapastagem_areacultivada),ROUND(coef_somahoramaquinapecuariapastagem*coef_fatoremissaooperacaomecanizadaco2*(20*0.95)*pecuariapastagem_areacultivada,2),0))","v":0},{"$f":"N125","v":0},null,null,{"$f":"Q125","v":0},{"$f":"SUM(C122:Q122)","v":0}]
[null,"N2O",null,null,{"$f":"ROUND(E125/298,2)","v":0},{"$f":"ROUND(F125/298,2)","v":0},{"$f":"IF(ISNUMBER((((((pecuariapastagem_adubacaonitrogenada*(pecuariapastagem_nadubosintetico/100))+(pecuariapastagem_aplicacaoureia*0.45))+(IF(OR(pecuariapastagem_tipoadubacaoorganica=\"Esterco bovino\",pecuariapastagem_tipoadubacaoorganica=\"Esterco equino\",pecuariapastagem_tipoadubacaoorganica=\"Esterco suíno\",pecuariapastagem_tipoadubacaoorganica=\"Esterco ovino\"),porcentagemN_estercogeralemissaoindireta/100,IF(pecuariapastagem_tipoadubacaoorganica=\"Esterco de ave\",porcentagemN_estercoavesemissaoindireta/100,IF(pecuariapastagem_tipoadubacaoorganica=\"Composto orgânico\",porcentagemN_compostoorganicoemissaoindireta/100,IF(pecuariapastagem_tipoadubacaoorganica=\"Outros\",porcentagemN_outrosaduboorganicoemissaoindireta/100,0))))*pecuariapastagem_quantidadeaduboorganico))*0.3)*0.025)*0.001),ROUND((((((pecuariapastagem_adubacaonitrogenada*(pecuariapastagem_nadubosintetico/100))+(pecuariapastagem_aplicacaoureia*0.45))+(IF(OR(pecuariapastagem_tipoadubacaoorganica=\"Esterco bovino\",pecuariapastagem_tipoadubacaoorganica=\"Esterco equino\",pecuariapastagem_tipoadubacaoorganica=\"Esterco suíno\",pecuariapastagem_tipoadubacaoorganica=\"Esterco ovino\"),porcentagemN_estercogeralemissaoindireta/100,IF(pecuariapastagem_tipoadubacaoorganica=\"Esterco de ave\",porcentagemN_estercoavesemissaoindireta/100,IF(pecuariapastagem_tipoadubacaoorganica=\"Composto orgânico\",porcentagemN_compostoorganicoemissaoindireta/100,IF(pecuariapastagem_tipoadubacaoorganica=\"Outros\",porcentagemN_outrosaduboorganicoemissaoindireta/100,0))))*pecuariapastagem_quantidadeaduboorganico))*0.3)*0.025)*0.001,2),0)","v":0},{"$f":"IF(ISNUMBER(((((pecuariapastagem_adubacaonitrogenada*(pecuariapastagem_nadubosintetico/100))+((pecuariapastagem_aplicacaoureia*0.45)))*0.1)+((IF(OR(pecuariapastagem_tipoadubacaoorganica=\"Esterco bovino\",pecuariapastagem_tipoadubacaoorganica=\"Esterco equino\",pecuariapastagem_tipoadubacaoorganica=\"Esterco suíno\",pecuariapastagem_tipoadubacaoorganica=\"Esterco ovino\"),porcentagemN_estercogeralemissaoindireta/100,IF(pecuariapastagem_tipoadubacaoorganica=\"Esterco de ave\",porcentagemN_estercoavesemissaoindireta/100,IF(pecuariapastagem_tipoadubacaoorganica=\"Composto orgânico\",porcentagemN_compostoorganicoemissaoindireta/100,IF(pecuariapastagem_tipoadubacaoorganica=\"Outros\",porcentagemN_outrosaduboorganicoemissaoindireta/100,0))))*pecuariapastagem_quantidadeaduboorganico)*0.2)*0.01)*0.001),ROUND(((((pecuariapastagem_adubacaonitrogenada*(pecuariapastagem_nadubosintetico/100))+((pecuariapastagem_aplicacaoureia*0.45)))*0.1)+((IF(OR(pecuariapastagem_tipoadubacaoorganica=\"Esterco bovino\",pecuariapastagem_tipoadubacaoorganica=\"Esterco equino\",pecuariapastagem_tipoadubacaoorganica=\"Esterco suíno\",pecuariapastagem_tipoadubacaoorganica=\"Esterco ovino\"),porcentagemN_estercogeralemissaoindireta/100,IF(pecuariapastagem_tipoadubacaoorganica=\"Esterco de ave\",porcentagemN_estercoavesemissaoindireta/100,IF(pecuariapastagem_tipoadubacaoorganica=\"Composto orgânico\",porcentagemN_compostoorganicoemissaoindireta/100,IF(pecuariapastagem_tipoadubacaoorganica=\"Outros\",porcentagemN_outrosaduboorganicoemissaoindireta/100,0))))*pecuariapastagem_quantidadeaduboorganico)*0.2)*0.01)*0.001,2),0)","v":0},{"$f":"ROUND(I125/298,2)","v":0},{"$f":"ROUND(J125/298,2)","v":0},null,null,{"$f":"IF(ISNUMBER(pecuariapastagem_consumodiesel),ROUND(pecuariapastagem_consumodiesel*coef_fatoremissaooperacaomecanizadan2o,2), IF(ISNUMBER(coef_somahoramaquinapecuariapastagem*coef_fatoremissaooperacaomecanizadan2o*(20*0.95)*pecuariapastagem_areacultivada),ROUND(coef_somahoramaquinapecuariapastagem*coef_fatoremissaooperacaomecanizadan2o*(20*0.95)*pecuariapastagem_areacultivada,2),0))","v":0},null,null,{"$f":"ROUND(P125/298,2)","v":0},null,{"$f":"SUM(C123:Q123)","v":0}]
[null,"CH4",null,null,null,null,null,null,null,null,{"$f":"K125/25","v":0},{"$f":"L125/25","v":0},{"$f":"IF(ISNUMBER(pecuariapastagem_consumodiesel),ROUND(pecuariapastagem_consumodiesel*coef_fatoremissaooperacaomecanizadach4,2), IF(ISNUMBER(coef_somahoramaquinapecuariapastagem*coef_fatoremissaooperacaomecanizadach4*(20*0.95)*pecuariapastagem_areacultivada),ROUND(coef_somahoramaquinapecuariapastagem*coef_fatoremissaooperacaomecanizadach4*(20*0.95)*pecuariapastagem_areacultivada,2),0))","v":0},null,null,null,null,{"$f":"SUM(C124:Q124)","v":0}]
[null,"CO2 eq.",{"$f":"IF(ISNUMBER(coef_aplicacaoureia*pecuariapastagem_aplicacaoureia),ROUND(coef_aplicacaoureia*pecuariapastagem_aplicacaoureia,2),0)","v":0},{"$f":"IF(ISNUMBER(coef_calcariocalcitico*pecuariapastagem_calcariocalcitico+coef_calcariodolomitico*pecuariapastagem_calcariodolomitico),ROUND(coef_calcariocalcitico*pecuariapastagem_calcariocalcitico+coef_calcariodolomitico*pecuariapastagem_calcariodolomitico,2),0)","v":0},{"$f":"IF(ISNUMBER(((pecuariapastagem_aplicacaoureia*0.45)+(pecuariapastagem_adubacaonitrogenada* (pecuariapastagem_nadubosintetico/100)))*coef_nsintetico),ROUND(((pecuariapastagem_aplicacaoureia*0.45)+(pecuariapastagem_adubacaonitrogenada* (pecuariapastagem_nadubosintetico/100)))*coef_nsintetico,2),0)","v":0},{"$f":"IF(ISNUMBER(pecuariapastagem_quantidadeaduboorganico * IF(OR(pecuariapastagem_tipoadubacaoorganica=\"Esterco bovino\",pecuariapastagem_tipoadubacaoorganica=\"Esterco equino\",pecuariapastagem_tipoadubacaoorganica=\"Esterco suíno\",pecuariapastagem_tipoadubacaoorganica=\"Esterco ovino\"),coef_estercogeralemissaodireta,IF(pecuariapastagem_tipoadubacaoorganica=\"Esterco de ave\",coef_estercoaveemissaodireta,IF(pecuariapastagem_tipoadubacaoorganica=\"Composto orgânico\",coef_compostoorganicoemissaodireta,IF(pecuariapastagem_tipoadubacaoorganica=\"Outros\",coef_outrosemissaodireta,0))))),ROUND(pecuariapastagem_quantidadeaduboorganico * IF(OR(pecuariapastagem_tipoadubacaoorganica=\"Esterco bovino\",pecuariapastagem_tipoadubacaoorganica=\"Esterco equino\",pecuariapastagem_tipoadubacaoorganica=\"Esterco suíno\",pecuariapastagem_tipoadubacaoorganica=\"Esterco ovino\"),coef_estercogeralemissaodireta,IF(pecuariapastagem_tipoadubacaoorganica=\"Esterco de ave\",coef_estercoaveemissaodireta,IF(pecuariapastagem_tipoadubacaoorganica=\"Composto orgânico\",coef_compostoorganicoemissaodireta,IF(pecuariapastagem_tipoadubacaoorganica=\"Outros\",coef_outrosemissaodireta,0)))),2),0)","v":0},{"$f":"ROUND(G123*298,2)","v":0},{"$f":"ROUND(H123*298,2)","v":0},{"$f":"IF(AND(ISNUMBER(coef_animal_tier1*pecuariapastagem_numeroanimais),pecuariapastagem_dataentradaanimais<>\"\",pecuariapastagem_datasaidaanimais<>\"\"),ROUND(coef_animal_tier1*pecuariapastagem_numeroanimais*YEARFRAC(pecuariapastagem_dataentradaanimais,pecuariapastagem_datasaidaanimais,3),2),0)+IF(AND(ISNUMBER(coef_animal1_tier1*pecuariapastagem_numeroanimais1),pecuariapastagem_dataentradaanimais1<>\"\",pecuariapastagem_datasaidaanimais1<>\"\"),ROUND(coef_animal1_tier1*pecuariapastagem_numeroanimais1*YEARFRAC(pecuariapastagem_dataentradaanimais1,pecuariapastagem_datasaidaanimais1,3),2),0)+IF(AND(ISNUMBER(coef_animal2_tier1*pecuariapastagem_numeroanimais2),pecuariapastagem_dataentradaanimais2<>\"\",pecuariapastagem_datasaidaanimais2<>\"\"),ROUND(coef_animal2_tier1*pecuariapastagem_numeroanimais2*YEARFRAC(pecuariapastagem_dataentradaanimais2,pecuariapastagem_datasaidaanimais2,3),2),0)+IF(AND(ISNUMBER(coef_animal3_tier1*pecuariapastagem_numeroanimais3),pecuariapastagem_dataentradaanimais3<>\"\",pecuariapastagem_datasaidaanimais3<>\"\"),ROUND(coef_animal3_tier1*pecuariapastagem_numeroanimais3*YEARFRAC(pecuariapastagem_dataentradaanimais3,pecuariapastagem_datasaidaanimais3,3),2),0)+IF(AND(ISNUMBER(coef_animal4_tier1*pecuariapastagem_numeroanimais4),pecuariapastagem_dataentradaanimais4<>\"\",pecuariapastagem_datasaidaanimais4<>\"\"),ROUND(coef_animal4_tier1*pecuariapastagem_numeroanimais4*YEARFRAC(pecuariapastagem_dataentradaanimais4,pecuariapastagem_datasaidaanimais4,3),2),0)+IF(AND(ISNUMBER(coef_animal5_tier1*pecuariapastagem_numeroanimais5),pecuariapastagem_dataentradaanimais5<>\"\",pecuariapastagem_datasaidaanimais5<>\"\"),ROUND(coef_animal5_tier1*pecuariapastagem_numeroanimais5*YEARFRAC(pecuariapastagem_dataentradaanimais5,pecuariapastagem_datasaidaanimais5,3),2),0)+IF(AND(ISNUMBER(coef_animal6_tier1*pecuariapastagem_numeroanimais6),pecuariapastagem_dataentradaanimais6<>\"\",pecuariapastagem_datasaidaanimais6<>\"\"),ROUND(coef_animal6_tier1*pecuariapastagem_numeroanimais6*YEARFRAC(pecuariapastagem_dataentradaanimais6,pecuariapastagem_datasaidaanimais6,3),2),0)+IF(AND(ISNUMBER(coef_animal7_tier1*pecuariapastagem_numeroanimais7),pecuariapastagem_dataentradaanimais7<>\"\",pecuariapastagem_datasaidaanimais7<>\"\"),ROUND(coef_animal7_tier1*pecuariapastagem_numeroanimais7*YEARFRAC(pecuariapastagem_dataentradaanimais7,pecuariapastagem_datasaidaanimais7,3),2),0)+IF(AND(ISNUMBER(coef_animal8_tier1*pecuariapastagem_numeroanimais8),pecuariapastagem_dataentradaanimais8<>\"\",pecuariapastagem_datasaidaanimais8<>\"\"),ROUND(coef_animal8_tier1*pecuariapastagem_numeroanimais8*YEARFRAC(pecuariapastagem_dataentradaanimais8,pecuariapastagem_datasaidaanimais8,3),2),0)+IF(AND(ISNUMBER(coef_animal9_tier1*pecuariapastagem_numeroanimais9),pecuariapastagem_dataentradaanimais9<>\"\",pecuariapastagem_datasaidaanimais9<>\"\"),ROUND(coef_animal9_tier1*pecuariapastagem_numeroanimais9*YEARFRAC(pecuariapastagem_dataentradaanimais9,pecuariapastagem_datasaidaanimais9,3),2),0)","v":0},{"$f":"IF(AND(ISNUMBER(coef_animal_tier2*pecuariapastagem_numeroanimais),pecuariapastagem_dataentradaanimais<>\"\",pecuariapastagem_datasaidaanimais<>\"\"),ROUND(coef_animal_tier2*pecuariapastagem_numeroanimais*YEARFRAC(pecuariapastagem_dataentradaanimais,pecuariapastagem_datasaidaanimais,3),2),0)+IF(AND(ISNUMBER(coef_animal1_tier2*pecuariapastagem_numeroanimais1),pecuariapastagem_dataentradaanimais1<>\"\",pecuariapastagem_datasaidaanimais1<>\"\"),ROUND(coef_animal1_tier2*pecuariapastagem_numeroanimais1*YEARFRAC(pecuariapastagem_dataentradaanimais1,pecuariapastagem_datasaidaanimais1,3),2),0)+IF(AND(ISNUMBER(coef_animal2_tier2*pecuariapastagem_numeroanimais2),pecuariapastagem_dataentradaanimais2<>\"\",pecuariapastagem_datasaidaanimais2<>\"\"),ROUND(coef_animal2_tier2*pecuariapastagem_numeroanimais2*YEARFRAC(pecuariapastagem_dataentradaanimais2,pecuariapastagem_datasaidaanimais2,3),2),0)+IF(AND(ISNUMBER(coef_animal3_tier2*pecuariapastagem_numeroanimais3),pecuariapastagem_dataentradaanimais3<>\"\",pecuariapastagem_datasaidaanimais3<>\"\"),ROUND(coef_animal3_tier2*pecuariapastagem_numeroanimais3*YEARFRAC(pecuariapastagem_dataentradaanimais3,pecuariapastagem_datasaidaanimais3,3),2),0)+IF(AND(ISNUMBER(coef_animal4_tier2*pecuariapastagem_numeroanimais4),pecuariapastagem_dataentradaanimais4<>\"\",pecuariapastagem_datasaidaanimais4<>\"\"),ROUND(coef_animal4_tier2*pecuariapastagem_numeroanimais4*YEARFRAC(pecuariapastagem_dataentradaanimais4,pecuariapastagem_datasaidaanimais4,3),2),0)+IF(AND(ISNUMBER(coef_animal5_tier2*pecuariapastagem_numeroanimais5),pecuariapastagem_dataentradaanimais5<>\"\",pecuariapastagem_datasaidaanimais5<>\"\"),ROUND(coef_animal5_tier2*pecuariapastagem_numeroanimais5*YEARFRAC(pecuariapastagem_dataentradaanimais5,pecuariapastagem_datasaidaanimais5,3),2),0)+IF(AND(ISNUMBER(coef_animal6_tier2*pecuariapastagem_numeroanimais6),pecuariapastagem_dataentradaanimais6<>\"\",pecuariapastagem_datasaidaanimais6<>\"\"),ROUND(coef_animal6_tier2*pecuariapastagem_numeroanimais6*YEARFRAC(pecuariapastagem_dataentradaanimais6,pecuariapastagem_datasaidaanimais6,3),2),0)+IF(AND(ISNUMBER(coef_animal7_tier2*pecuariapastagem_numeroanimais7),pecuariapastagem_dataentradaanimais7<>\"\",pecuariapastagem_datasaidaanimais7<>\"\"),ROUND(coef_animal7_tier2*pecuariapastagem_numeroanimais7*YEARFRAC(pecuariapastagem_dataentradaanimais7,pecuariapastagem_datasaidaanimais7,3),2),0)+IF(AND(ISNUMBER(coef_animal8_tier2*pecuariapastagem_numeroanimais8),pecuariapastagem_dataentradaanimais8<>\"\",pecuariapastagem_datasaidaanimais8<>\"\"),ROUND(coef_animal8_tier2*pecuariapastagem_numeroanimais8*YEARFRAC(pecuariapastagem_dataentradaanimais8,pecuariapastagem_datasaidaanimais8,3),2),0)+IF(AND(ISNUMBER(coef_animal9_tier2*pecuariapastagem_numeroanimais9),pecuariapastagem_dataentradaanimais9<>\"\",pecuariapastagem_datasaidaanimais9<>\"\"),ROUND(coef_animal9_tier2*pecuariapastagem_numeroanimais9*YEARFRAC(pecuariapastagem_dataentradaanimais9,pecuariapastagem_datasaidaanimais9,3),2),0)","v":0},{"$f":"IF(AND(ISNUMBER(coef_animal_manejodejetos*pecuariapastagem_numeroanimais),pecuariapastagem_dataentradaanimais<>\"\",pecuariapastagem_datasaidaanimais<>\"\"),ROUND(coef_animal_manejodejetos*pecuariapastagem_numeroanimais*YEARFRAC(pecuariapastagem_dataentradaanimais,pecuariapastagem_datasaidaanimais,3),2),0)+IF(AND(ISNUMBER(coef_animal1_manejodejetos*pecuariapastagem_numeroanimais1),pecuariapastagem_dataentradaanimais1<>\"\",pecuariapastagem_datasaidaanimais1<>\"\"),ROUND(coef_animal1_manejodejetos*pecuariapastagem_numeroanimais1*YEARFRAC(pecuariapastagem_dataentradaanimais1,pecuariapastagem_datasaidaanimais1,3),2),0)+IF(AND(ISNUMBER(coef_animal2_manejodejetos*pecuariapastagem_numeroanimais2),pecuariapastagem_dataentradaanimais2<>\"\",pecuariapastagem_datasaidaanimais2<>\"\"),ROUND(coef_animal2_manejodejetos*pecuariapastagem_numeroanimais2*YEARFRAC(pecuariapastagem_dataentradaanimais2,pecuariapastagem_datasaidaanimais2,3),2),0)+IF(AND(ISNUMBER(coef_animal3_manejodejetos*pecuariapastagem_numeroanimais3),pecuariapastagem_dataentradaanimais3<>\"\",pecuariapastagem_datasaidaanimais3<>\"\"),ROUND(coef_animal3_manejodejetos*pecuariapastagem_numeroanimais3*YEARFRAC(pecuariapastagem_dataentradaanimais3,pecuariapastagem_datasaidaanimais3,3),2),0)+IF(AND(ISNUMBER(coef_animal4_manejodejetos*pecuariapastagem_numeroanimais4),pecuariapastagem_dataentradaanimais4<>\"\",pecuariapastagem_datasaidaanimais4<>\"\"),ROUND(coef_animal4_manejodejetos*pecuariapastagem_numeroanimais4*YEARFRAC(pecuariapastagem_dataentradaanimais4,pecuariapastagem_datasaidaanimais4,3),2),0)+IF(AND(ISNUMBER(coef_animal5_manejodejetos*pecuariapastagem_numeroanimais5),pecuariapastagem_dataentradaanimais5<>\"\",pecuariapastagem_datasaidaanimais5<>\"\"),ROUND(coef_animal5_manejodejetos*pecuariapastagem_numeroanimais5*YEARFRAC(pecuariapastagem_dataentradaanimais5,pecuariapastagem_datasaidaanimais5,3),2),0)+IF(AND(ISNUMBER(coef_animal6_manejodejetos*pecuariapastagem_numeroanimais6),pecuariapastagem_dataentradaanimais6<>\"\",pecuariapastagem_datasaidaanimais6<>\"\"),ROUND(coef_animal6_manejodejetos*pecuariapastagem_numeroanimais6*YEARFRAC(pecuariapastagem_dataentradaanimais6,pecuariapastagem_datasaidaanimais6,3),2),0)+IF(AND(ISNUMBER(coef_animal7_manejodejetos*pecuariapastagem_numeroanimais7),pecuariapastagem_dataentradaanimais7<>\"\",pecuariapastagem_datasaidaanimais7<>\"\"),ROUND(coef_animal7_manejodejetos*pecuariapastagem_numeroanimais7*YEARFRAC(pecuariapastagem_dataentradaanimais7,pecuariapastagem_datasaidaanimais7,3),2),0)+IF(AND(ISNUMBER(coef_animal8_manejodejetos*pecuariapastagem_numeroanimais8),pecuariapastagem_dataentradaanimais8<>\"\",pecuariapastagem_datasaidaanimais8<>\"\"),ROUND(coef_animal8_manejodejetos*pecuariapastagem_numeroanimais8*YEARFRAC(pecuariapastagem_dataentradaanimais8,pecuariapastagem_datasaidaanimais8,3),2),0)+IF(AND(ISNUMBER(coef_animal9_manejodejetos*pecuariapastagem_numeroanimais9),pecuariapastagem_dataentradaanimais9<>\"\",pecuariapastagem_datasaidaanimais9<>\"\"),ROUND(coef_animal9_manejodejetos*pecuariapastagem_numeroanimais9*YEARFRAC(pecuariapastagem_dataentradaanimais9,pecuariapastagem_datasaidaanimais9,3),2),0)","v":0},{"$f":"IF(AND(ISNUMBER(coef_animal_fermentacaoenterica*pecuariapastagem_numeroanimais),pecuariapastagem_dataentradaanimais<>\"\",pecuariapastagem_datasaidaanimais<>\"\"),ROUND(coef_animal_fermentacaoenterica*pecuariapastagem_numeroanimais*YEARFRAC(pecuariapastagem_dataentradaanimais,pecuariapastagem_datasaidaanimais,3),2),0)+IF(AND(ISNUMBER(coef_animal1_fermentacaoenterica*pecuariapastagem_numeroanimais1),pecuariapastagem_dataentradaanimais1<>\"\",pecuariapastagem_datasaidaanimais1<>\"\"),ROUND(coef_animal1_fermentacaoenterica*pecuariapastagem_numeroanimais1*YEARFRAC(pecuariapastagem_dataentradaanimais1,pecuariapastagem_datasaidaanimais1,3),2),0)+IF(AND(ISNUMBER(coef_animal2_fermentacaoenterica*pecuariapastagem_numeroanimais2),pecuariapastagem_dataentradaanimais2<>\"\",pecuariapastagem_datasaidaanimais2<>\"\"),ROUND(coef_animal2_fermentacaoenterica*pecuariapastagem_numeroanimais2*YEARFRAC(pecuariapastagem_dataentradaanimais2,pecuariapastagem_datasaidaanimais2,3),2),0)+IF(AND(ISNUMBER(coef_animal3_fermentacaoenterica*pecuariapastagem_numeroanimais3),pecuariapastagem_dataentradaanimais3<>\"\",pecuariapastagem_datasaidaanimais3<>\"\"),ROUND(coef_animal3_fermentacaoenterica*pecuariapastagem_numeroanimais3*YEARFRAC(pecuariapastagem_dataentradaanimais3,pecuariapastagem_datasaidaanimais3,3),2),0)+IF(AND(ISNUMBER(coef_animal4_fermentacaoenterica*pecuariapastagem_numeroanimais4),pecuariapastagem_dataentradaanimais4<>\"\",pecuariapastagem_datasaidaanimais4<>\"\"),ROUND(coef_animal4_fermentacaoenterica*pecuariapastagem_numeroanimais4*YEARFRAC(pecuariapastagem_dataentradaanimais4,pecuariapastagem_datasaidaanimais4,3),2),0)+IF(AND(ISNUMBER(coef_animal5_fermentacaoenterica*pecuariapastagem_numeroanimais5),pecuariapastagem_dataentradaanimais5<>\"\",pecuariapastagem_datasaidaanimais5<>\"\"),ROUND(coef_animal5_fermentacaoenterica*pecuariapastagem_numeroanimais5*YEARFRAC(pecuariapastagem_dataentradaanimais5,pecuariapastagem_datasaidaanimais5,3),2),0)+IF(AND(ISNUMBER(coef_animal6_fermentacaoenterica*pecuariapastagem_numeroanimais6),pecuariapastagem_dataentradaanimais6<>\"\",pecuariapastagem_datasaidaanimais6<>\"\"),ROUND(coef_animal6_fermentacaoenterica*pecuariapastagem_numeroanimais6*YEARFRAC(pecuariapastagem_dataentradaanimais6,pecuariapastagem_datasaidaanimais6,3),2),0)+IF(AND(ISNUMBER(coef_animal7_fermentacaoenterica*pecuariapastagem_numeroanimais7),pecuariapastagem_dataentradaanimais7<>\"\",pecuariapastagem_datasaidaanimais7<>\"\"),ROUND(coef_animal7_fermentacaoenterica*pecuariapastagem_numeroanimais7*YEARFRAC(pecuariapastagem_dataentradaanimais7,pecuariapastagem_datasaidaanimais7,3),2),0)+IF(AND(ISNUMBER(coef_animal8_fermentacaoenterica*pecuariapastagem_numeroanimais8),pecuariapastagem_dataentradaanimais8<>\"\",pecuariapastagem_datasaidaanimais8<>\"\"),ROUND(coef_animal8_fermentacaoenterica*pecuariapastagem_numeroanimais8*YEARFRAC(pecuariapastagem_dataentradaanimais8,pecuariapastagem_datasaidaanimais8,3),2),0)+IF(AND(ISNUMBER(coef_animal9_fermentacaoenterica*pecuariapastagem_numeroanimais9),pecuariapastagem_dataentradaanimais9<>\"\",pecuariapastagem_datasaidaanimais9<>\"\"),ROUND(coef_animal9_fermentacaoenterica*pecuariapastagem_numeroanimais9*YEARFRAC(pecuariapastagem_dataentradaanimais9,pecuariapastagem_datasaidaanimais9,3),2),0)","v":0},{"$f":"ROUND(M122+(M124*25)+(M123*298),2)","v":0},{"$f":"IF(pecuariapastagem_temponasituacao = \"Menor ou igual a 20 anos\",IF(ISNUMBER(coef_mudancausosolopecuariapastagem*pecuariapastagem_areacultivada),ROUND(coef_mudancausosolopecuariapastagem*pecuariapastagem_areacultivada,2),0),0)","v":0},{"$f":"IF(ISNUMBER(pecuariapastagem_aplicacaoherbicidas),ROUND(((pecuariapastagem_aplicacaoherbicidas)*coef_aplicacaoherbicida)/1000,2),0) + IF(ISNUMBER(pecuariapastagem_aplicacaofungicidas),ROUND(((pecuariapastagem_aplicacaofungicidas)*coef_aplicacaofungicida)/1000,2),0)+IF(ISNUMBER(pecuariapastagem_aplicacaoinseticida),ROUND(((pecuariapastagem_aplicacaoinseticida)*coef_aplicacaoinseticida)/1000,2),0)","v":0},{"$f":"IF(ISNUMBER(pecuariapastagem_cultivosoloorganico*coef_manejosoloorganico),ROUND(pecuariapastagem_cultivosoloorganico*coef_manejosoloorganico,2),0)","v":0},{"$f":"IF(ISNUMBER(pecuariapastagem_consumodiesel),ROUND((pecuariapastagem_consumodiesel*0.05)*coef_fatoremissaooperacaomecanizadabiodiesel,2), IF(ISNUMBER(coef_somahoramaquinapecuariapastagem*coef_fatoremissaooperacaomecanizadabiodiesel*(20*0.05)*pecuariapastagem_areacultivada),ROUND(coef_somahoramaquinapecuariapastagem*coef_fatoremissaooperacaomecanizadabiodiesel*(20*0.05)*pecuariapastagem_areacultivada,2),0))","v":0},{"$f":"SUM(C125:Q125)","v":0}]

{"sheet":"Soja","index":4,"n_rows":61,"n_cols":10,"rows_kept":61,"cut":false,"hidden":false,"merged":[[60,1,60,3],[24,1,24,9],[14,1,14,9],[43,1,43,9],[54,1,54,9],[58,1,58,3],[56,1,56,3],[16,1,16,6],[32,1,32,3],[28,1,28,9],[22,1,22,3],[21,1,21,3],[20,1,20,6],[21,4,21,5],[22,4,22,5]]}
[]
[]
[]
[]
[]
[]
[]
[]
[]
[]
[]
[]
[]
[]
[null,"Soja"]
[]
[null,"Local"]
[null,"Estado","Latitude (graus)","Longitude (graus)","Bioma","Classe textural do solo","Teor de argila no solo (%)"]
[null,"","","","","",""]
[]
[null,"Vegetação nativa e solo"]
[null,"Classificação da vegetação nativa",null,null,"Classificação do solo",null,"Período de transição (anos)"]
[null,"",null,null,"",null,""]
[]
[null,"Cultivo"]
[null,"Área cultivada (hectare)","Produtividade média (tonelada/hectare)","Sistema de cultivo atual","Tempo de adoção do sistema","Uso anterior da terra","Área de queima de resíduos (hectare)","Cultivo de solo orgânico (hectare)","Data de plantio","Data de colheita"]
[null,null,null,"","",""]
[]
[null,"Práticas de adubação"]
[null,"Adubação nitrogenada \n(tonelada; exceto uréia)","Nitrogênio no adubo sintético (%)","Aplicação de uréia (tonelada)","Aplicação de calcário calcítico (tonelada)","Aplicação de calcário dolomítico (tonelada)","Qual o tipo de adubação orgânica?","Quantidade (tonelada)","Qual o tipo de adubação verde?","Quantidade (tonelada)"]
[null,null,null,null,null,null,"",null,""]
[]
[null,"Aplicação de defensivos"]
[null,"Herbicidas \nem geral (kg)","Inseticidas \nem geral (kg)","Fungicidas \nem geral (kg)"]
[]
[]
[null,"Consumo de diesel"]
[null,"Quantificação de consumo de diesel"]
[null,""]
[]
[null,"Diesel consumido no ciclo (litros)"]
[]
[]
[null,"Operações mecanizadas"]
[]
[]
[]
[]
[]
[]
[]
[]
[]
[]
[null,"Emissões totais"]
[]
[null,"Emissões em toneladas de CO2 equivalente",null,null,{"$f":"Síntese!O57","v":0}]
[]
[null,"Emissões em toneladas de CO2 equivalente por hectare",null,null,{"$f":"IF(ISNUMBER(E57/graos_areacultivada),E57/graos_areacultivada,0)","v":0}]
[]
[null,"Emissões em toneladas de CO2 equivalente por tonelada",null,null,{"$f":"IF(ISNUMBER(E57/(graos_produtividademedia*graos_areacultivada)),E57/(graos_produtividademedia*graos_areacultivada),0)","v":0}]

{"sheet":"Algodão","index":5,"n_rows":59,"n_cols":10,"rows_kept":59,"cut":false,"hidden":false,"merged":[[58,1,58,3],[14,1,14,9],[43,1,43,9],[52,1,52,9],[56,1,56,3],[16,1,16,6],[32,1,32,3],[54,1,54,3],[24,1,24,9],[28,1,28,9],[21,1,21,3],[22,1,22,3],[21,4,21,5],[22,4,22,5],[20,1,20,6]]}
[]
[]
[]
[]
[]
[]
[]
[]
[]
[]
[]
[]
[]
[]
[null,"Algodão"]
[]
[null,"Local"]
[null,"Estado","Latitude (graus)","Longitude (graus)","Bioma","Classe textural do solo","Teor de argila no solo (%)"]
[null,"","","","","",""]
[]
[null,"Vegetação nativa e solo"]
[null,"Classificação da vegetação nativa",null,null,"Classificação do solo",null,"Período de transição (anos)"]
[null,"",null,null,"",null,""]
[]
[null,"Cultivo"]
[null,"Área cultivada (hectare)","Produtividade média (tonelada/hectare)","Sistema de cultivo atual","Tempo de adoção do sistema","Uso anterior da terra","Área de queima de resíduos (hectare)","Cultivo de solo orgânico (hectare)","Data de plantio","Data de colheita"]
[null,null,null,"","",""]
[]
[null,"Práticas de adubação"]
[null,"Adubação nitrogenada\n(tonelada; exceto uréia)","Nitrogênio no adubo sintético (%)","Aplicação de uréia (tonelada)","Aplicação de calcário calcítico (tonelada)","Aplicação de calcário dolomítico (tonelada)","Qual o tipo de adubação orgânica?","Quantidade (tonelada)","Qual o tipo de adubação verde?","Quantidade (tonelada)"]
[null,null,null,null,null,null,"",null,""]
[]
[null,"Aplicação de defensivos"]
[null,"Herbicidas \nem geral (kg)","Inseticidas \nem geral (kg)","Fungicidas \nem geral (kg)"]
[]
[]
[null,"Consumo de diesel"]
[null,"Quantificação de consumo de diesel"]
[null,""]
[]
[null,"Diesel consumido no ciclo (litros)"]
[]
[]
[null,"Operações mecanizadas"]
[]
[]
[]
[]
[]
[]
[]
[]
[null,"Emissões totais"]
[]
[null,"Emissões em toneladas de CO2 equivalente",null,null,{"$f":"Síntese!O77","v":0}]
[]
[null,"Emissões em toneladas de CO2 equivalente por hectare",null,null,{"$f":"IF(ISNUMBER(E55/algodao_areacultivada),E55/algodao_areacultivada,0)","v":0}]
[]
[null,"Emissões em toneladas de CO2 equivalente por tonelada",null,null,{"$f":"IF(ISNUMBER(E55/(algodao_areacultivada*algodao_produtividademedia)),E55/(algodao_areacultivada*algodao_produtividademedia),0)","v":0}]

{"sheet":"Trigo","index":6,"n_rows":59,"n_cols":10,"rows_kept":59,"cut":false,"hidden":false,"merged":[[58,1,58,3],[14,1,14,9],[43,1,43,9],[52,1,52,9],[56,1,56,3],[16,1,16,6],[32,1,32,3],[54,1,54,3],[24,1,24,9],[28,1,28,9],[21,1,21,3],[22,1,22,3],[21,4,21,5],[22,4,22,5],[20,1,20,6]]}
[]
[]
[]
[]
[]
[]
[]
[]
[]
[]
[]
[]
[]
[]
[null,"Trigo"]
[]
[null,"Local"]
[null,"Estado","Latitude (graus)","Longitude (graus)","Bioma","Classe textural do solo","Teor de argila no solo (%)"]
[null,"","","","","",""]
[]
[null,"Vegetação nativa e solo"]
[null,"Classificação da vegetação nativa",null,null,"Classificação do solo",null,"Período de transição (anos)"]
[null,"",null,null,"",null,""]
[]
[null,"Cultivo"]
[null,"Área cultivada (hectare)","Produtividade média (tonelada/hectare)","Sistema de cultivo atual","Tempo de adoção do sistema","Uso anterior da terra","Área de queima de resíduos (hectare)","Cultivo de solo orgânico (hectare)","Data de plantio","Data de colheita"]
[null,null,null,"","",""]
[]
[null,"Práticas de adubação"]
[null,"Adubação nitrogenada\n(tonelada; exceto uréia)","Nitrogênio no adubo sintético (%)","Aplicação de uréia (tonelada)","Aplicação de calcário calcítico (tonelada)","Aplicação de calcário dolomítico (tonelada)","Qual o tipo de adubação orgânica?","Quantidade (tonelada)","Qual o tipo de adubação verde?","Quantidade (tonelada)"]
[null,null,null,null,null,null,"",null,""]
[]
[null,"Aplicação de defensivos"]
[null,"Herbicidas \nem geral (kg)","Inseticidas \nem geral (kg)","Fungicidas \nem geral (kg)"]
[]
[]
[null,"Consumo de diesel"]
[null,"Quantificação de consumo de diesel"]
[null,""]
[]
[null,"Diesel consumido no ciclo (litros)"]
[]
[]
[null,"Operações mecanizadas"]
[]
[]
[]
[]
[]
[]
[]
[]
[null,"Emissões totais"]
[]
[null,"Emissões em toneladas de CO2 equivalente",null,null,{"$f":"Síntese!O87","v":0}]
[]
[null,"Emissões em toneladas de CO2 equivalente por hectare",null,null,{"$f":"IF(ISNUMBER(E55/trigo_areacultivada),E55/trigo_areacultivada,0)","v":0}]
[]
[null,"Emissões em toneladas de CO2 equivalente por tonelada",null,null,{"$f":"IF(ISNUMBER(E55/(trigo_areacultivada*trigo_produtividademedia)),E55/(trigo_areacultivada*trigo_produtividademedia),0)","v":0}]

{"sheet":"Feijão","index":7,"n_rows":61,"n_cols":10,"rows_kept":61,"cut":false,"hidden":false,"merged":[[60,1,60,3],[14,1,14,9],[43,1,43,9],[54,1,54,9],[58,1,58,3],[16,1,16,6],[32,1,32,3],[56,1,56,3],[24,1,24,9],[28,1,28,9],[20,1,20,6],[21,1,21,3],[21,4,21,5],[22,1,22,3],[22,4,22,5]]}
[]
[]
[]
[]
[]
[]
[]
[]
[]
[]
[]
[]
[]
[]
[null,"Feijão"]
[]
[null,"Local"]
[null,"Estado","Latitude (graus)","Longitude (graus)","Bioma","Classe textural do solo","Teor de argila no solo (%)"]
[null,"","","","","",""]
[]
[null,"Vegetação nativa e solo"]
[null,"Classificação da vegetação nativa",null,null,"Classificação do solo",null,"Período de transição (anos)"]
[null,"",null,null,"",null,""]
[]
[null,"Cultivo"]
[null,"Área cultivada (hectare)","Produtividade média (tonelada/hectare)","Sistema de cultivo atual","Tempo de adoção do sistema","Uso anterior da terra","Área de queima de resíduos (hectare)","Cultivo de solo orgânico (hectare)","Data de plantio","Data de colheita"]
[null,null,null,"","",""]
[]
[null,"Práticas de adubação"]
[null,"Adubação nitrogenada\n(tonelada; exceto uréia)","Nitrogênio no adubo sintético (%)","Aplicação de uréia (tonelada)","Aplicação de calcário calcítico (tonelada)","Aplicação de calcário dolomítico (tonelada)","Qual o tipo de adubação orgânica?","Quantidade (tonelada)","Qual o tipo de adubação verde?","Quantidade (tonelada)"]
[null,null,null,null,null,null,"",null,""]
[]
[null,"Aplicação de defensivos"]
[null,"Herbicidas \nem geral (kg)","Inseticidas \nem geral (kg)","Fungicidas \nem geral (kg)"]
[]
[]
[null,"Consumo de diesel"]
[null,"Quantificação de consumo de diesel"]
[null,""]
[]
[null,"Diesel consumido no ciclo (litros)"]
[]
[]
[null,"Operações mecanizadas"]
[]
[]
[]
[]
[]
[]
[]
[]
[]
[]
[null,"Emissões totais"]
[]
[null,"Emissões em toneladas de CO2 equivalente",null,null,{"$f":"Síntese!O97","v":0}]
[]
[null,"Emissões em toneladas de CO2 equivalente por hectare",null,null,{"$f":"IF(ISNUMBER(E57/feijao_areacultivada),E57/feijao_areacultivada,0)","v":0}]
[]
[null,"Emissões em toneladas de CO2 equivalente por tonelada",null,null,{"$f":"IF(ISNUMBER(E57/(feijao_areacultivada*feijao_produtividademedia) ),E57/(feijao_areacultivada*feijao_produtividademedia),0)","v":0}]

{"sheet":"Milho","index":8,"n_rows":61,"n_cols":10,"rows_kept":61,"cut":false,"hidden":false,"merged":[[60,1,60,3],[14,1,14,9],[43,1,43,9],[54,1,54,9],[58,1,58,3],[16,1,16,6],[32,1,32,3],[56,1,56,3],[24,1,24,9],[28,1,28,9],[20,1,20,6],[21,1,21,3],[21,4,21,5],[22,1,22,3],[22,4,22,5]]}
[]
[]
[]
[]
[]
[]
[]
[]
[]
[]
[]
[]
[]
[]
[null,"Milho"]
[]
[null,"Local"]
[null,"Estado","Latitude (graus)","Longitude (graus)","Bioma","Classe textural do solo","Teor de argila no solo (%)"]
[null,"","","","","",""]
[]
[null,"Vegetação nativa e solo"]
[null,"Classificação da vegetação nativa",null,null,"Classificação do solo",null,"Período de transição (anos)"]
[null,"",null,null,"",null,""]
[]
[null,"Cultivo"]
[null,"Área cultivada (hectare)","Produtividade média (tonelada/hectare)","Sistema de cultivo atual","Tempo de adoção do sistema","Uso anterior da terra","Área de queima de resíduos (hectare)","Cultivo de solo orgânico (hectare)","Data de plantio","Data de colheita"]
[null,null,null,"","",""]
[]
[null,"Práticas de adubação"]
[null,"Adubação nitrogenada\n(tonelada; exceto uréia)","Nitrogênio no adubo sintético (%)","Aplicação de uréia (tonelada)","Aplicação de calcário calcítico (tonelada)","Aplicação de calcário dolomítico (tonelada)","Qual o tipo de adubação orgânica?","Quantidade (tonelada)","Qual o tipo de adubação verde?","Quantidade (tonelada)"]
[null,null,null,null,null,null,"",null,""]
[]
[null,"Aplicação de defensivos"]
[null,"Herbicidas \nem geral (kg)","Inseticidas \nem geral (kg)","Fungicidas \nem geral (kg)"]
[]
[]
[null,"Consumo de diesel"]
[null,"Quantificação de consumo de diesel"]
[null,""]
[]
[null,"Diesel consumido no ciclo (litros)"]
[]
[]
[null,"Operações mecanizadas"]
[]
[]
[]
[]
[]
[]
[]
[]
[]
[]
[null,"Emissões totais"]
[]
[null,"Emissões em toneladas de CO2 equivalente",null,null,{"$f":"Síntese!O67","v":0}]
[]
[null,"Emissões em toneladas de CO2 equivalente por hectare",null,null,{"$f":"IF(ISNUMBER(E57/milho_areacultivada),E57/milho_areacultivada,0)","v":0}]
[]
[null,"Emissões em toneladas de CO2 equivalente por tonelada",null,null,{"$f":"IF(ISNUMBER(E57/(milho_areacultivada*milho_produtividademedia)),E57/(milho_areacultivada*milho_produtividademedia),0)","v":0}]

{"sheet":"Cana-de-açúcar","index":9,"n_rows":61,"n_cols":10,"rows_kept":61,"cut":false,"hidden":false,"merged":[[60,1,60,3],[14,1,14,9],[43,1,43,9],[54,1,54,9],[58,1,58,3],[16,1,16,4],[32,1,32,3],[56,1,56,3],[24,1,24,9],[28,1,28,9],[20,1,20,6],[21,1,21,3],[21,4,21,5],[22,1,22,3],[22,4,22,5]]}
[]
[]
[]
[]
[]
[]
[]
[]
[]
[]
[]
[]
[]
[]
[null,"Cana-de-açúcar"]
[]
[null,"Local"]
[null,"Estado","Latitude (graus)","Longitude (graus)","Bioma","Classe textural do solo","Teor de argila no solo (%)"]
[null,"","","","","",""]
[]
[null,"Vegetação nativa e solo"]
[null,"Classificação da vegetação nativa",null,null,"Classificação do solo",null,"Período de transição (anos)"]
[null,"",null,null,"",null,""]
[]
[null,"Cultivo"]
[null,"Área cultivada (hectare)","Produtividade média (tonelada/hectare)","Sistema de cultivo atual","Tempo de adoção do sistema","Uso anterior da terra","Área de queima de resíduos (hectare)","Cultivo de solo orgânico (hectare)","Ciclo da cultura","Data de colheita"]
[null,null,null,"","",""]
[]
[null,"Práticas de adubação"]
[null,"Adubação nitrogenada\n(tonelada; exceto uréia)","Nitrogênio no adubo sintético (%)","Aplicação de uréia (tonelada)","Aplicação de calcário calcítico (tonelada)","Aplicação de calcário dolomítico (tonelada)","Qual o tipo de adubação orgânica?","Quantidade (tonelada)","Qual o tipo de adubação verde?","Quantidade (tonelada)"]
[null,null,null,null,null,null,"",null,""]
[]
[null,"Aplicação de defensivos"]
[null,"Herbicidas \nem geral (kg)","Inseticidas \nem geral (kg)","Fungicidas \nem geral (kg)"]
[]
[]
[null,"Consumo de diesel"]
[null,"Quantificação de consumo de diesel"]
[null,""]
[]
[null,"Diesel consumido no ciclo (litros)"]
[]
[]
[null,"Operações mecanizadas"]
[]
[]
[]
[]
[]
[]
[]
[]
[]
[]
[null,"Emissões totais"]
[]
[null,"Emissões em toneladas de CO2 equivalente",null,null,{"$f":"Síntese!O107","v":0}]
[]
[null,"Emissões em toneladas de CO2 equivalente por hectare",null,null,{"$f":"IF(ISNUMBER(E57/cana_areacultivada),E57/cana_areacultivada,0)","v":0}]
[]
[null,"Emissões em toneladas de CO2 equivalente por tonelada",null,null,{"$f":"IF(ISNUMBER(E57/(cana_areacultivada* cana_produtividademedia)),E57/(cana_areacultivada* cana_produtividademedia),0)","v":0}]

{"sheet":"Pecuária e pastagem","index":10,"n_rows":68,"n_cols":10,"rows_kept":68,"cut":false,"hidden":false,"merged":[[14,1,14,9],[61,1,61,9],[67,1,67,3],[65,1,65,3],[63,1,63,3],[16,1,16,6],[24,1,24,5],[45,1,45,3],[28,1,28,6],[41,1,41,9],[56,1,56,9],[20,1,20,6],[21,1,21,3],[21,4,21,5],[22,1,22,3],[22,4,22,5]]}
[]
[]
[]
[]
[]
[]
[]
[]
[]
[]
[]
[]
[]
[]
[null,"Pecuária e pastagem"]
[]
[null,"Local"]
[null,"Estado","Latitude (graus)","Longitude (graus)","Bioma","Classe textural do solo","Teor de argila \nno solo (%)"]
[null,"","","","","",""]
[]
[null,"Vegetação nativa e solo"]
[null,"Classificação da vegetação nativa",null,null,"Classificação do solo",null,"Período de transição (anos)"]
[null,"",null,null,"",null,""]
[]
[null,"Cultivo da pastagem"]
[null,"Área cultivada (hectare)","Situação atual","Tempo nesta situação","Uso anterior da terra","Cultivo de solo orgânico (hectare)"]
[null,null,"","",""]
[]
[null,"Informações sobre a criação de animais"]
[null,"Tipo de animal criado","Sexo","Número de animais","Sistema de manejo de dejetos (se houver)","Data de entrada dos animais","Data de saída dos animais"]
[null,"","",null,""]
[null,"","",null,""]
[null,"","",null,""]
[null,"","",null,""]
[null,"","",null,""]
[null,"","",null,""]
[null,"","",null,""]
[null,"","",null,""]
[null,"","",null,""]
[null,"","",null,""]
[]
[null,"Práticas de adubação de pastagem"]
[null,"Adubação nitrogenada\n(tonelada; exceto uréia)","Nitrogênio no adubo sintético (%)","Aplicação de uréia (tonelada)","Aplicação de calcário calcítico (tonelada)","Aplicação de calcário dolomítico (tonelada)","Qual o tipo de adubação orgânica?","Quantidade (tonelada)","Qual o tipo de adubação verde?","Quantidade (tonelada)"]
[null,null,null,null,null,null,"",null,""]
[]
[null,"Aplicação de defensivos"]
[null,"Herbicidas \nem geral (kg)","Inseticidas \nem geral (kg)","Fungicidas \nem geral (kg)"]
[]
[]
[null,"Consumo de diesel"]
[null,"Quantificação de consumo de diesel"]
[null,""]
[]
[null,"Diesel consumido no ciclo (litros)"]
[]
[]
[null,"Operações mecanizadas"]
[]
[]
[]
[]
[null,"Emissões totais"]
[]
[null,"Emissões em toneladas de CO2 equivalente",null,null,{"$f":"Síntese!R125","v":0}]
[]
[null,"Emissões em toneladas de CO2 equivalente por hectare",null,null,{"$f":"IF(ISNUMBER(E64/pecuariapastagem_areacultivada),E64/pecuariapastagem_areacultivada,0)","v":0}]
[]
[null,"Emissões em toneladas de CO2 equivalente por cabeça",null,null,{"$f":"IF(ISNUMBER(E64/SUM(D31:D40)),E64/SUM(D31:D40),0)","v":0}]

{"sheet":"Arroz","index":11,"n_rows":61,"n_cols":10,"rows_kept":61,"cut":false,"hidden":false,"merged":[[14,1,14,9],[54,1,54,9],[60,1,60,3],[43,1,43,9],[58,1,58,3],[56,1,56,3],[16,1,16,7],[32,1,32,3],[24,1,24,9],[28,1,28,9],[20,1,20,6],[21,1,21,3],[21,4,21,5],[22,1,22,3],[22,4,22,5]]}
[]
[]
[]
[]
[]
[]
[]
[]
[]
[]
[]
[]
[]
[]
[null,"Arroz"]
[]
[null,"Local"]
[null,"Estado","Latitude (graus)","Longitude (graus)","Bioma","Regime de água\n(Para terras baixas)","Classe textural do solo","Teor de argila no solo (%)"]
[null,"","","","","","",""]
[]
[null,"Vegetação nativa e solo"]
[null,"Classificação da vegetação nativa",null,null,"Classificação do solo",null,"Período de transição (anos)"]
[]
[]
[null,"Cultivo"]
[null,"Área cultivada (hectare)","Produtividade média (tonelada/hectare)","Sistema de cultivo atual","Tempo de adoção do sistema","Uso anterior da terra","Área de queima de resíduos (hectare)","Cultivo de solo orgânico (hectare)","Data de plantio","Data de colheita"]
[null,null,null,"","",""]
[]
[null,"Práticas de adubação"]
[null,"Adubação nitrogenada\n(tonelada; exceto uréia)","Nitrogênio no adubo sintético (%)","Aplicação de uréia (tonelada)","Aplicação de calcário calcítico (tonelada)","Aplicação de calcário dolomítico (tonelada)","Quantidade de matéria seca aplicada (tonelada)","A matéria seca é fermentada?","Qual o tipo de adubação verde?","Quantidade (tonelada)"]
[null,null,null,null,null,null,null,"",""]
[]
[null,"Aplicação de defensivos"]
[null,"Herbicidas \nem geral (kg)","Inseticidas \nem geral (kg)","Fungicidas \nem geral (kg)"]
[]
[]
[null,"Consumo de diesel"]
[null,"Quantificação de consumo de diesel"]
[null,""]
[]
[null,"Diesel consumido no ciclo (litros)"]
[]
[]
[null,"Operações mecanizadas"]
[]
[]
[]
[]
[]
[]
[]
[]
[]
[]
[null,"Emissões totais"]
[]
[null,"Emissões em toneladas de CO2 equivalente",null,null,{"$f":"Síntese!M117","v":0}]
[]
[null,"Emissões em toneladas de CO2 equivalente por hectare",null,null,{"$f":"IF(ISNUMBER(E57/arroz_areacultivada),E57/arroz_areacultivada,0)","v":0}]
[]
[null,"Emissões em toneladas de CO2 equivalente por tonelada",null,null,{"$f":"IF(ISNUMBER(E57/(arroz_areacultivada*arroz_produtividademedia)),E57/(arroz_areacultivada*arroz_produtividademedia),0)","v":0}]

{"sheet":"Consumo de energia","index":12,"n_rows":28,"n_cols":2,"rows_kept":28,"cut":false,"hidden":false,"merged":[[30,1,30,4],[27,1,29,4],[13,1,13,20],[22,1,24,4],[25,1,25,4]]}
[]
[]
[]
[]
[]
[]
[]
[]
[]
[]
[]
[]
[]
[null,"Consumo de energia elétrica"]
[]
[]
[]
[]
[]
[]
[]
[]
[null,"Consumo mensal médio (MWh) - Janeiro de 2010 a Julho de 2010"]
[]
[]
[]
[]
[null,"Consumo anual no período (MWh) - 2010 a 2010"]

{"sheet":"COEFICIENTES","index":13,"n_rows":115,"n_cols":75,"rows_kept":115,"cut":false,"hidden":false,"merged":[[3,21,4,21],[3,16,4,16],[3,25,4,25],[3,24,4,24],[3,15,4,15],[3,18,4,18],[3,17,4,17],[3,19,4,19],[3,20,4,20],[3,22,4,22],[3,41,3,46],[13,37,13,46],[14,38,14,46],[3,31,4,31],[3,23,4,23],[3,30,4,30],[3,28,4,28],[3,27,4,27],[3,26,4,26],[3,29,4,29],[4,37,10,37],[4,38,10,38],[4,39,4,40],[9,39,10,39],[5,39,6,39],[2,15,2,35],[15,38,15,46],[7,39,8,39],[10,41,10,46],[0,68,0,74],[6,69,6,74],[6,68,7,68],[5,68,5,74],[6,41,6,46],[9,41,9,46],[1,68,1,69],[15,48,15,49],[1,37,1,46],[2,37,2,40],[5,48,5,49],[3,37,3,40],[17,38,17,46],[18,38,18,46],[11,38,11,46],[12,37,12,46],[34,0,35,0],[34,1,34,4],[35,1,35,4],[34,5,36,5],[26,8,26,11],[27,8,27,11],[28,8,28,11],[30,8,30,11],[29,8,29,11],[16,38,16,46],[8,0,13,0],[8,41,8,46],[82,48,82,49],[40,48,40,49],[48,48,48,49],[73,48,73,49],[60,48,60,49],[27,48,27,49],[19,38,19,46],[33,14,34,14],[20,38,20,46],[22,38,22,46],[32,14,32,33],[21,37,21,46],[103,14,103,18],[33,15,33,33],[73,14,73,27],[74,25,75,25],[74,24,75,24],[74,19,75,19],[74,20,75,20],[74,17,75,17],[74,14,75,14],[74,18,75,18],[44,14,45,14],[43,14,43,25],[74,21,75,21],[74,22,75,22],[74,23,75,23],[23,68,23,69],[0,0,0,5],[0,54,0,66],[0,37,0,46],[25,8,25,11],[0,8,0,12],[23,8,23,11],[24,8,24,11],[1,14,1,35],[0,14,0,35],[2,41,2,46],[0,51,0,52],[0,48,0,49],[7,41,7,46],[4,41,4,46],[5,41,5,46]]}
["Emissões diretas",null,null,null,null,null,null,null,"Mudança de uso do solo",null,null,null,null,null,"Pecuária",null,null,null,null,null,null,null,null,null,null,null,null,null,null,null,null,null,null,null,null,null,null,"Arroz",null,null,null,null,null,null,null,null,null,null,"Operações mecanizadas",null,null,"Aplicação de defensivos",null,null,"Forçante radioativo - Energia elétrica",null,null,null,null,null,null,null,null,null,null,null,null,null,"Mudança de uso do solo - Floresta para área agrícola ou pastagem"]
["Fonte","Coeficiente composto (tCO2 eq)",null,null,"Adubo verde","% N",null,null,"Uso anterior","Uso atual","Observação","Coeficiente composto (tCO2/ha eq)","Coeficiente composto (tCO2/ha eq) *-1",null,"Nitrogênio - Sistema de manejo Tier 1",null,null,null,null,null,null,null,null,null,null,null,null,null,null,null,null,null,null,null,null,null,null,"SFw",null,null,null,null,null,null,null,null,null,null,"Conversor (CO2;t/litro)",2.6809999999999998E-3,null,"Produto","Kg CO2 eq/Kg de produto",null,"Ano","Janeiro","Fevereiro","Março","Abril","Maio","Junho","Julho","Agosto","Setembro","Outubro","Novembro","Dezembro",null,"Coeficientes de transição"]
["Nitrogênio utilizado como fertilizante sintético",8.3699999999999996E-4,null,null,"Gramínea",1.01,null,null,"Plantio direto","Integração lavoura-pecuária",null,1.0266666666666666,{"$f":"L3*-1","v":-1.0266666666666666},null,"Estado","Animal",null,null,null,null,null,null,null,null,null,null,null,null,null,null,null,null,null,null,null,null,null,"Regime de água",null,null,null,null,null,null,null,null,null,null,"Conversor (CH4;t/litro)",2.9999999999999999E-7,null,"Herbicida",10.260999999999999,null,2006,3.2199999999999999E-2,3.4599999999999999E-2,3.3700000000000001E-2,2.75E-2,3.1699999999999999E-2,3.0599999999999999E-2,3.5099999999999999E-2,3.3599999999999998E-2,3.8300000000000001E-2,3.5999999999999997E-2,2.6499999999999999E-2,2.8000000000000001E-2,null,"Floresta não manejada",1]
[null,null,null,null,"Leguminosa",2.4300000000000002,null,null,"Cultivo convencional","Plantio direto","Demais regiões",1.7599999999999998,-1.7599999999999998,null,null,"Ovinos (até 1 ano)","Ovinos (mais de 1 ano)","Caprinos (até 1 ano)","Caprinos (mais de 1 ano)","Equinos","Asininos","Muares","Bubalinos","Galinhas","Poedeiras","Galos","Frangos/pintos","Codornas","Vaca leiteira","Gado de corte (até 1 ano)","Gado de corte (1 a 2 anos)","Gado de corte (mais de 2 anos)","Suínos (até meio ano)","Suínos (até meio ano)","Suínos (mais de meio ano)","Suínos (mais de meio ano)",null,"Lavoura não está em terras baixas",null,null,null,0,null,null,null,null,null,null,"Conversor (N2O;t/litro)",2E-8,null,"Fungicida",10.114000000000001,null,2007,2.29E-2,1.95E-2,1.95E-2,1.9699999999999999E-2,1.61E-2,2.5600000000000001E-2,3.1E-2,3.2399999999999998E-2,3.5499999999999997E-2,3.7699999999999997E-2,4.0599999999999997E-2,4.9599999999999998E-2,null,"Pastagem",0.97]
[null,null,null,null,"Outros",1.58,null,null,"Cultivo convencional","Plantio direto","Região sul",1.2833333333333332,-1.2833333333333332,null,null,null,null,null,null,null,null,null,null,null,null,null,null,null,null,null,null,null,"Grande","Pequeno","Grande","Pequeno",null,"Terras baixas","Irrigado","Continuamente inundado",null,1,null,null,null,null,null,null,"Conversor (CO2 - Biosiesel;t/litro)",2.4989999999999999E-3,null,"Inseticida",16.675000000000001,null,2008,5.8400000000000001E-2,6.6799999999999998E-2,5.9900000000000002E-2,4.53E-2,4.5900000000000003E-2,5.21E-2,4.3700000000000003E-2,4.2500000000000003E-2,4.1099999999999998E-2,4.3799999999999999E-2,3.3399999999999999E-2,4.7699999999999999E-2,null,"Área agrícola",0.61199999999999999]
[null,null,null,null,"Adubos orgânicos","% N",null,null,"Pastagem","Plantio direto",null,0.69666666666666666,-0.69666666666666666,null,"RO",1.7472336000000002E-2,3.4944672000000003E-2,1.7711749200000002E-2,3.5423498400000003E-2,0.118146272,0.11806760000000001,0.118378712,0.14157145600000001,3.3263594400000001E-3,3.2746862400000001E-3,3.4542372000000003E-3,1.59396624E-3,1.6921453200000002E-3,0.14496865599999997,2.4921859200000004E-2,4.9843718400000007E-2,8.3072864000000024E-2,1.1680646400000001E-2,1.1680646400000001E-2,2.3361292800000003E-2,2.3361292800000003E-2,null,null,null,"Intermitentemente inundado","Aeração única",0.5,null,null,null,null,null,null,"Soja",null,null,null,null,null,2009,2.81E-2,2.3699999999999999E-2,2.47E-2,2.4500000000000001E-2,4.0500000000000001E-2,3.6900000000000002E-2,2.41E-2,1.9900000000000001E-2,1.6199999999999999E-2,1.7899999999999999E-2,1.8100000000000002E-2,1.9400000000000001E-2,null,"Categorias kg C/m²"]
[null,null,null,null,"Esterco (bovino, equino, suino, ovino)",1.6,null,null,"Vegetação nativa","Plantio direto","Cerrado",0.43999999999999995,-0.43999999999999995,null,"AC",1.7470905599999999E-2,3.4941811199999999E-2,1.7281914000000002E-2,3.4563828000000005E-2,0.118131968,0.11831196000000002,0.11759676000000001,0.14304,3.1229923200000002E-3,3.7252264800000001E-3,3.72561984E-3,1.8442326000000001E-3,1.7185540799999999E-3,0.14450556399999998,2.4901118400000002E-2,4.9802236800000003E-2,8.3003728000000027E-2,1.18189184E-2,1.18189184E-2,2.3637836799999999E-2,2.3637836799999999E-2,null,null,null,null,"Múltiplas aerações",0.2,null,null,null,null,null,null,"Operação","Hora máquina por hectare",null,null,null,null,2010,2.1100000000000001E-2,2.8000000000000001E-2,2.4299999999999999E-2,2.3800000000000002E-2,3.4099999999999998E-2,5.0599999999999999E-2,4.3499999999999997E-2,7.7399999999999997E-2,9.0700000000000003E-2,8.1699999999999995E-2,8.6900000000000005E-2,5.3199999999999997E-2,null,"Vegetação","Classificação do solo"]
["Fonte","Cultura","Coeficiente composto (tCO2 eq)",null,"Esterco de aves",3,null,null,"Vegetação nativa","Plantio direto","Amazônia",-0.87999999999999989,0.87999999999999989,null,"AM",1.74154776E-2,3.4830955199999999E-2,1.7434788E-2,3.4869575999999999E-2,0.11680407999999999,0.11893776,0.11662528000000001,0.14129610400000001,2.6353153200000005E-3,3.9047238E-3,3.6457141200000004E-3,2.0891885999999998E-3,1.68960636E-3,0.14346256399999999,2.4784540800000004E-2,4.9569081600000009E-2,8.2615136000000006E-2,1.1747398400000003E-2,1.1747398400000003E-2,2.3494796800000006E-2,2.3494796800000006E-2,null,null,null,"Alimentado por chuvas","Varzea úmida",0.8,null,null,null,null,null,null,"Limpeza de área (Roçadeira)",0.9,null,null,null,null,2011,2.6200000000000001E-2,2.8799999999999999E-2,2.0799999999999999E-2,1.9800000000000002E-2,2.7E-2,3.4099999999999998E-2,3.0800000000000001E-2,3.0099999999999998E-2,2.7300000000000001E-2,3.5000000000000003E-2,3.56E-2,3.49E-2,null,null,"Solos com argila de atividade alta","Solos com argila de atividade baixa","Não-latossolos com argila de atividade baixa","Solos arenosos","Solos hidromórficos","Outros solos"]
["Nitrogênio de resíduo das culturas","Soja",1.3860039600000001E-5,null,"Composto orgânico",1.4,null,null,"Vegetação nativa","Cultivo convencional","Baixo teor de argila",-0.91666666666666663,0.91666666666666663,null,"RR",1.7795964000000001E-2,3.5591928000000002E-2,1.7804904E-2,3.5609808E-2,0.11768616,0.1186934,0.11898544,0.14304,3.4293124800000006E-3,3.6385800000000002E-3,3.6385800000000002E-3,1.8192900000000001E-3,1.7167660799999999E-3,0.13482235199999998,2.4846048000000003E-2,4.9692096000000005E-2,8.2820160000000004E-2,1.1823686400000002E-2,1.1823686400000002E-2,2.3647372800000004E-2,2.3647372800000004E-2,null,null,null,null,"Varzea seca",0.4,null,null,null,null,null,null,"Dessecação pré-emergente",0.28000000000000003,null,null,null,null,2012,2.9399999999999999E-2,3.2199999999999999E-2,4.0500000000000001E-2,6.4199999999999993E-2,6.2E-2,5.2200000000000003E-2,3.9399999999999998E-2,4.5999999999999999E-2,7.8299999999999995E-2,9.8400000000000001E-2,0.12470000000000001,0.1168,null,"Floresta amazônica aberta",5.09,4.75,4.8899999999999997,4.1099999999999994,4.3600000000000003,"SEMDADO"]
[null,"Milho",9.2711376000000009E-6,null,"Outros",1.8,null,null,"Vegetação nativa","Cultivo convencional","Alto teor de argila",-0.16133333333333333,0.16133333333333333,null,"PA",1.7135655600000001E-2,3.4271311200000001E-2,1.7213254799999998E-2,3.4426509599999995E-2,0.118148656,0.11776364,0.11629271200000001,0.14202441599999999,2.6720766E-3,3.67821996E-3,3.7877707200000004E-3,1.8400755E-3,1.6851989400000001E-3,0.14530658799999999,2.4856060800000003E-2,4.9712121600000006E-2,8.2853536000000019E-2,1.1775052800000003E-2,1.1775052800000003E-2,2.3550105600000006E-2,2.3550105600000006E-2,null,null,null,"Água profunda","Profundidade entre 50 e 100 cm",0.8,null,null,null,null,null,null,"Calagem (Aplicação e incorporação)",0.18,null,null,null,null,null,null,null,null,null,null,null,null,null,null,null,null,null,null,"Floresta amazônica densa",3.22,5.19,4.6899999999999995,5.0600000000000005,5.2700000000000005,4.8099999999999996]
[null,"Feijão",1.9701167400000003E-5,null,"Adubos orgânico (Cana)","% N",null,null,"Vegetação nativa","Cana com queimada","Cerrado",-3.120333333333333,3.120333333333333,null,"AP",1.7386512000000003E-2,3.4773024000000007E-2,1.7671698E-2,3.5343395999999999E-2,0.11822852,0.11829408000000001,0.11866360000000001,0.14170496000000002,3.4119331200000002E-3,3.6385800000000002E-3,3.6385800000000002E-3,1.8192900000000001E-3,1.6922704800000001E-3,0.14379215199999998,2.4836035200000002E-2,4.9672070400000004E-2,8.2786784000000016E-2,1.1765516800000002E-2,1.1765516800000002E-2,2.3531033600000004E-2,2.3531033600000004E-2,null,null,null,null,"Profundidades maiores que 100 cm",0.6,null,null,null,null,null,null,"Adubação e semeadura",0.36,null,null,null,null,null,null,null,null,null,null,null,null,null,null,null,null,null,null,"Mata atlântica",5.83,5.23,4.29,6.33,3.58,41.78]
[null,"Arroz",6.5333520000000004E-6,null,"Vinhaça",3.1300000000000001E-2,null,null,"Cultivo convencional","Cana com queimada",null,2.09,-2.09,null,"TO",1.7329474800000001E-2,3.4658949600000002E-2,1.7262603599999999E-2,3.4525207199999998E-2,0.11801396,0.118308384,0.118041376,0.13962015200000003,3.25017276E-3,3.6549402000000003E-3,3.6405110400000002E-3,1.8448494600000001E-3,1.67658972E-3,0.144897732,2.4893251200000001E-2,4.9786502400000002E-2,8.2977504000000007E-2,1.1704486400000002E-2,1.1704486400000002E-2,2.3408972800000004E-2,2.3408972800000004E-2,null,"Valor",1,null,null,null,null,null,null,null,null,null,"Aplicação de herbicida pós-emergente",0.56000000000000005,null,null,null,null,null,null,null,null,null,null,null,null,null,null,null,null,null,null,"Floresta estacional decidual",4.67,3.08,4,2.59,3.27,3.18]
[null,"Trigo",1.0111139999999998E-5,null,"Torta de filtro",0.14000000000000001,null,null,"Pastagem","Cana com queimada",null,-0.94233333333333336,0.94233333333333336,null,"MA",1.7349142799999998E-2,3.4698285599999996E-2,1.7636116800000001E-2,3.5272233600000001E-2,0.11711042399999999,0.11845976800000002,0.118429968,0.13987524000000004,3.2559658800000004E-3,3.6764498400000001E-3,3.63895548E-3,1.8325748400000001E-3,1.67514144E-3,0.14470581999999996,2.4834604800000003E-2,4.9669209600000007E-2,8.2782016E-2,1.17922176E-2,1.17922176E-2,2.35844352E-2,2.35844352E-2,null,"Sfo",null,null,null,null,null,null,null,null,null,null,"Aplicação de inseticida",0.84,null,null,null,null,null,null,null,null,null,null,null,null,null,null,null,null,null,null,"Floresta estacional semi-decidual",4.09,4.43,3.74,2.7,5.36,3.16]
[null,"Cana-de-açúcar",9.0651600000000025E-7,null,null,null,null,null,"Cana com queimada","Cana sem queimada",null,2.2476666666666665,-2.2476666666666665,null,"PI",1.7728735200000002E-2,3.5457470400000003E-2,1.77012E-2,3.5402400000000001E-2,0.1182464,0.118564664,0.11847884,0.14304,3.3300605999999999E-3,3.6526515600000002E-3,3.6385800000000002E-3,1.82320572E-3,1.7013267E-3,0.144972828,2.4828168000000001E-2,4.9656336000000002E-2,8.2760560000000025E-2,1.1863737600000002E-2,1.1863737600000002E-2,2.3727475200000004E-2,2.3727475200000004E-2,null,"Quantidade de matéria seca aplicada (t/ha)",null,null,null,null,null,null,null,null,null,null,"Aplicação de fungicida",0.56000000000000005,null,null,null,null,null,null,null,null,null,null,null,null,null,null,null,null,null,null,"Floresta ombrófila mista",9.879999999999999,10.25,5.68,"SEMDADO",8.5399999999999991,"SEMDADO"]
[null,null,null,null,null,null,null,null,"Vegetação nativa","Pastagem degradada",null,-0.64899999999999991,0.64899999999999991,null,"CE",1.7486461200000001E-2,3.4972922400000002E-2,1.7573536800000001E-2,3.5147073600000002E-2,0.11705916799999999,0.11813316000000001,0.11731544799999999,0.13108900800000001,3.2036490000000003E-3,3.6527767200000001E-3,3.6389376000000003E-3,1.8446259600000002E-3,1.7104097400000001E-3,0.14408001999999995,2.4710875200000003E-2,4.9421750400000006E-2,8.2369584000000023E-2,1.1641548800000002E-2,1.1641548800000002E-2,2.3283097600000004E-2,2.3283097600000004E-2,null,0,1,null,null,null,null,null,null,null,null,null,"Total","SEMDADO",null,null,null,null,null,null,null,null,null,null,null,null,null,null,null,null,null,null,"Savana sul",6.42,9.09,5.16,"SEMDADO",7.42,3.2800000000000002]
["Fonte","Coeficiente composto (tCO2 eq)",null,null,null,null,null,null,"Vegetação nativa","Pastagem nominal",null,1.1219999999999999,-1.1219999999999999,null,"RN",1.7440867200000001E-2,3.4881734400000003E-2,1.7383472399999999E-2,3.4766944799999998E-2,0.11613775199999998,0.117771984,0.116783816,0.14268359200000003,2.8947720000000008E-3,3.65401044E-3,3.6385800000000002E-3,1.8850705200000001E-3,1.6022983200000001E-3,0.14396320400000001,2.46364944E-2,4.92729888E-2,8.2121647999999992E-2,1.1745491200000003E-2,1.1745491200000003E-2,2.3490982400000006E-2,2.3490982400000006E-2,null,"1 até 2",1.5,null,null,null,null,null,null,null,null,null,"Arroz",null,null,null,null,null,null,null,null,null,null,null,null,null,null,null,null,null,null,null,"Savana amazônica",4.8,1.98,3.81,4.37,3.46,2.9]
["Calcário calcítico",0.43999999999999995,null,null,null,null,null,null,"Vegetação nativa","Pastagem melhorada",null,1.3859999999999999,-1.3859999999999999,null,"PB",1.7062705199999997E-2,3.4125410399999993E-2,1.6980993600000001E-2,3.3961987200000002E-2,0.11524255999999999,0.117146184,0.116658656,0.14304,3.0651684000000002E-3,3.712782E-3,3.6387230400000002E-3,1.83773322E-3,1.6902321600000001E-3,0.14380466799999997,2.4672254400000003E-2,4.9344508800000006E-2,8.2240848000000019E-2,1.1733094400000003E-2,1.1733094400000003E-2,2.3466188800000006E-2,2.3466188800000006E-2,null,"2 até 4",1.8,null,null,null,null,null,null,null,null,null,"Operação","Hora máquina por hectare",null,null,null,null,null,null,null,null,null,null,null,null,null,null,null,null,null,null,"Cerrado",2.44,4.3099999999999996,3.5999999999999996,1.92,6.65,3.29]
["Calcário dolomítico",0.47666666666666668,null,null,null,null,null,null,"Pastagem","Integração lavoura-pecuária",null,0.70766666666666667,-0.70766666666666667,null,"PE",1.7544213600000001E-2,3.5088427200000001E-2,1.7479666799999998E-2,3.4959333599999996E-2,0.116107952,0.11798177600000001,0.11733928799999999,0.14241420000000002,3.0830662799999999E-3,3.6621637200000001E-3,3.6518112000000001E-3,1.84877412E-3,1.52987538E-3,0.14414259999999998,2.4666532800000002E-2,4.9333065600000003E-2,8.222177600000001E-2,1.1783635200000002E-2,1.1783635200000002E-2,2.3567270400000003E-2,2.3567270400000003E-2,null,"4 até 8",2.5,null,null,null,null,null,null,null,null,null,"Distribuição do calcário",0.4,null,null,null,null,null,null,null,null,null,null,null,null,null,null,null,null,null,null,"Estepe do sul",6.6000000000000005,4.66,6.12,"SEMDADO",3.3800000000000003,4.99]
[null,null,null,null,null,null,null,null,"Pastagem","Integração lavoura-pecuária-floresta",null,0.70766666666666667,-0.70766666666666667,null,"AL",1.7215400399999997E-2,3.4430800799999994E-2,1.7470011599999998E-2,3.4940023199999996E-2,0.11529143200000001,0.11667892000000001,0.116397608,0.14269789600000002,2.9512728000000003E-3,3.6385800000000002E-3,3.6389912400000002E-3,1.85801808E-3,1.5905064600000001E-3,0.14236532799999999,2.4478435200000002E-2,4.8956870400000005E-2,8.1594784000000004E-2,1.1443200000000001E-2,1.1443200000000001E-2,2.2886400000000001E-2,2.2886400000000001E-2,null,"8 até 15",3.5,null,null,null,null,null,null,null,null,null,"Gradagem aradora",1,null,null,null,null,null,null,null,null,null,null,null,null,null,null,null,null,null,null,"Caatinga",2.42,2.58,2.62,1.51,2.5099999999999998,2.09]
["Fonte","Coeficiente composto (tCO2 eq)",null,null,null,null,null,null,"Vegetação nativa","Integração lavoura-pecuária",null,0.70766666666666667,-0.70766666666666667,null,"SE",1.7499513600000002E-2,3.4999027200000005E-2,1.7352003600000002E-2,3.4704007200000005E-2,0.117100888,0.11810693600000002,0.11695903999999999,0.139810872,3.2297359200000003E-3,3.63917004E-3,3.6406540800000002E-3,1.8245646000000001E-3,1.57883082E-3,0.14427610399999999,2.4725179200000003E-2,4.9450358400000005E-2,8.2417264000000018E-2,1.1444153600000003E-2,1.1444153600000003E-2,2.2888307200000006E-2,2.2888307200000006E-2,null,"Mais que 15",4,null,null,null,null,null,null,null,null,null,"Gradagem niveladora",0.5,null,null,null,null,null,null,null,null,null,null,null,null,null,null,null,null,null,null,"Pantanal",3.3800000000000003,"SEMDADO",3.5199999999999996,3.54,10.52,2.17]
["Aplicação de uréia",0.73333333333333339,null,null,null,null,null,null,"Cultivo convencional","Integração lavoura-pecuária",null,0.70766666666666667,-0.70766666666666667,null,"BA",1.74861036E-2,3.4972207200000001E-2,1.7477342399999998E-2,3.4954684799999997E-2,0.117271344,0.11829288800000001,0.117010296,0.131284496,2.9781106800000003E-3,3.7084371600000004E-3,3.6968151600000002E-3,1.8821024400000001E-3,1.65751176E-3,0.14417597600000001,2.4758078400000001E-2,4.9516156800000002E-2,8.2526928000000013E-2,1.1643456000000002E-2,1.1643456000000002E-2,2.3286912000000003E-2,2.3286912000000003E-2,null,"Valor",1,null,null,null,null,null,null,null,null,null,"Reforma de taipas",0.8,null,null,null,null,null,null,null,null,null,null,null,null,null,null,null,null,null,null,"Refúgios ecológicos de montanhas e terras altas",3.41,5.04,3.99,"SEMDADO","SEMDADO","SEMDADO"]
[null,null,null,null,null,null,null,null,"Plantio direto","Cultivo convencional",null,-0.91666666666666663,0.91666666666666663,null,"MG",1.6503061200000002E-2,3.3006122400000004E-2,1.68422448E-2,3.3684489599999999E-2,0.11314940799999999,0.116717064,0.11444630400000001,0.130004288,2.5615245600000003E-3,4.0191736799999999E-3,3.7971398400000003E-3,1.8754242600000001E-3,1.2446357399999999E-3,0.13992053599999998,2.4208089600000003E-2,4.8416179200000006E-2,8.0693632000000015E-2,7.5696768000000011E-3,9.3738880000000021E-3,1.5139353600000002E-2,1.8747776000000004E-2,null,"Fec",null,null,null,null,null,null,null,null,null,null,"Plantio",1,null,null,null,null,null,null,null,null,null,null,null,null,null,null,null,null,null,null,"Áreas de formação pioneira",7.3,4.13,3.31,5.0199999999999996,5.92,3.7199999999999998]
["Adubos orgânicos","Coeficiente composto (tCO2 eq)",null,null,null,null,null,null,"Pastagem","Cultivo convencional",null,-0.91666666666666663,0.91666666666666663,null,"ES",1.6330161600000004E-2,3.2660323200000008E-2,1.6609089600000002E-2,3.3218179200000003E-2,0.114544048,0.115547712,0.11603166399999999,0.13227624000000002,2.7367485600000006E-3,3.93059616E-3,4.4587713600000006E-3,1.83103716E-3,1.2109587600000003E-3,0.14255724,2.4611462399999999E-2,4.9222924799999998E-2,8.2038208000000015E-2,9.0916224000000025E-3,9.7028800000000023E-3,1.8183244800000005E-2,1.9405760000000005E-2,null,"Valor",5,null,null,null,null,null,null,null,null,null,"Transporte interno",0.28000000000000003,null,null,null,null,null,null,null,null,null,null,null,null,null,null,null,null,null,null,"Áreas arenosas e vegetação lenhosa oligotrófica de áreas pantanosas",5.09,4.6800000000000006,4.8099999999999996,6.17,9.0500000000000007,12.09]
["Esterco (bovino, equino, suino, ovino)",3.968E-5,null,null,null,null,null,null,"Soja",null,null,null,null,null,"RJ",1.56283716E-2,3.1256743199999999E-2,1.5919636799999998E-2,3.1839273599999995E-2,0.107457608,0.107836664,0.10931951200000001,0.13860099200000003,3.35049744E-3,3.65772948E-3,3.6425314800000003E-3,1.8264777600000002E-3,7.9721556000000014E-4,0.13805148,2.3904129600000004E-2,4.7808259200000008E-2,7.9680432000000009E-2,9.4625728000000027E-3,9.4625728000000027E-3,1.8925145600000005E-2,1.8925145600000005E-2,null,null,null,null,null,null,null,null,null,null,null,null,"Aplicação adubo cobertura",0.12,null,null,null,null,null,null,null,null,null,null,null,null,null,null,null,null,null,null,"Coeficiente"]
["Esterco de aves",7.4400000000000006E-5,null,null,null,null,null,null,"Arroz",null,null,null,"SEMDADO",null,"SP",1.6361809200000001E-2,3.2723618400000001E-2,1.6292613599999999E-2,3.2585227199999997E-2,0.11258201600000001,0.11286452000000001,0.11336039199999999,0.12966099200000003,2.3796492000000002E-3,3.76770936E-3,3.8121054000000002E-3,1.88658138E-3,8.9695914E-4,0.14051713199999999,2.4385459200000001E-2,4.8770918400000002E-2,8.1284864000000012E-2,8.6262656000000004E-3,9.0210560000000013E-3,1.7252531200000001E-2,1.8042112000000003E-2,null,null,null,null,null,null,null,null,null,null,null,null,"Aplicação de herbicida pré-emergente",0.22,null,null,null,null,null,null,null,null,null,null,null,null,null,null,null,null,null,null,"Soja","SEMDADO"]
["Composto orgânico",3.472E-5,null,null,null,null,null,null,"Cana-de-açúcar",null,null,null,"SEMDADO",null,"PR",1.62668664E-2,3.25337328E-2,1.6386483599999998E-2,3.2772967199999996E-2,0.114490408,0.11181317599999999,0.11561088800000001,0.13105324800000004,2.44550124E-3,3.8022714E-3,3.8973036000000002E-3,1.93687782E-3,1.1168920799999999E-3,0.138059824,2.4321091200000006E-2,4.8642182400000011E-2,8.1070304000000024E-2,5.8713152000000003E-3,6.834451200000001E-3,1.1742630400000001E-2,1.3668902400000002E-2,null,null,null,null,null,null,null,null,null,null,null,null,"Colheita mecanizada",2,null,null,null,null,null,null,null,null,null,null,null,null,null,null,null,null,null,null,"Arroz","SEMDADO"]
["Outros",4.464E-5,null,null,null,null,null,null,"Milho",null,null,null,null,null,"SC",1.5307604400000001E-2,3.0615208800000002E-2,1.53793032E-2,3.0758606399999999E-2,0.108947608,0.10463852800000001,0.109691416,0.126406832,1.6219305599999999E-3,3.9350304000000001E-3,3.9037225200000002E-3,1.9542124800000001E-3,1.00113696E-3,0.12903996000000001,2.2957204799999999E-2,4.5914409599999997E-2,7.6524016000000014E-2,3.5330880000000002E-3,3.5330880000000002E-3,7.0661760000000004E-3,7.0661760000000004E-3,null,null,null,null,null,null,null,null,null,null,null,null,"Total","SEMDADO",null,null,null,null,null,null,null,null,null,null,null,null,null,null,null,null,null,null,"Cana-de-açúcar","SEMDADO"]
["Adubos orgânico (Cana)","Coeficiente composto (tCO2 eq)",null,null,null,null,null,null,"Feijão",null,null,null,null,null,"RS",1.74036768E-2,3.48073536E-2,1.6470698400000001E-2,3.2941396800000002E-2,0.11471450400000001,0.11803184000000001,0.11166894400000001,0.13752461599999999,2.0297018400000002E-3,3.9965375999999999E-3,3.9344403600000003E-3,1.95771696E-3,1.10253444E-3,0.13375014799999999,2.4296774400000002E-2,4.8593548800000004E-2,8.0989248000000014E-2,5.5079936000000012E-3,6.4186816000000009E-3,1.1015987200000002E-2,1.2837363200000002E-2,null,null,null,null,null,null,null,null,null,null,null,null,"Feijão",null,null,null,null,null,null,null,null,null,null,null,null,null,null,null,null,null,null,null,"Milho","SEMDADO"]
["Vinhaça",7.959999999999999E-2,null,null,null,null,null,null,"Trigo",null,null,null,null,null,"MS",1.7501480399999998E-2,3.5002960799999996E-2,1.7262782399999999E-2,3.4525564799999998E-2,0.11729041599999999,0.11561804000000001,0.117164064,0.13291515199999998,1.8437856000000003E-3,3.8413570800000002E-3,4.0195491600000001E-3,2.0830557599999999E-3,1.6704658200000003E-3,0.14356269199999999,2.4755217600000004E-2,4.9510435200000008E-2,8.2517391999999995E-2,6.1793279999999996E-3,8.1780736000000021E-3,1.2358655999999999E-2,1.6356147200000004E-2,null,null,null,null,null,null,null,null,null,null,null,null,"Operação","Hora máquina por hectare",null,null,null,null,null,null,null,null,null,null,null,null,null,null,null,null,null,null,"Feijão","SEMDADO"]
["Torta de filtro",0.6977000000000001,null,null,null,null,null,null,"Algodão",null,null,null,null,null,"MT",1.7144238000000003E-2,3.4288476000000005E-2,1.7578721999999998E-2,3.5157443999999996E-2,0.11748947999999999,0.117214128,0.117481136,0.14082049600000002,2.8916430000000006E-3,3.8774746800000004E-3,3.6385800000000002E-3,1.8644191200000001E-3,1.61756784E-3,0.14406750399999996,2.4774528000000001E-2,4.9549056000000001E-2,8.2581760000000018E-2,7.9940288000000005E-3,7.9940288000000005E-3,1.5988057600000001E-2,1.5988057600000001E-2,null,null,null,null,null,null,null,null,null,null,null,null,"Distribuição mecanizada de calcário",2,null,null,null,null,null,null,null,null,null,null,null,null,null,null,null,null,null,null,"Trigo","SEMDADO"]
[null,null,null,null,null,null,null,null,"Pastagem e pecuária",null,null,null,"SEMDADO",null,"GO",1.6932717599999998E-2,3.3865435199999995E-2,1.6962934799999999E-2,3.3925869599999998E-2,0.11578849599999999,0.11551195200000001,0.11565022400000001,0.12952033600000001,2.4152125200000004E-3,3.8282868E-3,4.0226781600000002E-3,1.9464972600000002E-3,1.6830712200000002E-3,0.14291186,2.45592528E-2,4.9118505600000001E-2,8.1864176000000011E-2,8.4269632000000001E-3,9.5426751999999997E-3,1.68539264E-2,1.9085350399999999E-2,null,null,null,null,null,null,null,null,null,null,null,null,"Aração convencional",4,null,null,null,null,null,null,null,null,null,null,null,null,null,null,null,null,null,null,"Algodão","SEMDADO"]
["Manejo de solos orgânicos","Coeficiente composto (tCO2 eq)",null,null,null,null,null,null,null,null,null,null,null,null,"DF",1.40606532E-2,2.8121306400000001E-2,1.41357492E-2,2.8271498400000001E-2,9.4904656000000004E-2,0.10283979999999998,9.406668E-2,0.100251968,2.1568107600000003E-3,3.8728616400000001E-3,3.6526158E-3,2.00869284E-3,1.05592128E-3,0.13094656399999999,2.2357867199999999E-2,4.4715734399999998E-2,7.4526224000000002E-2,1.7083743999999998E-3,1.7083743999999998E-3,3.4167487999999997E-3,3.4167487999999997E-3,null,null,null,null,null,null,null,null,null,null,null,null,"Gradagem niveladora",4,null,null,null,null,null,null,null,null,null,null,null,null,null,null,null,null,null,null,"Pastagem e pecuária","SEMDADO"]
["Regiões tropicais e subtropicais",73.3,null,null,null,null,null,null,null,null,null,null,null,null,"Nitrogênio - Sistema de manejo Tier 2",null,null,null,null,null,null,null,null,null,null,null,null,null,null,null,null,null,null,null,null,null,null,null,null,null,null,null,null,null,null,null,null,null,"Plantio mecanizado",2]
[null,null,null,null,null,null,null,null,null,null,null,null,null,null,"Sistema de manejoo","Animal",null,null,null,null,null,null,null,null,null,null,null,null,null,null,null,null,null,null,null,null,null,null,null,null,null,null,null,null,null,null,null,null,"Transporte interno de insumos para plantio",1]
["Queimada","Conversor",null,null,null,"Coeficiente composto (tCO2 eq)",null,null,null,null,null,null,null,null,null,"Ovinos (até 1 ano)","Ovinos (mais de 1 ano)","Caprinos (até 1 ano)","Caprinos (mais de 1 ano)","Equinos","Asininos","Muares","Bubalinos","Galinhas","Poedeiras","Galos","Frangos/pintos","Codornas","Vaca leiteira","Gado de corte (até 1 ano)","Gado de corte (1 a 2 anos)","Gado de corte (mais de 2 anos)","Suínos (até meio ano)","Suínos (mais de meio ano)",null,null,null,null,null,null,null,null,null,null,null,null,null,null,"Adubação de cobertura",1.5]
[null,"Gás do efeito estufa",null,null,null,null,null,null,null,null,null,null,null,null,"Armazenamento sólido",3.576E-2,7.152E-2,3.576E-2,7.152E-2,0.2384,0.2384,0.2384,0.2384,3.5760000000000002E-3,3.5760000000000002E-3,3.5760000000000002E-3,1.7880000000000001E-3,1.7880000000000001E-3,0.41720000000000007,7.152E-2,0.14304,0.2384,4.7680000000000007E-2,9.5360000000000014E-2,null,null,null,null,null,null,null,null,null,null,null,null,null,null,"Aplicação de herbicida pós-emergente",2]
["Cultura","CH4","CO","N2O","NOX",null,null,null,null,null,null,null,null,null,"Dry lot",3.576E-2,7.152E-2,3.576E-2,7.152E-2,0.2384,0.2384,0.2384,0.2384,3.5760000000000002E-3,3.5760000000000002E-3,3.5760000000000002E-3,1.7880000000000001E-3,1.7880000000000001E-3,0.41720000000000007,7.152E-2,0.14304,0.2384,4.7680000000000007E-2,9.5360000000000014E-2,null,null,null,null,null,null,null,null,null,null,null,null,null,null,"Aplicação de fungicida",2]
["Cana",1.0392863433333333E-3,1.2471436119999998E-2,5.5554845974284377E-3,9.603051946983443E-2,0.1150967265305962,null,null,null,null,null,null,null,null,"Esterqueira",1.7880000000000001E-3,3.5760000000000002E-3,1.7880000000000001E-3,3.5760000000000002E-3,1.1920000000000002E-2,1.1920000000000002E-2,1.1920000000000002E-2,1.1920000000000002E-2,1.7879999999999998E-4,1.7879999999999998E-4,1.7879999999999998E-4,8.9399999999999991E-5,8.9399999999999991E-5,2.0860000000000004E-2,3.5760000000000002E-3,7.1520000000000004E-3,1.1920000000000002E-2,2.3839999999999998E-3,4.7679999999999997E-3,null,null,null,null,null,null,null,null,null,null,null,null,null,null,"Trilha com batedeira de cereais",5]
["Algodão",1.4107499999999999E-2,0.16928999999999997,0.105941682,1.831277646,2.1206168280000002,null,null,null,null,null,null,null,null,"Lagoa anaeróbica",1.7880000000000001E-3,3.5760000000000002E-3,1.7880000000000001E-3,3.5760000000000002E-3,1.1920000000000002E-2,1.1920000000000002E-2,1.1920000000000002E-2,1.1920000000000002E-2,1.7879999999999998E-4,1.7879999999999998E-4,1.7879999999999998E-4,8.9399999999999991E-5,8.9399999999999991E-5,2.0860000000000004E-2,3.5760000000000002E-3,7.1520000000000004E-3,1.1920000000000002E-2,2.3839999999999998E-3,4.7679999999999997E-3,null,null,null,null,null,null,null,null,null,null,null,null,null,null,"Transporte interno da produção",1]
["Milho",1.0290734666666666E-2,0.12348881599999997,3.6799667167999997E-2,0.63610853247542842,0.8066877503100951,null,null,null,null,null,null,null,null,"Poços abaixo do confinamento de animais",1.7880000000000001E-3,3.5760000000000002E-3,1.7880000000000001E-3,3.5760000000000002E-3,1.1920000000000002E-2,1.1920000000000002E-2,1.1920000000000002E-2,1.1920000000000002E-2,1.7879999999999998E-4,1.7879999999999998E-4,1.7879999999999998E-4,8.9399999999999991E-5,8.9399999999999991E-5,2.0860000000000004E-2,3.5760000000000002E-3,7.1520000000000004E-3,1.1920000000000002E-2,2.3839999999999998E-3,4.7679999999999997E-3,null,null,null,null,null,null,null,null,null,null,null,null,null,null,"Total","SEMDADO"]
["Soja",1.27776E-2,0.15333119999999997,0.114231744,1.9745772891428575,2.2549178331428577,null,null,null,null,null,null,null,null,"Biodigestor",1.7880000000000001E-3,3.5760000000000002E-3,1.7880000000000001E-3,3.5760000000000002E-3,1.1920000000000002E-2,1.1920000000000002E-2,1.1920000000000002E-2,1.1920000000000002E-2,1.7879999999999998E-4,1.7879999999999998E-4,1.7879999999999998E-4,8.9399999999999991E-5,8.9399999999999991E-5,2.0860000000000004E-2,3.5760000000000002E-3,7.1520000000000004E-3,1.1920000000000002E-2,2.3839999999999998E-3,4.7679999999999997E-3,null,null,null,null,null,null,null,null,null,null,null,null,null,null,"Trigo"]
["Feijão",9.6154666666666659E-3,0.11538559999999998,8.5962271999999978E-2,1.485919273142857,1.6968826118095235,null,null,null,null,null,null,null,null,"Não realiza manejo de dejetos",1.788E-2,3.576E-2,1.788E-2,3.576E-2,0.1192,0.1192,0.1192,8.3440000000000014E-2,1.2515999999999998E-3,1.2515999999999998E-3,1.2515999999999998E-3,6.2579999999999992E-4,6.2579999999999992E-4,0.14601999999999998,2.5032000000000002E-2,5.0064000000000004E-2,8.3440000000000014E-2,1.6688000000000001E-2,3.3376000000000003E-2,null,null,null,null,null,null,null,null,null,null,null,null,null,null,"Operação","Hora máquina por hectare"]
["Arroz",6.3817600000000002E-3,7.6581119999999989E-2,1.5974821632000001E-2,0.27613620249600002,0.37507390412800001,null,null,null,null,null,null,null,null,"Animais em pastagem",1.788E-2,3.576E-2,1.788E-2,3.576E-2,0.1192,0.1192,0.1192,8.3440000000000014E-2,1.2515999999999998E-3,1.2515999999999998E-3,1.2515999999999998E-3,6.2579999999999992E-4,6.2579999999999992E-4,0.14601999999999998,2.5032000000000002E-2,5.0064000000000004E-2,8.3440000000000014E-2,1.6688000000000001E-2,3.3376000000000003E-2,null,null,null,null,null,null,null,null,null,null,null,null,null,null,"Semeadura",0.7]
["Trigo",7.6230000000000004E-3,9.1475999999999988E-2,1.6355908799999999E-2,0.28272356640000001,0.39817847519999999,null,null,null,null,null,null,null,null,"Metano - Fermentação entérica",null,null,null,null,null,null,null,null,null,null,null,null,null,null,null,null,null,null,null,null,null,null,null,null,null,null,null,null,null,null,null,null,null,"Aplicação herbicida",0.15]
[null,null,null,null,null,null,null,null,null,null,null,null,null,null,"Estado","Gado de corte","Gado de corte","Gado de corte (até 1 ano)","Vaca leiteira","Suínos","Asininos","Muares","Bubalinos","Caprinos","Equinos","Ovinos",null,null,null,null,null,null,null,null,null,null,null,null,null,null,null,null,null,null,null,null,null,null,"Aplicação inseticida",0.3]
[null,null,null,null,null,null,null,null,null,null,null,null,null,null,null,"Macho","Fêmea",null,null,null,null,null,null,null,null,null,null,null,null,null,null,null,null,null,null,null,null,null,null,null,null,null,null,null,null,null,null,null,"Aplicação fungicida",0.15]
[null,null,null,null,null,null,null,null,null,null,null,null,null,null,"RO",1.375,1.5250000000000001,1.05,1.5750000000000002,2.5000000000000001E-2,0.25,0.25,1.375,0.125,0.45,0.125,null,null,null,null,null,null,null,null,null,null,null,null,null,null,null,null,null,null,null,null,null,null,"Colheita mecânica",0.8]
[null,null,null,null,null,null,null,null,null,null,null,null,null,null,"AC",1.375,1.5,1.05,1.55,2.1000000000000001E-2,0.21000000000000002,0.21000000000000002,1.155,0.10500000000000001,0.378,0.10500000000000001,null,null,null,null,null,null,null,null,null,null,null,null,null,null,null,null,null,null,null,null,null,null,"Total","SEMDADO"]
[null,null,null,null,null,null,null,null,null,null,null,null,null,null,"AM",1.375,1.5,1.05,1.5250000000000001,2.1000000000000001E-2,0.21000000000000002,0.21000000000000002,1.155,0.10500000000000001,0.378,0.10500000000000001,null,null,null,null,null,null,null,null,null,null,null,null,null,null,null,null,null,null,null,null,null,null,"Cana"]
[null,null,null,null,null,null,null,null,null,null,null,null,null,null,"RR",1.375,1.4000000000000001,1.05,1.4500000000000002,2.1000000000000001E-2,0.21000000000000002,0.21000000000000002,1.155,0.10500000000000001,0.378,0.10500000000000001,null,null,null,null,null,null,null,null,null,null,null,null,null,null,null,null,null,null,null,null,null,null,"Operação","Hora máquina por hectare"]
[null,null,null,null,null,null,null,null,null,null,null,null,null,null,"PA",1.375,1.5,1.05,1.55,2.1000000000000001E-2,0.21000000000000002,0.21000000000000002,1.155,0.10500000000000001,0.378,0.10500000000000001,null,null,null,null,null,null,null,null,null,null,null,null,null,null,null,null,null,null,null,null,null,null,"Dessecação",0.6]
[null,null,null,null,null,null,null,null,null,null,null,null,null,null,"AP",1.375,1.5,1.05,1.5250000000000001,2.1000000000000001E-2,0.21000000000000002,0.21000000000000002,1.155,0.10500000000000001,0.378,0.10500000000000001,null,null,null,null,null,null,null,null,null,null,null,null,null,null,null,null,null,null,null,null,null,null,"Gradagem",1.6]
[null,null,null,null,null,null,null,null,null,null,null,null,null,null,"TO",1.375,1.4750000000000001,1.05,1.5,2.1000000000000001E-2,0.21000000000000002,0.21000000000000002,1.155,0.10500000000000001,0.378,0.10500000000000001,null,null,null,null,null,null,null,null,null,null,null,null,null,null,null,null,null,null,null,null,null,null,"Calagem",0.9]
[null,null,null,null,null,null,null,null,null,null,null,null,null,null,"MA",1.425,1.5750000000000002,1.1000000000000001,1.55,2.1000000000000001E-2,0.21000000000000002,0.21000000000000002,1.155,0.10500000000000001,0.378,0.10500000000000001,null,null,null,null,null,null,null,null,null,null,null,null,null,null,null,null,null,null,null,null,null,null,"Terraceamento",1.2]
[null,null,null,null,null,null,null,null,null,null,null,null,null,null,"PI",1.425,1.5,1.1000000000000001,1.4750000000000001,2.1000000000000001E-2,0.21000000000000002,0.21000000000000002,1.155,0.10500000000000001,0.378,0.10500000000000001,null,null,null,null,null,null,null,null,null,null,null,null,null,null,null,null,null,null,null,null,null,null,"Aração",1.7]
[null,null,null,null,null,null,null,null,null,null,null,null,null,null,"CE",1.425,1.625,1.1000000000000001,1.6,2.1000000000000001E-2,0.21000000000000002,0.21000000000000002,1.155,0.10500000000000001,0.378,0.10500000000000001,null,null,null,null,null,null,null,null,null,null,null,null,null,null,null,null,null,null,null,null,null,null,"Gradagem niveladora",1]
[null,null,null,null,null,null,null,null,null,null,null,null,null,null,"RN",1.425,1.675,1.1000000000000001,1.6500000000000001,2.1000000000000001E-2,0.21000000000000002,0.21000000000000002,1.155,0.10500000000000001,0.378,0.10500000000000001,null,null,null,null,null,null,null,null,null,null,null,null,null,null,null,null,null,null,null,null,null,null,"Sulcação",1.8]
[null,null,null,null,null,null,null,null,null,null,null,null,null,null,"PB",1.425,1.625,1.1000000000000001,1.6,2.1000000000000001E-2,0.21000000000000002,0.21000000000000002,1.155,0.10500000000000001,0.378,0.10500000000000001,null,null,null,null,null,null,null,null,null,null,null,null,null,null,null,null,null,null,null,null,null,null,"Cobrição",0.77]
[null,null,null,null,null,null,null,null,null,null,null,null,null,null,"PE",1.425,1.8250000000000002,1.1000000000000001,1.7750000000000001,2.1000000000000001E-2,0.21000000000000002,0.21000000000000002,1.155,0.10500000000000001,0.378,0.10500000000000001,null,null,null,null,null,null,null,null,null,null,null,null,null,null,null,null,null,null,null,null,null,null,"Pulverização",0.6]
[null,null,null,null,null,null,null,null,null,null,null,null,null,null,"AL",1.425,1.85,1.1000000000000001,1.8250000000000002,2.1000000000000001E-2,0.21000000000000002,0.21000000000000002,1.155,0.10500000000000001,0.378,0.10500000000000001,null,null,null,null,null,null,null,null,null,null,null,null,null,null,null,null,null,null,null,null,null,null,"Total","SEMDADO"]
[null,null,null,null,null,null,null,null,null,null,null,null,null,null,"SE",1.425,1.7750000000000001,1.1000000000000001,1.75,2.1000000000000001E-2,0.21000000000000002,0.21000000000000002,1.155,0.10500000000000001,0.378,0.10500000000000001,null,null,null,null,null,null,null,null,null,null,null,null,null,null,null,null,null,null,null,null,null,null,"Milho"]
[null,null,null,null,null,null,null,null,null,null,null,null,null,null,"BA",1.425,1.55,1.1000000000000001,1.5250000000000001,2.1000000000000001E-2,0.21000000000000002,0.21000000000000002,1.155,0.10500000000000001,0.378,0.10500000000000001,null,null,null,null,null,null,null,null,null,null,null,null,null,null,null,null,null,null,null,null,null,null,"Operação","Hora máquina por hectare"]
[null,null,null,null,null,null,null,null,null,null,null,null,null,null,"MG",1.4000000000000001,1.85,1.075,1.75,2.1000000000000001E-2,0.21000000000000002,0.21000000000000002,1.155,0.10500000000000001,0.378,0.10500000000000001,null,null,null,null,null,null,null,null,null,null,null,null,null,null,null,null,null,null,null,null,null,null,"Distribuição calcário",0.125]
[null,null,null,null,null,null,null,null,null,null,null,null,null,null,"ES",1.4000000000000001,1.7250000000000001,1.075,1.625,2.1000000000000001E-2,0.21000000000000002,0.21000000000000002,1.155,0.10500000000000001,0.378,0.10500000000000001,null,null,null,null,null,null,null,null,null,null,null,null,null,null,null,null,null,null,null,null,null,null,"Gradagem aradora",1.6]
[null,null,null,null,null,null,null,null,null,null,null,null,null,null,"RJ",1.4000000000000001,1.75,1.075,1.6500000000000001,2.1000000000000001E-2,0.21000000000000002,0.21000000000000002,1.155,0.10500000000000001,0.378,0.10500000000000001,null,null,null,null,null,null,null,null,null,null,null,null,null,null,null,null,null,null,null,null,null,null,"Gradagem niveladora",0.4]
[null,null,null,null,null,null,null,null,null,null,null,null,null,null,"SP",1.4000000000000001,1.7250000000000001,1.075,1.625,2.1000000000000001E-2,0.21000000000000002,0.21000000000000002,1.155,0.10500000000000001,0.378,0.10500000000000001,null,null,null,null,null,null,null,null,null,null,null,null,null,null,null,null,null,null,null,null,null,null,"Plantio com adubação",0.8]
[null,null,null,null,null,null,null,null,null,null,null,null,null,null,"PR",1.4500000000000002,2.0500000000000003,1.125,1.7250000000000001,2.1000000000000001E-2,0.21000000000000002,0.21000000000000002,1.155,0.10500000000000001,0.378,0.10500000000000001,null,null,null,null,null,null,null,null,null,null,null,null,null,null,null,null,null,null,null,null,null,null,"Transporte interno plantio",0.3]
[null,null,null,null,null,null,null,null,null,null,null,null,null,null,"SC",1.4500000000000002,2.125,1.125,1.8,2.1000000000000001E-2,0.21000000000000002,0.21000000000000002,1.155,0.10500000000000001,0.378,0.10500000000000001,null,null,null,null,null,null,null,null,null,null,null,null,null,null,null,null,null,null,null,null,null,null,"Adubação de cobertura",0.6]
[null,null,null,null,null,null,null,null,null,null,null,null,null,null,"RS",1.4500000000000002,2.1,1.125,1.7750000000000001,2.1000000000000001E-2,0.21000000000000002,0.21000000000000002,1.155,0.10500000000000001,0.378,0.10500000000000001,null,null,null,null,null,null,null,null,null,null,null,null,null,null,null,null,null,null,null,null,null,null,"Aplicação herbicida",0.3]
[null,null,null,null,null,null,null,null,null,null,null,null,null,null,"MS",1.375,1.6500000000000001,1.05,1.625,2.1000000000000001E-2,0.21000000000000002,0.21000000000000002,1.155,0.10500000000000001,0.378,0.10500000000000001,null,null,null,null,null,null,null,null,null,null,null,null,null,null,null,null,null,null,null,null,null,null,"Aplicação inseticida",0.6]
[null,null,null,null,null,null,null,null,null,null,null,null,null,null,"MT",1.375,1.7000000000000002,1.05,1.675,2.1000000000000001E-2,0.21000000000000002,0.21000000000000002,1.155,0.10500000000000001,0.378,0.10500000000000001,null,null,null,null,null,null,null,null,null,null,null,null,null,null,null,null,null,null,null,null,null,null,"Colheita mecânica",0.85]
[null,null,null,null,null,null,null,null,null,null,null,null,null,null,"GO",1.375,1.7000000000000002,1.05,1.675,2.1000000000000001E-2,0.21000000000000002,0.21000000000000002,1.155,0.10500000000000001,0.378,0.10500000000000001,null,null,null,null,null,null,null,null,null,null,null,null,null,null,null,null,null,null,null,null,null,null,"Transporte interno colheita",0.3]
[null,null,null,null,null,null,null,null,null,null,null,null,null,null,"DF",1.375,1.85,1.05,1.8250000000000002,2.1000000000000001E-2,0.21000000000000002,0.21000000000000002,1.155,0.10500000000000001,0.378,0.10500000000000001,null,null,null,null,null,null,null,null,null,null,null,null,null,null,null,null,null,null,null,null,null,null,"Total","SEMDADO"]
[null,null,null,null,null,null,null,null,null,null,null,null,null,null,"Metano - Manejo de dejetos",null,null,null,null,null,null,null,null,null,null,null,null,null,null,null,null,null,null,null,null,null,null,null,null,null,null,null,null,null,null,null,null,null,"Algodão"]
[null,null,null,null,null,null,null,null,null,null,null,null,null,null,"Estado","Gado de corte","Gado de corte","Gado de corte (até 1 ano)","Ovinos","Caprinos","Equinos","Asininos","Muares","Bubalinos","Aves","Vaca leiteira","Suínos (até meio ano)","Suínos (até meio ano)",null,null,null,null,null,null,null,null,null,null,null,null,null,null,null,null,null,null,null,null,"Operação","Hora máquina por hectare"]
[null,null,null,null,null,null,null,null,null,null,null,null,null,null,null,"Macho","Fêmea",null,null,null,null,null,null,null,null,null,"Grande","Pequeno",null,null,null,null,null,null,null,null,null,null,null,null,null,null,null,null,null,null,null,null,"  Distribuição calcário",0.25]
[null,null,null,null,null,null,null,null,null,null,null,null,null,null,"RO",4.5000000000000005E-2,4.0000000000000008E-2,2.7500000000000004E-2,5.2500000000000003E-3,5.5000000000000005E-3,5.5000000000000007E-2,0.03,0.03,0.05,5.7499999999999999E-4,5.5000000000000007E-2,1.4999999999999999E-2,1.4999999999999999E-2,null,null,null,null,null,null,null,null,null,null,null,null,null,null,null,null,null,null,null,null,"  Preparo do solo",1.61]
[null,null,null,null,null,null,null,null,null,null,null,null,null,null,"AC",4.5000000000000005E-2,4.0000000000000008E-2,2.7500000000000004E-2,5.2500000000000003E-3,5.5000000000000005E-3,5.5000000000000007E-2,0.03,0.03,0.05,5.7499999999999999E-4,5.2500000000000005E-2,1.0000000000000002E-2,1.0000000000000002E-2,null,null,null,null,null,null,null,null,null,null,null,null,null,null,null,null,null,null,null,null,"  Semeadura/adubação",0.4]
[null,null,null,null,null,null,null,null,null,null,null,null,null,null,"AM",4.5000000000000005E-2,4.0000000000000008E-2,2.7500000000000004E-2,5.2500000000000003E-3,5.5000000000000005E-3,5.5000000000000007E-2,0.03,0.03,0.05,5.7499999999999999E-4,5.2500000000000005E-2,1.2500000000000001E-2,1.2500000000000001E-2,null,null,null,null,null,null,null,null,null,null,null,null,null,null,null,null,null,null,null,null,"  Adubação cobertura",1.4]
[null,null,null,null,null,null,null,null,null,null,null,null,null,null,"RR",4.7500000000000001E-2,4.2500000000000003E-2,0.03,5.2500000000000003E-3,5.5000000000000005E-3,5.5000000000000007E-2,0.03,0.03,0.05,5.7499999999999999E-4,4.5000000000000005E-2,1.0000000000000002E-2,1.0000000000000002E-2,null,null,null,null,null,null,null,null,null,null,null,null,null,null,null,null,null,null,null,null,"  Aplicação de defensivos",2.0499999999999998]
[null,null,null,null,null,null,null,null,null,null,null,null,null,null,"PA",4.5000000000000005E-2,4.0000000000000008E-2,2.7500000000000004E-2,5.2500000000000003E-3,5.5000000000000005E-3,5.5000000000000007E-2,0.03,0.03,0.05,5.7499999999999999E-4,5.2500000000000005E-2,1.2500000000000001E-2,1.2500000000000001E-2,null,null,null,null,null,null,null,null,null,null,null,null,null,null,null,null,null,null,null,null,"  Colheita mecanizada",7]
[null,null,null,null,null,null,null,null,null,null,null,null,null,null,"AP",4.5000000000000005E-2,4.0000000000000008E-2,2.7500000000000004E-2,5.2500000000000003E-3,5.5000000000000005E-3,5.5000000000000007E-2,0.03,0.03,0.05,5.7499999999999999E-4,0.06,1.2500000000000001E-2,1.2500000000000001E-2,null,null,null,null,null,null,null,null,null,null,null,null,null,null,null,null,null,null,null,null,"Total","SEMDADO"]
[null,null,null,null,null,null,null,null,null,null,null,null,null,null,"TO",4.5000000000000005E-2,4.0000000000000008E-2,2.7500000000000004E-2,5.2500000000000003E-3,5.5000000000000005E-3,5.5000000000000007E-2,0.03,0.03,0.05,5.7499999999999999E-4,5.2500000000000005E-2,1.4999999999999999E-2,1.4999999999999999E-2,null,null,null,null,null,null,null,null,null,null,null,null,null,null,null,null,null,null,null,null,"Pastagem"]
[null,null,null,null,null,null,null,null,null,null,null,null,null,null,"MA",4.2500000000000003E-2,3.7500000000000006E-2,2.5000000000000001E-2,5.2500000000000003E-3,5.5000000000000005E-3,5.5000000000000007E-2,0.03,0.03,0.05,5.7499999999999999E-4,5.2500000000000005E-2,2.2500000000000003E-2,2.2500000000000003E-2,null,null,null,null,null,null,null,null,null,null,null,null,null,null,null,null,null,null,null,null,"Operação","Hora máquina por hectare"]
[null,null,null,null,null,null,null,null,null,null,null,null,null,null,"PI",4.2500000000000003E-2,3.7500000000000006E-2,2.7500000000000004E-2,5.2500000000000003E-3,5.5000000000000005E-3,5.5000000000000007E-2,0.03,0.03,0.05,5.7499999999999999E-4,5.2500000000000005E-2,1.4999999999999999E-2,1.4999999999999999E-2,null,null,null,null,null,null,null,null,null,null,null,null,null,null,null,null,null,null,null,null,"Distribuição calcário",0.125]
[null,null,null,null,null,null,null,null,null,null,null,null,null,null,"CE",4.2500000000000003E-2,3.7500000000000006E-2,2.5000000000000001E-2,5.2500000000000003E-3,5.5000000000000005E-3,5.5000000000000007E-2,0.03,0.03,0.05,5.7499999999999999E-4,5.2500000000000005E-2,2.7500000000000004E-2,2.7500000000000004E-2,null,null,null,null,null,null,null,null,null,null,null,null,null,null,null,null,null,null,null,null,"Adubação de cobertura",0.6]
[null,null,null,null,null,null,null,null,null,null,null,null,null,null,"RN",4.2500000000000003E-2,3.7500000000000006E-2,2.7500000000000004E-2,5.2500000000000003E-3,5.5000000000000005E-3,5.5000000000000007E-2,0.03,0.03,0.05,5.7499999999999999E-4,5.2500000000000005E-2,2.0000000000000004E-2,2.0000000000000004E-2,null,null,null,null,null,null,null,null,null,null,null,null,null,null,null,null,null,null,null,null,"Total","SEMDADO"]
[null,null,null,null,null,null,null,null,null,null,null,null,null,null,"PB",4.2500000000000003E-2,3.7500000000000006E-2,2.7500000000000004E-2,5.2500000000000003E-3,5.5000000000000005E-3,5.5000000000000007E-2,0.03,0.03,0.05,5.7499999999999999E-4,5.5000000000000007E-2,2.0000000000000004E-2,2.0000000000000004E-2]
[null,null,null,null,null,null,null,null,null,null,null,null,null,null,"PE",4.2500000000000003E-2,3.7500000000000006E-2,2.5000000000000001E-2,5.2500000000000003E-3,5.5000000000000005E-3,5.5000000000000007E-2,0.03,0.03,0.05,5.7499999999999999E-4,5.2500000000000005E-2,1.7499999999999998E-2,1.7499999999999998E-2]
[null,null,null,null,null,null,null,null,null,null,null,null,null,null,"AL",4.7500000000000001E-2,4.2500000000000003E-2,0.03,5.2500000000000003E-3,5.5000000000000005E-3,5.5000000000000007E-2,0.03,0.03,0.05,5.7499999999999999E-4,6.7500000000000004E-2,4.7500000000000001E-2,4.7500000000000001E-2,null,null,null,null,null,null,null,null,null,null,null,null,null,null,null,null,null,null,null,null,"Conversor (CO2)",0.99988065999999998]
[null,null,null,null,null,null,null,null,null,null,null,null,null,null,"SE",4.2500000000000003E-2,3.7500000000000006E-2,2.7500000000000004E-2,5.2500000000000003E-3,5.5000000000000005E-3,5.5000000000000007E-2,0.03,0.03,0.05,5.7499999999999999E-4,5.2500000000000005E-2,0.03,0.03]
[null,null,null,null,null,null,null,null,null,null,null,null,null,null,"BA",3.2500000000000001E-2,0.03,2.0000000000000004E-2,4.0000000000000001E-3,4.2500000000000003E-3,4.0000000000000008E-2,2.2500000000000003E-2,2.2500000000000003E-2,2.5000000000000001E-2,4.4999999999999999E-4,4.0000000000000008E-2,1.7499999999999998E-2,1.7499999999999998E-2]
[null,null,null,null,null,null,null,null,null,null,null,null,null,null,"MG",3.7500000000000006E-2,3.4999999999999996E-2,2.2500000000000003E-2,4.0000000000000001E-3,4.2500000000000003E-3,4.0000000000000008E-2,2.2500000000000003E-2,2.2500000000000003E-2,2.5000000000000001E-2,2.9250000000000005E-3,4.5000000000000005E-2,0.215,6.25E-2]
[null,null,null,null,null,null,null,null,null,null,null,null,null,null,"ES",3.4999999999999996E-2,3.2500000000000001E-2,2.2500000000000003E-2,4.0000000000000001E-3,4.2500000000000003E-3,4.0000000000000008E-2,2.2500000000000003E-2,2.2500000000000003E-2,2.5000000000000001E-2,4.4999999999999999E-4,4.5000000000000005E-2,0.14750000000000002,5.2500000000000005E-2]
[null,null,null,null,null,null,null,null,null,null,null,null,null,null,"RJ",3.7500000000000006E-2,3.2500000000000001E-2,2.2500000000000003E-2,4.0000000000000001E-3,4.2500000000000003E-3,4.0000000000000008E-2,2.2500000000000003E-2,2.2500000000000003E-2,2.5000000000000001E-2,2.9250000000000005E-3,4.0000000000000008E-2,0.14750000000000002,0.14750000000000002]
[null,null,null,null,null,null,null,null,null,null,null,null,null,null,"SP",3.7500000000000006E-2,3.4999999999999996E-2,2.2500000000000003E-2,4.0000000000000001E-3,4.2500000000000003E-3,4.0000000000000008E-2,2.2500000000000003E-2,2.2500000000000003E-2,2.5000000000000001E-2,2.9250000000000005E-3,0.05,0.16000000000000003,5.5000000000000007E-2]
[null,null,null,null,null,null,null,null,null,null,null,null,null,null,"PR",4.0000000000000008E-2,3.7500000000000006E-2,2.5000000000000001E-2,4.0000000000000001E-3,4.2500000000000003E-3,4.0000000000000008E-2,2.2500000000000003E-2,2.2500000000000003E-2,2.5000000000000001E-2,2.9250000000000005E-3,0.06,0.15000000000000002,9.0000000000000011E-2]
[null,null,null,null,null,null,null,null,null,null,null,null,null,null,"SC",4.5000000000000005E-2,4.0000000000000008E-2,2.7500000000000004E-2,4.0000000000000001E-3,4.2500000000000003E-3,4.0000000000000008E-2,2.2500000000000003E-2,2.2500000000000003E-2,2.5000000000000001E-2,2.9250000000000005E-3,5.7499999999999996E-2,0.16250000000000001,0.14499999999999999]
[null,null,null,null,null,null,null,null,null,null,null,null,null,null,"RS",3.7500000000000006E-2,3.2500000000000001E-2,2.2500000000000003E-2,4.0000000000000001E-3,4.2500000000000003E-3,4.0000000000000008E-2,2.2500000000000003E-2,2.2500000000000003E-2,2.5000000000000001E-2,2.9250000000000005E-3,0.05,0.25,9.7500000000000003E-2]
[null,null,null,null,null,null,null,null,null,null,null,null,null,null,"MS",3.2500000000000001E-2,0.03,2.0000000000000004E-2,4.0000000000000001E-3,4.2500000000000003E-3,4.0000000000000008E-2,2.2500000000000003E-2,2.2500000000000003E-2,2.5000000000000001E-2,4.4999999999999999E-4,4.7500000000000001E-2,0.24249999999999999,6.7500000000000004E-2]
[null,null,null,null,null,null,null,null,null,null,null,null,null,null,"MT",3.2500000000000001E-2,0.03,2.0000000000000004E-2,4.0000000000000001E-3,4.2500000000000003E-3,4.0000000000000008E-2,2.2500000000000003E-2,2.2500000000000003E-2,2.5000000000000001E-2,4.4999999999999999E-4,4.0000000000000008E-2,0.21250000000000002,8.2500000000000004E-2]
[null,null,null,null,null,null,null,null,null,null,null,null,null,null,"GO",3.4999999999999996E-2,0.03,2.0000000000000004E-2,4.0000000000000001E-3,4.2500000000000003E-3,4.0000000000000008E-2,2.2500000000000003E-2,2.2500000000000003E-2,2.5000000000000001E-2,4.4999999999999999E-4,4.0000000000000008E-2,0.1925,4.7500000000000001E-2]
[null,null,null,null,null,null,null,null,null,null,null,null,null,null,"DF",8.0000000000000016E-2,6.9999999999999993E-2,4.7500000000000001E-2,4.0000000000000001E-3,4.2500000000000003E-3,4.0000000000000008E-2,2.2500000000000003E-2,2.2500000000000003E-2,2.5000000000000001E-2,4.4999999999999999E-4,3.4999999999999996E-2,0.22000000000000003,0.22000000000000003]
[null,null,null,null,null,null,null,null,null,null,null,null,null,null,"Coeficiente composto (tCO2 eq)"]
[null,null,null,null,null,null,null,null,null,null,null,null,null,null,"Item","Sistema de manejo tier 1","Sistemas de manejo tier 2","Fermentação entérica","Manejo de dejetos"]
[null,null,null,null,null,null,null,null,null,null,null,null,null,null,"Item 1"]
[null,null,null,null,null,null,null,null,null,null,null,null,null,null,"Item 2"]
[null,null,null,null,null,null,null,null,null,null,null,null,null,null,"Item 3"]
[null,null,null,null,null,null,null,null,null,null,null,null,null,null,"Item 4"]
[null,null,null,null,null,null,null,null,null,null,null,null,null,null,"Item 5"]
[null,null,null,null,null,null,null,null,null,null,null,null,null,null,"Item 6"]
[null,null,null,null,null,null,null,null,null,null,null,null,null,null,"Item 7"]
[null,null,null,null,null,null,null,null,null,null,null,null,null,null,"Item 8"]
[null,null,null,null,null,null,null,null,null,null,null,null,null,null,"Item 9"]
[null,null,null,null,null,null,null,null,null,null,null,null,null,null,"Item 10"]

{"sheet":"OPERAÇÕESMECANIZADAS","index":14,"n_rows":12,"n_cols":23,"rows_kept":12,"cut":false,"hidden":true,"merged":[]}
["Cultura","Soja",null,"Cultura","Milho",null,"Cultura","Trigo",null,"Cultura","Feijão",null,"Cultura","Algodão",null,"Cultura","Cana-de-açúcar",null,"Cultura","Arroz",null,"Cultura","Pecuária e pastagem"]
["Operação mecanizada","Valor",null,"Operação mecanizada","Valor",null,"Operação mecanizada","Valor",null,"Operação mecanizada","Valor",null,"Operação mecanizada","Valor",null,"Operação mecanizada","Valor",null,"Operação mecanizada","Valor",null,"Operação mecanizada","Valor"]
["Calagem",false,null,"Calagem",false,null,"Semeadura e adubação",false,null,"Calagem",false,null,"Preparo de solo",false,null,"Calagem",false,null,"Calagem",false,null,"Calagem",false]
["Dessecação pré emergente",false,null,"Gradagem aradora",false,null,"Aplicação de herbicida",false,null,"Aração",false,null,"Calagem",false,null,"Terraceamento",false,null,"Aração",false,null,"Adubação de cobertura",false]
["Limpeza da área (roçadeira)",false,null,"Gradagem niveladora",false,null,"Aplicação de inseticida",false,null,"Gradagem niveladora",false,null,"Plantio e adubação",false,null,"Gradagem",false,null,"Gradagem niveladora",false]
["Plantio e adubação",false,null,"Plantio e adubação",false,null,"Aplicação de fungicidas",false,null,"Plantio mecanizado",false,null,"Adubação de cobertura",false,null,"Dessecação",false,null,"Plantio mecanizado",false]
["Aplicação de fungicida",false,null,"Transp. Int. Ins. Plantio",false,null,"Colheita mecanizada",false,null,"Transp. Intern. Ins. Plantio",false,null,"Aplicação de defensivos",false,null,"Gradagem niveladora",false,null,"Transp. Int. Ins. Plantio",false]
["Aplicação de inseticida",false,null,"Adubação de cobertura",false,null,null,null,null,"Adubação de cobertura",false,null,"Colheita mecanizada",false,null,"Sulcação",false,null,"Adubação de cobertura",false]
["Aplicação de herbicida pós emergente",false,null,"Aplicação de herbicida",false,null,null,null,null,"Aplicação de herbicida",false,null,null,null,null,"Aração",false,null,"Aplicação de herbicida",false]
[null,null,null,"Aplicação de inseticida",false,null,null,null,null,"Aplicação de fungicida",false,null,null,null,null,"Cobrição",false,null,"Colheita mecanizada",false]
[null,null,null,"Colheita mecanizada",false,null,null,null,null,"Batedeira de cereais",false,null,null,null,null,"Pulverização",false,null,"Reforma de taipas",false]
[null,null,null,"Transp. Int. Ins. Colheita",false,null,null,null,null,"Transp. Intern. Ins. Colheita",false]

{"sheet":"CONSUMOENERGIA","index":15,"n_rows":4,"n_cols":2,"rows_kept":4,"cut":false,"hidden":true,"merged":[]}
["Tipo de consumo","Valor"]
["Consumo mensal no período",false]
["Consumo mensal médio",false]
["Consumo anual",false]

{"sheet":"DADOS","index":16,"n_rows":29,"n_cols":44,"rows_kept":29,"cut":false,"hidden":true,"merged":[[0,0,0,10],[0,33,0,34],[0,36,0,37],[0,39,0,40],[0,42,0,43],[0,12,0,16],[0,18,0,23],[0,30,0,31],[0,25,0,28]]}
["Geral",null,null,null,null,null,null,null,null,null,null,null,"Arroz",null,null,null,null,null,"Pastagem e pecuária",null,null,null,null,null,null,"Cana-de-açúcar",null,null,null,null,"Soja",null,null,"Trigo",null,null,"Milho",null,null,"Feijão",null,null,"Algodão"]
["UF","Tempo de adoção","Bioma","Teor de argila no solo","Adubação orgânica; Adubação verde","Tipo adubação orgânica","Tipo adubação verde","Classe textural","Quantificação de diesel","Uso anterior da terra - Floresta","Tipo de solo",null,"Matéria orgânica? Quantidade","Matéria orgânica fermentada?","Terras baixas? Regime de água","Uso anterior da terra","Uso atual",null,"Uso atual","Tempo nesta situação","Tipo de animais","Realiza manejo de dejetos? Tipo","Sexo","Uso anterior da terra",null,"Adubação orgânica","Uso anterior da terra","Sistema de manejo do solo","Ciclo",null,"Uso anterior da terra","Uso atual",null,"Uso anterior da terra","Uso atual",null,"Uso anterior da terra","Uso atual",null,"Uso anterior da terra","Uso atual",null,"Uso anterior da terra","Uso atual"]
["AC","Maior que 20 anos","Amazônia","Maior que 60%","Não","Composto orgânico","Coquetel","Arenoso","Operações mecanizadas","Floresta amazônica aberta","Solos com argila de atividade alta",null,0,"Sim","Águas profundas entre 50 e 100 cm","Cultivo convencional","Cultivo convencional",null,"Pastagem degradada","Maior que 20 anos","Frangos/pintos","Animais em pastagem","Fêmea","Cultivo convencional",null,"Torta de filtro","Cana com queimada","Cana com queimada","Cana planta",null,"Cultivo convencional","Cultivo convencional",null,"Cultivo convencional","Cultivo convencional",null,"Cultivo convencional","Cultivo convencional",null,"Cultivo convencional","Cultivo convencional",null,"Cultivo convencional","Cultivo convencional"]
["AL","Menor ou igual a 20 anos","Caatinga","Menor que 60%","Sim","Esterco bovino","Gramínea","Médio","Quantidade consumida","Floresta amazônica densa","Solos com argila de atividade baixa",null,"1 a 2","Não","Águas profundas maiores que 100 cm","Pastagem","Integração lavoura-pecuária",null,"Pastagem melhorada","Menor ou igual a 20 anos","Gado de corte (1 a 2 anos)","Armazenamento sólido","Macho","Pastagem degradada",null,"Vinhaça","Cultivo convencional","Cana sem queimada","Cana soca",null,"Pastagem","Integração lavoura-pecuária",null,"Pastagem","Integração lavoura-pecuária",null,"Pastagem","Integração lavoura-pecuária",null,"Pastagem","Integração lavoura-pecuária",null,"Pastagem","Integração lavoura-pecuária"]
["AM",null,"Cerrado",null,null,"Esterco de ave","Leguminosa","Argiloso",null,"Mata atlântica","Não-latossolos com argila de atividade baixa",null,"2 a 4","Não há aplicação","Continuamente inundado","Plantio direto","Integração lavoura-pecuária-floresta",null,"Pastagem nominal",null,"Gado de corte (até 1 ano)","Biodigestor",null,"Plantio direto",null,"Não realiza adubação orgânica","Pastagem",null,null,null,"Plantio direto","Integração lavoura-pecuária-floresta",null,"Plantio direto","Integração lavoura-pecuária-floresta",null,"Plantio direto","Integração lavoura-pecuária-floresta",null,"Plantio direto","Integração lavoura-pecuária-floresta",null,"Plantio direto","Integração lavoura-pecuária-floresta"]
["AP",null,"Mata Atlântica",null,null,"Esterco equino","Não realiza adubação verde",null,null,"Floresta estacional decidual","Solos arenosos",null,"4 a 8",null,"Inundação intermitente com aeração única","Vegetação nativa","Plantio direto",null,null,null,"Gado de corte (mais de 2 anos)","Dry lot",null,"Vegetação nativa",null,null,"Vegetação nativa",null,null,null,"Vegetação nativa","Plantio direto",null,"Vegetação nativa","Plantio direto",null,"Vegetação nativa","Plantio direto",null,"Vegetação nativa","Plantio direto",null,"Vegetação nativa","Plantio direto"]
["BA",null,"Pampa",null,null,"Esterco suíno",null,null,null,"Floresta estacional semi-decidual","Solos hidromórficos",null,"8 a 15",null,"Inundação intermitente com aerações múltiplas",null,null,null,null,null,"Poedeiras","Esterqueira"]
["CE",null,null,null,null,"Estervo ovino",null,null,null,"Floresta ombrófila mista","Outros solos",null,"mais que 15",null,"Lavoura não está em terras baixas",null,null,null,null,null,"Suínos (até meio ano)","Lagoa anaeróbica"]
["DF",null,null,null,null,"Outros",null,null,null,"Savana sul",null,null,null,null,"Várzea seca",null,null,null,null,null,"Suínos (mais de meio ano)","Não realiza manejo de dejetos"]
["ES",null,null,null,null,"Não realiza adubação orgânica",null,null,null,"Savana amazônica",null,null,null,null,"Várzea úmida",null,null,null,null,null,"Vaca leiteira","Não sei informar"]
["GO",null,null,null,null,null,null,null,null,"Cerrado",null,null,null,null,null,null,null,null,null,null,"Caprinos (até 1 ano)","Poços abaixo do confinamento de animais"]
["MA",null,null,null,null,null,null,null,null,"Estepe do sul",null,null,null,null,null,null,null,null,null,null,"Caprinos (mais de 1 ano)"]
["MG",null,null,null,null,null,null,null,null,"Caatinga"]
["MS",null,null,null,null,null,null,null,null,"Pantanal"]
["MT",null,null,null,null,null,null,null,null,"Refúgios ecológicos de montanhas e terras altas"]
["PA",null,null,null,null,null,null,null,null,"Áreas de formação pioneira"]
["PB",null,null,null,null,null,null,null,null,"Áreas arenosas e vegetação lenhosa oligotrófica de áreas pantanosas"]
["PE"]
["PI"]
["PR"]
["RJ"]
["RN"]
["RO"]
["RR"]
["RS"]
["SC"]
["SE"]
["SP"]
["TO"]

{"sheet":"RELATÓRIO INVENTÁRIO","index":17,"n_rows":58,"n_cols":6,"rows_kept":58,"cut":false,"hidden":true,"merged":[[3,0,3,5],[24,0,24,3],[26,0,26,3],[31,0,31,3],[34,0,34,3],[30,0,30,4],[23,0,23,4],[28,0,28,3],[5,2,5,4],[14,2,14,5],[7,0,9,0],[12,0,12,1],[16,0,18,0],[21,0,21,1],[36,0,36,3],[33,0,33,4],[54,2,54,3],[57,2,57,3],[54,0,54,1],[55,0,55,1],[56,0,56,1],[57,0,57,1],[55,2,55,3],[56,2,56,3]]}
[]
[]
[]
["1. Emissões por escopo"]
[]
[null,null,"Emissões em toneladas métricas"]
["Escopo","Categoria","CO2","CH4","N2O"]
["Escopo 1","Fontes mecânicas",{"$f":"Síntese!D22","v":0},{"$f":"Síntese!E22","v":0},{"$f":"Síntese!F22","v":0}]
[null,"Fontes não-mecânicas",{"$f":"Síntese!D23","v":0},{"$f":"Síntese!E23","v":0},{"$f":"Síntese!F23","v":0}]
[null,"Mudança de uso do solo",{"$f":"Síntese!D24","v":0}]
["Escopo 2","Compra de energia",{"$f":"Síntese!D25","v":0}]
["Escopo 3","Upstream & Downstream"]
["Total",null,{"$f":"Síntese!D27","v":0},{"$f":"Síntese!E27","v":0},{"$f":"Síntese!F27","v":0}]
[]
[null,null,"Emissões em toneladas de CO2 equivalente"]
["Escopo","Categoria","CO2","CH4","N2O","CO2 eq."]
["Escopo 1","Fontes mecânicas",{"$f":"Síntese!G22","v":0},{"$f":"Síntese!H22","v":0},{"$f":"Síntese!I22","v":0},{"$f":"Síntese!J22","v":0}]
[null,"Fontes não-mecânicas",{"$f":"Síntese!G23","v":0},{"$f":"Síntese!H23","v":0},{"$f":"Síntese!I23","v":0},{"$f":"Síntese!J23","v":0}]
[null,"Mudança de uso do solo",{"$f":"Síntese!G24","v":0},null,null,{"$f":"Síntese!J24","v":0}]
["Escopo 2","Compra de energia",{"$f":"Síntese!G25","v":0},null,null,{"$f":"Síntese!J25","v":0}]
["Escopo 3","Upstream & Downstream",null,null,null,{"$f":"Síntese!J26","v":0}]
["Total",null,{"$f":"Síntese!G27","v":0},{"$f":"Síntese!H27","v":0},{"$f":"Síntese!I27","v":0},{"$f":"Síntese!J27","v":0}]
[]
["2. Emissões fora dos escopos (toneladas de CO2 equivalente)"]
["Carbono biogênico de uso do solo",null,null,null,{"$f":"Síntese!F31","v":0}]
[]
["Carbono biogênico de uso de biocombustíveis ",null,null,null,{"$f":"Síntese!F33","v":0}]
[]
["Sequestro de carbono",null,null,null,{"$f":"Síntese!F35","v":0}]
[]
["3. Emissões líquidas (toneladas de CO2 equivalente)"]
["Emissões líquidas",null,null,null,{"$f":"Síntese!F39","v":0}]
[]
["4. Outras emissões (toneladas de CO2 equivalente)"]
["CO",null,null,null,{"$f":"Síntese!F43","v":0}]
[]
["NOX",null,null,null,{"$f":"Síntese!F45","v":0}]
[]
[]
[]
[]
[]
[]
[]
[]
[]
[]
[]
[]
[]
[]
[]
[]
[]
["Organização",null,{"$f":"IF(cad_nomeorganizacao = \"\",\"-\",cad_nomeorganizacao)","v":"-"}]
["Responsável",null,{"$f":"IF(cad_nomeresponsavel = \"\",\"-\",cad_nomeresponsavel)","v":"-"}]
["Contato",null,{"$f":"IF(cad_contatoresponsavel = \"\",\"-\",cad_contatoresponsavel)","v":"-"}]
["Ano safra",null,{"$f":"IF(cad_anosafra=\"\",\"-\",cad_anosafra)","v":"-"}]